Workbook

Sheet Certificación Relación Mensual
A1: IdN | B1: IdX | C1: ACHE | D1: Proc | E1: Num | G1: Meses | H1: 7 | I1: 8 | J1: 9 | K1: 10 | L1: 11 | M1: 12 | N1: 1 | O1: 2 | P1: 3 | Q1: 4 | AC1: 5 | AD1: 6 | AE1: Xornada | AF1: Achega | AG1: Dias | AH1: Contía | AI1: %PPE | AJ1: Diascp | AK1: P.P. Extra | AL1: %CV | AM1: Diascv | AN1: Vacacións | AO1: NÓMINA | AQ1: IT | AR1: Baixa | BQ1: 1 | BR1: 2 | BS1: 3 | BT1: 4 | BU1: 5 | BV1: 6 | BW1: 7 | BX1: 8 | BY1: 9 | BZ1: 10 | CA1: 11 | CB1: 12 | CC1: 13 | CD1: 14 | CE1: 15 | CF1: 16 | CG1: 17 | CH1: 18 | CI1: 19 | CJ1: 20 | CK1: 21 | CL1: 22 | CM1: 23 | CN1: 24 | CO1: 25 | CP1: 26 | CQ1: 27 | CR1: 28 | CS1: =IF(DAY(VALUE(1&"-"&$AT$7&"-"&$AU$7)-1)>28,29,"") -> 29 | CT1: =IF(DAY(VALUE(1&"-"&$AT$7&"-"&$AU$7)-1)>29,30,"") -> 30 | CU1: =IF(DAY(VALUE(1&"-"&$AT$7&"-"&$AU$7)-1)>30,31,"") ->  | CV1: Trab. | CW1: Baixa | DD1: inimes | DE1: finmes | DF1: diasnomina | DG1: diasbaixa | DH1: dbaixa | DI1: dalta | DJ1: dbaixaat | DK1: dbaixait | DL1: Dias baixa mes | DM1: Diasconsumidos | DN1: Totdiasbaixa | DO1: ya subv. | DP1: Pedientes | DQ1: DatainiCV | DR1: DiasCV | DS1: filas | DT1: Folla | DU1: Follas | DV1: 1ºS 3 | DW1: resto | DX1: os 12 | DY1: - os 3 1ºS | DZ1: os 12 | EA1: Pago | EB1: Alt | EC1: Baix | ED1: NÓMINA | EE1: Data_nómina
B2: area de impresión | H2: C.E.E. Solicitante | BR2: Outubro | BS2: Novembro | BT2: Decembro | BU2: Xaneiro | BV2: Febreiro | BW2: Marzo | BX2: Abril | BY2: Maio | BZ2: Xuño | CA2: Xullo | CB2: Agosto | CC2: Setembro
B3: de | E3: A1 | H3: DNI/NIF: | P3: NºExp | AM3: Certificación mensual da relación do cadro de persoal c/discapaciade | BR3: 10 | BS3: 11 | BT3: 12 | BU3: 1 | BV3: 2 | BW3: 3 | BX3: 4 | BY3: 5 | BZ3: 6 | CA3: 7 | CB3: 8 | CC3: 9 | EV3: =VALUE(1&"-"&$EV$6&"-"&$EW$6)-1 -> 2025-10-31
B4: a | E4: ="AV"&IF(MAXA(B2:B38)=0,11,11+MAXA(B12:B44)) -> AV20 | H4: Nome da persoa representante: | BR4: Outubro | BS4: Novembro | BT4: Decembro | BU4: Xaneiro | BV4: Febreiro | BW4: Marzo | BX4: Abril | BY4: Maio | BZ4: Xuño | CA4: Xullo | CB4: Agosto | CC4: Setembro
H5: Tipo de Axuda: Subvencion para a financiación do custo salarial de todas a persoas traballadoras con discapacidade contratadas en C.E.E. do territorio da Comunidade Autónoma de Galicia | AU5: =VALUE(1&"-"&$AT$7&"-"&$AU$7)-1 -> 2025-11-30 | BI5: S U X E R I D O | EV5: mes | EW5: año
G6: Desde | H6: =IF($AU$5=VALUE(30&"/"&6&"/"&YEAR($AU$5)),"Verán",IF($AU$5=VALUE(31&"/"&12&"/"&YEAR($AU$5)),"Inverno","")) ->  | I6: Data_nómina | N6: 50%SMI | O6: 65%SMI | Q6: Tot | AB6: Tot.P. | AC6: 0 | AD6: 0 | AE6: Programa III: Programa de axudas ao mantemento do custo salarial nos C.E.E. (Procedemento TR341M) | AT6: mes | AU6: ano | BH6: Totais | BI6: Achega Mes | BL6: P.P.Extra | BO6: Vacacións | BQ6: =VALUE(BQ11&"/"&MONTH($AU$5)&"/"&YEAR($AU$5)) -> 2025-11-01 | BR6: 2025-11-02 | BS6: 2025-11-03 | BT6: 2025-11-04 | BU6: 2025-11-05 | BV6: 2025-11-06 | BW6: 2025-11-07 | BX6: 2025-11-08 | BY6: 2025-11-09 | BZ6: 2025-11-10 | CA6: 2025-11-11 | CB6: 2025-11-12 | CC6: 2025-11-13 | CD6: 2025-11-14 | CE6: 2025-11-15 | CF6: 2025-11-16 | CG6: 2025-11-17 | CH6: 2025-11-18 | CI6: 2025-11-19 | CJ6: 2025-11-20 | CK6: 2025-11-21 | CL6: 2025-11-22 | CM6: 2025-11-23 | CN6: 2025-11-24 | CO6: 2025-11-25 | CP6: 2025-11-26 | CQ6: 2025-11-27 | CR6: 2025-11-28 | CS6: 2025-11-29 | CT6: 2025-11-30 | DJ6: SI(AK13="AT";CO13;0) | DY6: Convenio | EV6: =IF(MONTH(AR7)+1>12,MONTH(AR7)+1-12,MONTH(AR7)+1) -> 11 | EW6: =IF(MONTH(AR7)+1>12,YEAR(AR7)+1,YEAR(AR7)) -> 2025
A7: Novo | C7: Tot. Trab. CEE/RNT | G7: Certificación do cadro de | I7: =DATE(IF(HLOOKUP(H8,BR2:CC3,2,FALSE)<10,YEAR(AR7)+1,YEAR(AR7)),HLOOKUP(H8,BR2:CC3,2,FALSE),1) -> 2025-11-01 | K7: Cert.comprobada | M7: Si | N7: =SUMPRODUCT(($J$11:$J$980=P7)*($C$11:$C$980=0)*($AO$11:$AO$980="SI")*((($AH$11:$AH$980<>0)+(($AN$11:$AN$980<>"")*($AN$11:$AN$980>0)))>0)/IF(COUNTIFS($H$11:$H$980,$H$11:$H$980,$J$11:$J$980,P7,$C$11:$C$980,0,$AO$11:$AO$980,"SI")=0,1,COUNTIFS($H$11:$H$980,$H$11:$H$980,$J$11:$J$980,P7,$C$11:$C$980,0,$AO$11:$AO$980,"SI"))) -> 0 | O7: =SUMPRODUCT(($J$11:$J$978=P7)*($C$11:$C$978=1)*($AO$11:$AO$978="SI")*((($AH$11:$AH$978<>0)+(($AN$11:$AN$978<>"")*($AN$11:$AN$978>0)))>0)/MAX(1,COUNTIFS($H$11:$H$978,$H$11:$H$978,$J$11:$J$978,P7,$C$11:$C$978,1,$AO$11:$AO$978,"SI"))) -> 0 | P7: H | Q7: P.Trab | AB7: Trab. | AD7: =AB8 -> 0 | AE7: Total Achega mes | AH7: =VALUE(SUBTOTAL(109,AH11:AH39)) -> 0 | AI7: P.Extra | AK7: =SUBTOTAL(9,AK12:AK44) -> 0 | AL7: T.c.Vacacións | AN7: =SUBTOTAL(9,AN11:AN39) -> 0 | AP7: Periodo | AR7: 2025-10-01 | AS7: 2025-12-31 | AT7: =IF(MONTH(AH8)+1>12,MONTH(AH8)+1-12,MONTH(AH8)+1) -> 12 | AU7: =IF(MONTH(AH8)+1>12,YEAR(AH8)+1,YEAR(AH8)) -> 2025 | BB7: Anexo X | BI7: =SUBTOTAL(9,BI12:BI44) -> 0 | BL7: =SUBTOTAL(9,BL12:BL44) -> 0 | BO7: =SUBTOTAL(9,BO12:BO44) -> 0 | CX7: IT | CY7: 15
A8: IdX | B8: =MAXA(B12:B44) -> 9 | C8: % Trab. c/discap. | F8: =IFERROR(AH9/F7,0) -> 0 | G8: persoal do mes de | H8: Novembro | K8: Calculo correcto? | M8: Si | N8: =SUMPRODUCT(($J$11:$J$980=P8)*($C$11:$C$980=0)*($AO$11:$AO$980="SI")*((($AH$11:$AH$980<>0)+(($AN$11:$AN$980<>"")*($AN$11:$AN$980>0)))>0)/IF(COUNTIFS($H$11:$H$980,$H$11:$H$980,$J$11:$J$980,P8,$C$11:$C$980,0,$AO$11:$AO$980,"SI")=0,1,COUNTIFS($H$11:$H$980,$H$11:$H$980,$J$11:$J$980,P8,$C$11:$C$980,0,$AO$11:$AO$980,"SI"))) -> 0 | O8: =SUMPRODUCT(($J$11:$J$980=P8)*($C$11:$C$980=1)*($AO$11:$AO$980="SI")*((($AH$11:$AH$980<>0)+(($AN$11:$AN$980<>"")*($AN$11:$AN$980>0)))>0)/IF(COUNTIFS($H$11:$H$980,$H$11:$H$980,$J$11:$J$980,P8,$C$11:$C$980,1,$AO$11:$AO$980,"SI")=0,1,COUNTIFS($H$11:$H$980,$H$11:$H$980,$J$11:$J$980,P8,$C$11:$C$980,1,$AO$11:$AO$980,"SI"))) -> 0 | P8: M | Q8: =SUM(N7:O8) -> 0 | AB8: =SUM(N7:O8) -> 0 | AD8: =AB8*180/30 -> 0 | AE8: Ordinaria | AG8: x | AH8: =I7 -> 2025-11-01 | AI8: Semestal | AL8: Tot. Certificación mes de | AP8: Convc.Axudas | AR8: =AS7+1 -> 2026-01-01 | AS8: 2026-09-30 | AT8: mes | AU8: ano | CX8: AT | CY8: 1 | DA8: =DY8 -> NON | DY8: =AS9 -> NON | EU8: incio | FG8: fin
A9: =MAXA(A11:A39)+1 -> 1 | C9: G | D9: Cod | E9: Salario mes | AE9: Tot. P. Trab. mes | AH9: =Q8 -> 0 | AK9: Total Anexo X | AL9: =H8 -> Novembro | AN9: =AN7+AK7+AH7 -> 0 | AR9: Conv. IT | AS9: NON | BI9: Total Xeral mes de | BK9: =H8 -> Novembro | BO9: =BO7+BL7+BI7 -> 0 | CX9: Total | CY9: Días | CZ9: Días | DA9: Días | DC9: =COLUMN() -> 107 | EU9: 7 | EV9: 8 | EW9: 9 | EX9: 10 | EY9: 11 | EZ9: 12 | FA9: 1 | FB9: 2 | FC9: 3 | FD9: 4 | FE9: 5 | FF9: 6
A10: IdX | B10: IdN | E10: Convenio | F10: Nº Rexistro | G10: Traballador | I10: Data | N10: Data | O10: Data | P10: Código | Q10: Tipo | AE10: % | AF10: Tipo | AH10: Achega | AI10: % | AK10: Comp. | AL10: % | AN10: Comp. | AP10: Dias | AQ10: IT | AR10: I T / A T | AT10: Conv | AX10: Xust | AZ10: INF. | BA10: Copia | BB10: Comun. | BC10: Anexo | BF10: Anexo | BG10: % | BH10: Dias | BI10: Achega Mensual | BJ10: % | BK10: Dias | BL10: Comp. | BM10: % | BN10: Dias | BO10: Comp. | BQ10: C | BR10: A | BS10: L | BT10: E | BU10: N | BV10: D | BW10: A | BX10: R | BY10: I | BZ10: O | CB10: D | CC10: E | CE10: T | CF10: R | CG10: A | CH10: B | CI10: A | CJ10: L | CK10: L | CL10: O | CN10: D | CO10: O | CQ10: M | CR10: E | CS10: S | CV10: Días | CW10: Días | CX10: Días | CY10: Baixa | CZ10: Baixa | DA10: Baixa | DV10: tres primeros | EG10: Dias 1º | EH10: 1º Período | EM10: Dias 2º | EN10: 2º Periodo | EU10: =$AR$7 -> 2025-10-01 | EV10: =EU11+1 -> 2025-11-01 | EW10: =EV11+1 -> 2025-12-01 | EX10: 2026-01-01 | EY10: 2026-02-01 | EZ10: 2026-03-01 | FA10: 2026-04-01 | FB10: 2026-05-01 | FC10: 2026-06-01 | FD10: 2026-07-01 | FE10: 2026-08-01 | FF10: 2026-09-01 | FG10: =EU10 -> 2025-10-01 | FH10: =FG11+1 -> 2523-11-01 | FI10: =FH11+1 -> 2524-12-01 | FJ10: 2526-01-01 | FK10: 2626-02-01 | FL10: 2627-03-01 | FM10: 2628-04-01 | FN10: 2629-05-01 | FO10: 2630-06-01 | FP10: 2631-07-01 | FQ10: 2632-08-01 | FR10: 2633-09-01
A11: IdN | B11: IdX | C11: D | D11: RNT | E11: Colectivo | F11: Conv. Colect | G11: (Apelido1 Apelido2, Nome) | H11: N.I.F. | I11: Nacemento | J11: sexo | K11: Discapacidade | L11: Grao | M11: Tipo | N11: Alta | O11: Baixa | P11: Contrato | Q11: Cont | R11: Empresa | S11: NIF | T11: EXP | U11: mes | V11: total | W11: Nomina | X11: trab | Y11: DN | Z11: DA | AA11: DB | AB11: acheg | AC11: Rateo | AD11: +Cont | AE11: Xornada | AF11: Achega | AG11: Días | AH11: Mensual | AI11: Xornada2 | AJ11: Días3 | AK11: P.P. Extra | AL11: Xornada4 | AM11: Días5 | AN11: Vacacións | AO11: Certific | AP11: Absentism | AQ11: AT | AR11: Baixa6 | AS11: Alta | AT11: Baixa7 | AU11: Interindade | AV11: Observacións | AW11: Nómina | AX11: Pago | AY11: TC2 | AZ11: IDC | BA11: Cto | BB11: SEPE | BC11: XI | BD11: IDC8 | BE11: TA2 | BF11: XII | BG11: Xornada9 | BH11: Sux. | BI11: Suxerida | BJ11: Xornada10 | BK11: Columna11 | BL11: P.P. Extra12 | BM11: Xornada13 | BN11: Columna14 | BO11: Vacacións15 | BP11: Columna16 | BQ11: 1 | BR11: 2 | BS11: 3 | BT11: 4 | BU11: 5 | BV11: 6 | BW11: 7 | BX11: 8 | BY11: 9 | BZ11: 10 | CA11: 11 | CB11: 12 | CC11: 13 | CD11: 14 | CE11: 15 | CF11: 16 | CG11: 17 | CH11: 18 | CI11: 19 | CJ11: 20 | CK11: 21 | CL11: 22 | CM11: 23 | CN11: 24 | CO11: 25 | CP11: 26 | CQ11: 27 | CR11: 28 | CS11: 29 | CT11: 30 | CU11: 31 | CV11: Trab. | CW11: Baixa17 | CX11: Baixa18 | CY11: Acum | CZ11: xa sub | DA11: Pend | DB11: 52 | DC11: 53 | DD11: inimes | DE11: finmes | DF11: diasnomina | DG11: diasbaixa | DH11: dbaixa | DI11: dalta | DJ11: dbaixaat | DK11: dbaixait | DL11: Dias baixa mes | DM11: Diasconsumidos | DN11: Totdiasbaixa | DO11: ya subv. | DP11: Pedientes | DQ11: DatainiCV | DR11: DiasCV | DS11: 0 | DT11: Columna4 | DU11: Columna5 | DV11: 1ºS 3 | DW11: resto | DX11: os 12 | DY11: - os 3 1ºS | DZ11: os 126 | EA11: Pago7 | EB11: Alt | EC11: Baix | ED11: Certific8 | EE11: Data_nómina | EF11: Columna9 | EG11: Periodo | EH11: 710 | EI11: 811 | EJ11: 912 | EK11: 1013 | EL11: 1114 | EM11: Periodo15 | EN11: 1216 | EO11: 117 | EP11: 218 | EQ11: 319 | ER11: 420 | ES11: 521 | ET11: 622 | EU11: 31-10-25 | EV11: 30-11-25 | EW11: 31-12-25 | EX11: 31-01-26 | EY11: 28-02-26 | EZ11: 31-03-26 | FA11: 30-04-26 | FB11: 31-05-26 | FC11: 30-06-26 | FD11: 31-07-26 | FE11: 31-08-26 | FF11: 30-09-26 | FG11: 31-10-2523 | FH11: 30-11-2524 | FI11: 31-12-2525 | FJ11: 31-01-2626 | FK11: 28-02-2627 | FL11: 31-03-2628 | FM11: 30-04-2629 | FN11: 31-05-2630 | FO11: 30-06-2631 | FP11: 31-07-2632 | FQ11: 31-08-2633 | FR11: 30-09-2634
B12: 2 | C12: =IF(AND(K12="",L12=""),"",IF(L12>=65,1,IF(AND(L12>=33,OR(K12="P. Cerebral",K12="Enf. Mental",K12="D. Intelectual",K12="Psíquica")),1,0))) ->  | D12: =IFERROR(MID(G12,1,2)&(MID(G12,FIND(" ",G12,1)+1,2))&IFERROR((MID(G12,FIND(",",G12,1)+2,1)),MID(G12,FIND(" ",G12,FIND(" ",G12,1)+1)+1,1)),"") ->  | Q12: =IFERROR(VLOOKUP(P12,Importes!L:Q,2,FALSE),"") ->  | R12: =IF(G12="","",$M$4) ->  | S12: =IF(G12="","",#REF!) ->  | T12: =IF(G12="","",#REF!) ->  | U12: =IF(G12="","",IF($AH$8="Extra Inverno","1/12/2016",IF($AH$8="Extra Verán","1/6/2017",$AH$8))) ->  | V12: =IF(G12="","",$AN$9) ->  | W12: =IF(G12="","",IF($AG$8="x","Mensualidade",IF(AND($AG$8="",#REF!="x",$AH$8=DATE(YEAR($CU$7),12,1)),"Extra Inverno",IF(AND($AG$8="",#REF!="x",$AH$8=DATE(YEAR($CV$8),6,1)),"Extra Verán","")))) ->  | X12: =$AH$9 -> 0 | Y12: =IF(I12="","",DAY(I12)&"/"&MONTH(I12)&"/"&YEAR(I12)) ->  | Z12: =IF(N12="","",DAY(N12)&"/"&MONTH(N12)&"/"&YEAR(N12)) ->  | AA12: =IF(O12="","",DAY(O12)&"/"&MONTH(O12)&"/"&YEAR(O12)) ->  | AB12: =MID(AF12,1,4) -> AM+E | AC12: ="Si" -> Si | AD12: 2 | AF12: =IF(AC12="Non","AM+e","AM+E") -> AM+E | AG12: =IFERROR(IF(OR(AD12="NS",AD12="+CT",AD12="<15días",AD12="<15",AD12="Non D.",AF12=""),0,IF(BH12-AP12<0,0,BH12-AP12)),0) -> 0 | AH12: =IFERROR(IF(OR(AD12="+CT",AF12=""),0,ROUND(IF(MOD(AG12,30)=0,QUOTIENT(AG12,30)*VLOOKUP(C12&AF12,Importes!$A$2:$I$14,IF($I$7<DATE(2026,1,1),6,9),FALSE)*(IF($AE12>100,0,$AE12)/100),AG12*VLOOKUP(C12&AF12,Importes!$A$2:$I$14,IF($I$7<DATE(2026,1,1),5,8),FALSE)*(IF($AE12>100,0,$AE12)/100)),2)),0) -> 0 | AI12: =IFERROR(IF(AJ12="","",AE12),"") ->  | AJ12: =IFERROR(IF($M$8="Si",BK12,""),"") ->  | AK12: =IFERROR(IF(AJ12="","",IF(AJ12<180,AJ12*VLOOKUP(C12&"CP",Importes!$A$2:$I$14,IF($I$7<DATE(2026,1,1),5,8),FALSE)*(IF($AI12>100,0,$AI12)/100),IF(AJ12=180,VLOOKUP(C12&"CP",Importes!$A$2:$I$14,IF($I$7<DATE(2026,1,1),6,9),FALSE)*6*(IF($AI12>100,0,$AI12)/100),0))),0) ->  | AL12: =IFERROR(IF(AM12="","",AE12),"") ->  | AM12: =IFERROR(IF($M$8="Si",BN12,""),"") ->  | AN12: =IF(AM12="","",IF(AM12>0,ROUND(IF(MOD(AM12,30)=0,QUOTIENT(AM12,30)*VLOOKUP(C12&IF(AC12="Si","AM+E","AM"),Importes!$A$2:$I$14,IF($I$7<DATE(2026,1,1),6,9),FALSE)*(IF($AL12>100,0,$AL12)/100),AM12*VLOOKUP(C12&IF(AC12="Si","AM+E","AM"),Importes!$A$2:$I$14,IF($I$7<DATE(2026,1,1),5,8),FALSE)*(IF($AL12>100,0,$AL12)/100)),2),0)) ->  | AO12: =IFERROR(IF(ED12="NO","",ED12),"") ->  | AS12: =IF(AND(AR12<>"",O12>0),O12,"") ->  | AT12: Non | AW12: =IF($AH12>0,"X","") ->  | BG12: 100 | BH12: =IFERROR(IF(AF12="AM",DF12,IF(AF12="AM+E",DF12,IF(AF12="CP",DO12,IF(AF12="CV",DR12,IF(AF12="CV+E",DR12))))),0) -> 0 | BI12: =IFERROR(IF(OR(AD12="+CT",AF12=""),0,ROUND(IF(MOD(AG12,30)=0,QUOTIENT(AG12,30)*VLOOKUP(C12&AF12,Importes!$A$2:$I$14,IF($I$7<DATE(2026,1,1),6,9),FALSE)*(IF($AE12>100,0,$AE12)/100),AG12*VLOOKUP(C12&AF12,Importes!$A$2:$I$14,IF($I$7<DATE(2026,1,1),5,8),FALSE)*(IF($AE12>100,0,$AE12)/100)),2)),0) -> 0 | BJ12: =IFERROR(IF(BK12="","",BG12),"") ->  | BK12: =IFERROR(ROUND(IF($AI$8="Anual",0.5,1)*IF(AND(AF12="AM",OR(EA12="ALINT",EA12="AL")),DO12,IF(AND(AF12="AM",$AG$9="x"),DO12,"")),0),"") ->  | BL12: =IF(AJ12="","",IF(AJ12>0,ROUND(IF(MOD(AJ12,30)=0,QUOTIENT(AJ12,30)*VLOOKUP(C12&"CP",Importes!$A$2:$I$14,IF($I$7<DATE(2026,1,1),6,9),FALSE)*(IF($BG12>100,0,$BG12)/100),BK12*VLOOKUP(C12&"CP",Importes!$A$2:$I$14,IF($I$7<DATE(2026,1,1),5,8),FALSE)*(IF($BG12>100,0,$BG12)/100)),2),0)) ->  | BM12: =IFERROR(IF(BN12="","",BG12),"") ->  | BN12: =IFERROR(IF(OR(EA12="ALINT",EA12="AL"),DR12,""),"") ->  | BO12: =IF(AM12="","",IF(AM12>0,ROUND(IF(MOD(AM12,30)=0,QUOTIENT(AM12,30)*VLOOKUP(C12&IF(AC12="Si","AM+E","AM"),Importes!$A$2:$I$14,IF($I$7<DATE(2026,1,1),6,9),FALSE)*(IF($BG12>100,0,$BG12)/100),AM12*VLOOKUP(C12&IF(AC12="Si","AM+E","AM"),Importes!$A$2:$I$14,IF($I$7<DATE(2026,1,1),5,8),FALSE)*(IF($BG12>100,0,$BG12)/100)),2),0)) ->  | BP12: =IF(IFERROR(VLOOKUP(H12,$AU$12:$AU$44,1,FALSE),"")="","",1) ->  | BQ12: =IF(VALUE($A12)=0,"",IF(BQ$11="","",IF(AND($O12<>"",$O12<BQ$6),"",IF($N12>BQ$6,"",IF(AND(OR($O12="",$O12>=BQ$6),$AR12="",$AF12<>""),"F",IF(AND($AR12<=BQ$6,OR($AS12=$O12,$AS12>=BQ$6,IF($AS12="",$AU$5))),"h",IF($DE12>=BQ$6,"F",""))))))) ->  | CA12: =IF(VALUE($A12)=0,"",IF(CA$11="","",IF(AND($O12<>"",$O12<CA$6),"",IF($N12>CA$6,"",IF(AND(OR($O12="",$O12>=CA$6),$AR12="",$AF12<>""),"F",IF(AND($AR12<=CA$6,OR($AS12=$O12,$AS12>=CA$6,IF($AS12="",$AU$5))),"h",IF($DE12>=CA$6,"F",""))))))) ->  | CK12: =IF(VALUE($A12)=0,"",IF(CK$11="","",IF(AND($O12<>"",$O12<CK$6),"",IF($N12>CK$6,"",IF(AND(OR($O12="",$O12>=CK$6),$AR12="",$AF12<>""),"F",IF(AND($AR12<=CK$6,OR($AS12=$O12,$AS12>=CK$6,IF($AS12="",$AU$5))),"h",IF($DE12>=CK$6,"F",""))))))) ->  | CV12: =IF(COUNTIF(BP12:CU12,"F")=0,0,COUNTIF(BP12:CU12,"F")) -> 0 | CW12: =IF(COUNTIF(BP12:CU12,"h")=0,0,COUNTIF(BP12:CU12,"h")) -> 0 | CX12: =IF(OR(AQ12="IT",AQ12="AT"),DI12+1-(DH12),0) -> 0 | CY12: =IF(AQ12="AT",1,IF(IF(AQ12="IT",DI12+1-(DH12),0)>15,15,IF(AQ12="IT",DI12+1-(DH12),0))) -> 0 | CZ12: =IF(AQ12="IT",IF(CX12-CW12>15,15,CX12-CW12),IF(AQ12="AT",IF(CX12-CW12>1,1,CX12-CW12),0)) -> 0 | DA12: =IF(OR(AT12="SI",$DA$8="SI"),CY12-CZ12,IF(AND(AT12<>"SI",OR($DA$8="NON",$DA$8="<<>>")),IF(CZ12<=3,IF(CY12-CZ12-3<=0,IF(AQ12="AT",IF(CZ12=1,0,1),0),CY12-CZ12-(3-CZ12)),CY12-CZ12),0)) -> 0 | DB12: =IF(COLUMN()>0,5,5) -> 5 | DC12: 0 | DD12: =IF(N12<$AH$8,$AH$8,N12) -> 2025-11-01 | DE12: =IF(O12="",$AU$5,O12) -> 2025-11-30 | DF12: =IF(CV12+DG12>30,30,IF(AND(MONTH($I$7)=2,CV12>=DAY($AU$5),OR(AR12="",AR12<=$I$7)),30,IF(CV12+DA12>30,30,CV12+DA12))) -> 0 | DG12: =DP12 -> 0 | DH12: =IF(AQ12="at",IF(DJ12<$AR$7,DJ12,IF(DJ12<$AH$8,$AH$8-1,DJ12)),DK12) -> 2025-01-01 | DI12: =IF(OR(AS12="",AS12>$AU$5),IF(O12="",$AU$5,IF(O12>$AU$5,$AU$5,O12)),AS12) -> 2025-11-30 | DJ12: =IF(AQ12="AT",DK12,0) -> 00:00:00 | DK12: =IF(IF(AR12="",0,AR12)+3=3,VALUE(1&"-"&1&"-"&$AU$7),AR12) -> 2025-01-01 | DL12: =CW12 -> 0 | DM12: =IF(OR(AQ12="IT",AQ12="AT"),IF(DH12<DD12,DD12-(DH12),0),0) -> 0 | DN12: =IF(OR(AQ12="IT",AQ12="AT"),DI12+1-(DH12),0) -> 0 | DO12: =IF(OR(AQ12="IT",AQ12="AT"),IF(DM12>=15,12,IF(DM12<15,DM12,DM12-3)),0) -> 0 | DP12: =IF(AND(AQ12="AT",DN12-DL12=0),1,IF(AQ12="IT",DZ12,0)) -> 0 | DQ12: =IF(N12<VALUE(1&"-"&1&"-"&IF(YEAR($AU$5)<$AU$7,YEAR($AU$5),$AU$7)),VALUE(1&"-"&1&"-"&IF(YEAR($AU$5)<$AU$7,YEAR($AU$5),$AU$7)),N12) -> 2025-01-01 | DR12: =IF(O12="",0,(DAYS360(DQ12,O12)+1)/30*2.5) -> 0 | DS12: =IFERROR(#REF!+IF(EE12=$I$7,1,0),0) -> 0 | DT12: =IF(DS12="","",IF(MOD(DS12,10)=0,QUOTIENT(DS12,10),QUOTIENT(DS12,10)+1)) -> 0 | DU12: =QUOTIENT(COUNTIF(EE:EE,$I$7),10)+IF(MOD(COUNTIF(EE:EE,$I$7),10)>0,1,0) -> 0 | DV12: =IF(DO12>=3,3,DO12) -> 0 | DW12: =IF(OR($DY$8="SI",$AT12="SI"),DV12,3-DV12) -> 3 | DX12: =IF(DM12>15,IF(OR($DY$8="SI",$AT12="SI"),15,12),IF(OR($DY$8="SI",$AT12="SI"),DM12,DM12-DV12)) -> 0 | DY12: =IF(DN12-DW12-DV12<0,0,IF(DN12-DW12-DV12>12,IF(OR($DY$8="SI",$AT12="SI"),15,12),IF(DN12-DW12-DV12>CW12,CW12-DW12,DN12-DW12-DV12))) -> 0 | DZ12: =IF(DY12-DX12>=IF(OR($DY$8="SI",$AT12="SI"),15,12),IF(OR($DY$8="SI",$AT12="SI"),15,12),DY12-DX12) -> 0 | EA12: =EB12&EC12&IF(OR(P12=510,P12=410),"INT","") -> AA | EB12: =IF(YEAR(N12)<YEAR($I$7),"A",IF(YEAR(N12)=YEAR($I$7),IF(MONTH(N12)<=MONTH($I$7),"A","NO"))) -> A | EC12: =IF(O12="","A",IF(YEAR(O12)>YEAR($I$7),"A",IF(YEAR(O12)=YEAR($I$7),IF(MONTH(O12)>MONTH($I$7),"A",IF(MONTH(O12)=MONTH($I$7),"L","B"))))) -> A | ED12: =IFERROR(IF(L12<33,"NO",IF(OR(EA12="AA",EA12="AL"),"SI",IF(OR(EA12="AAINT",EA12="ALINT"),"SI",""))),"") -> NO | EE12: =IFERROR(IF(ED12="SI",$I$7,""),0) ->  | EG12: =IFERROR(SUM(EH12:EL12),0) -> 148 | EH12: =IF(OR(EU12=0,FG12=0),0,IF(FG12-EU12+1>30,30,FG12-EU12+1)) -> 30 | EI12: =IF(OR(EV12=0,FH12=0),0,IF(FH12-EV12+1>30,30,FH12-EV12+1)) -> 30 | EJ12: =IF(OR(EW12=0,FI12=0),0,IF(FI12-EW12+1>30,30,FI12-EW12+1)) -> 30 | EK12: =IF(OR(EX12=0,FJ12=0),0,IF(FJ12-EX12+1>30,30,FJ12-EX12+1)) -> 30 | EL12: =IF(OR(EY12=0,FK12=0),0,IF(FK12-EY12+1>30,30,FK12-EY12+1)) -> 28 | EM12: =IFERROR(SUM(EN12:ET12),0) -> 210 | EN12: =IF(OR(EZ12=0,FL12=0),0,IF(FL12-EZ12+1>30,30,FL12-EZ12+1)) -> 30 | EO12: =IF(OR(FA12=0,FM12=0),0,IF(FM12-FA12+1>30,30,FM12-FA12+1)) -> 30 | EP12: =IF(IF(OR(FB12=0,FN12=0),0,IF(FN12-FB12+1>30,30,FN12-FB12+1))>=28,30,IF(OR(FB12=0,FN12=0),0,IF(FN12-FB12+1>30,30,FN12-FB12+1))) -> 30 | EQ12: =IF(OR(FC12=0,FO12=0),0,IF(FO12-FC12+1>30,30,FO12-FC12+1)) -> 30 | ER12: =IF(OR(FD12=0,FP12=0),0,IF(FP12-FD12+1>30,30,FP12-FD12+1)) -> 30 | ES12: =IF(OR(FE12=0,FQ12=0),0,IF(FQ12-FE12+1>30,30,FQ12-FE12+1)) -> 30 | ET12: =IF(OR(FF12=0,FR12=0),0,IF(FR12-FF12+1>30,30,FR12-FF12+1)) -> 30 | EU12: =IFERROR(IF($N12<=EU$11,1,IF(YEAR($N12)=YEAR(EU$11),IF(MONTH($N12)=MONTH(EU$11),DAY($N12),0))),0) -> 1 | EV12: 1 | EW12: 1 | EX12: 1 | EY12: 1 | EZ12: 1 | FA12: 1 | FB12: 1 | FC12: 1 | FD12: 1 | FE12: 1 | FF12: 1 | FG12: =IFERROR(IF(OR($O12="",$O12=0),DAY(FG$11),IF($O12>=FG$11,DAY(FG$11),IF(MONTH($O12)=MONTH(FG$11),DAY($O12),0))),0) -> 31 | FH12: 30 | FI12: 31 | FJ12: 31 | FK12: 28 | FL12: 31 | FM12: 30 | FN12: 31 | FO12: 30 | FP12: 31 | FQ12: 31 | FR12: 30
C13: =IF(AND(K13="",L13=""),"",IF(L13>=65,1,IF(AND(L13>=33,OR(K13="P. Cerebral",K13="Enf. Mental",K13="D. Intelectual",K13="Psíquica")),1,0))) ->  | D13: =IFERROR(MID(G13,1,2)&(MID(G13,FIND(" ",G13,1)+1,2))&IFERROR((MID(G13,FIND(",",G13,1)+2,1)),MID(G13,FIND(" ",G13,FIND(" ",G13,1)+1)+1,1)),"") ->  | Q13: =IFERROR(VLOOKUP(P13,Importes!L:Q,2,FALSE),"") ->  | R13: =IF(G13="","",$M$4) ->  | S13: =IF(G13="","",$M$2) ->  | T13: =IF(G13="","",$Q$2) ->  | U13: =IF(G13="","",IF($AH$8="Extra Inverno","1/12/2016",IF($AH$8="Extra Verán","1/6/2017",$AH$8))) ->  | V13: =IF(G13="","",$AN$9) ->  | W13: =IF(G13="","",IF($AG$8="x","Mensualidade",IF(AND($AG$8="",$AG$9="x",$I$7=DATE(YEAR($I$7),12,1)),"Extra Inverno",IF(AND($AG$8="",$AG$9="x",$I$7=DATE(YEAR($I$7),6,1)),"Extra Verán","")))) ->  | X13: =$AH$9 -> 0 | Y13: =IF(I13="","",DAY(I13)&"/"&MONTH(I13)&"/"&YEAR(I13)) ->  | Z13: =IF(N13="","",DAY(N13)&"/"&MONTH(N13)&"/"&YEAR(N13)) ->  | AA13: =IF(O13="","",DAY(O13)&"/"&MONTH(O13)&"/"&YEAR(O13)) ->  | AB13: =MID(AF13,1,4) -> AM+E | AC13: ="Si" -> Si | AF13: =IF(AC13="Non","AM+e","AM+E") -> AM+E | AG13: =IFERROR(IF(OR(AD13="NS",AD13="+CT",AD13="<15días",AD13="<15",AD13="Non D.",AF13=""),0,IF(BH13-AP13<0,0,BH13-AP13)),0) -> 0 | AH13: =IFERROR(IF(OR(AD13="+CT",AF13=""),0,ROUND(IF(MOD(AG13,30)=0,QUOTIENT(AG13,30)*VLOOKUP(C13&AF13,Importes!$A$2:$I$14,IF($I$7<DATE(2026,1,1),6,9),FALSE)*(IF($AE13>100,0,$AE13)/100),AG13*VLOOKUP(C13&AF13,Importes!$A$2:$I$14,IF($I$7<DATE(2026,1,1),5,8),FALSE)*(IF($AE13>100,0,$AE13)/100)),2)),0) -> 0 | AI13: =IFERROR(IF(AJ13="","",AE13),"") ->  | AJ13: =IFERROR(IF($M$8="Si",BK13,""),"") ->  | AK13: =IFERROR(IF(AJ13="","",IF(AJ13<180,AJ13*VLOOKUP(C13&"CP",Importes!$A$2:$F$14,5,FALSE)*(IF($AI13>100,0,$AI13)/100),IF(AJ13=180,VLOOKUP(C13&"CP",Importes!$A$2:$F$14,6,FALSE)*6*(IF($AI13>100,0,$AI13)/100),0))),0) ->  | AN13: =IF(AM13="","",IF(AM13>0,ROUND(IF(MOD(AM13,30)=0,QUOTIENT(AM13,30)*VLOOKUP(C13&IF(AC13="Si","AM+E","AM"),Importes!$A$2:$I$14,IF($I$7<DATE(2026,1,1),6,9),FALSE)*(IF($AL13>100,0,$AL13)/100),AM13*VLOOKUP(C13&IF(AC13="Si","AM+E","AM"),Importes!$A$2:$I$14,IF($I$7<DATE(2026,1,1),5,8),FALSE)*(IF($AL13>100,0,$AL13)/100)),2),0)) ->  | AO13: =IFERROR(IF(ED13="NO","",ED13),"") ->  | AS13: =IF(AND(AR13<>"",O13>0),O13,"") ->  | AW13: =IF($AH13>0,"X","") ->  | BH13: =IFERROR(IF(AF13="AM",DF13,IF(AF13="AM+E",DF13,IF(AF13="CP",DO13,IF(AF13="CV",DR13,IF(AF13="CV+E",DR13))))),0) -> 0 | BI13: =IFERROR(IF(OR(AD13="+CT",AF13=""),0,ROUND(IF(MOD(AG13,30)=0,QUOTIENT(AG13,30)*VLOOKUP(C13&AF13,Importes!$A$2:$F$14,6,FALSE)*(IF($AE13>100,0,$AE13)/100),AG13*VLOOKUP(C13&AF13,Importes!$A$2:$F$14,5,FALSE)*(IF($AE13>100,0,$AE13)/100)),2)),0) -> 0 | BJ13: =IFERROR(IF(BK13="","",BG13),"") ->  | BK13: =IFERROR(ROUND(IF($AI$8="Anual",0.5,1)*IF(AND(AF13="AM",OR(EA13="ALINT",EA13="AL")),DO13,IF(AND(AF13="AM",$AG$9="x"),DO13,"")),0),"") ->  | BL13: =IF(AJ13="","",IF(AJ13>0,ROUND(IF(MOD(AJ13,30)=0,QUOTIENT(AJ13,30)*VLOOKUP(C13&"CP",Importes!$A$2:$F$14,6,FALSE)*(IF($BG13>100,0,$BG13)/100),BK13*VLOOKUP(C13&"CP",Importes!$A$2:$F$14,5,FALSE)*(IF($BG13>100,0,$BG13)/100)),2),0)) ->  | BM13: =IFERROR(IF(BN13="","",BG13),"") ->  | BN13: =IFERROR(IF(OR(EA13="ALINT",EA13="AL"),DR13,""),"") ->  | BO13: =IF(AM13="","",IF(AM13>0,ROUND(IF(MOD(AM13,30)=0,QUOTIENT(AM13,30)*VLOOKUP(C13&IF(AC13="Si","AM+E","AM"),Importes!$A$2:$F$14,6,FALSE)*(IF($BG13>100,0,$BG13)/100),AM13*VLOOKUP(C13&IF(AC13="Si","AM+E","AM"),Importes!$A$2:$F$14,5,FALSE)*(IF($BG13>100,0,$BG13)/100)),2),0)) ->  | BP13: =IF(IFERROR(VLOOKUP(H13,$AU$12:$AU$45,1,FALSE),"")="","",1) ->  | BQ13: =IF(VALUE($A13)=0,"",IF(BQ$11="","",IF(AND($O13<>"",$O13<BQ$6),"",IF($N13>BQ$6,"",IF(AND(OR($O13="",$O13>=BQ$6),$AR13="",$AF13<>""),"F",IF(AND($AR13<=BQ$6,OR($AS13=$O13,$AS13>=BQ$6,IF($AS13="",$AU$5))),"h",IF($DE13>=BQ$6,"F",""))))))) ->  | CV13: =IF(COUNTIF(BP13:CU13,"F")=0,0,COUNTIF(BP13:CU13,"F")) -> 0 | CW13: =IF(COUNTIF(BP13:CU13,"h")=0,0,COUNTIF(BP13:CU13,"h")) -> 0 | CX13: =IF(OR(AQ13="IT",AQ13="AT"),DI13+1-(DH13),0) -> 0 | CY13: =IF(AQ13="AT",1,IF(IF(AQ13="IT",DI13+1-(DH13),0)>15,15,IF(AQ13="IT",DI13+1-(DH13),0))) -> 0 | CZ13: =IF(AQ13="IT",IF(CX13-CW13>15,15,CX13-CW13),IF(AQ13="AT",IF(CX13-CW13>1,1,CX13-CW13),0)) -> 0 | DA13: =IF(OR(AT13="SI",$DA$8="SI"),CY13-CZ13,IF(AND(AT13<>"SI",OR($DA$8="NON",$DA$8="<<>>")),IF(CZ13<=3,IF(CY13-CZ13-3<=0,IF(AQ13="AT",IF(CZ13=1,0,1),0),CY13-CZ13-(3-CZ13)),CY13-CZ13),0)) -> 0 | DB13: =IF(COLUMN()>0,5,5) -> 5 | DD13: =IF(N13<$AH$8,$AH$8,N13) -> 2025-11-01 | DE13: =IF(O13="",$AU$5,O13) -> 2025-11-30 | DF13: =IF(CV13+DG13>30,30,IF(AND(MONTH($I$7)=2,CV13>=DAY($AU$5),OR(AR13="",AR13<=$I$7)),30,IF(CV13+DA13>30,30,CV13+DA13))) -> 0 | DG13: =DP13 -> 0 | DH13: =IF(AQ13="at",IF(DJ13<$AR$7,DJ13,IF(DJ13<$AH$8,$AH$8-1,DJ13)),DK13) -> 2025-01-01 | DI13: =IF(OR(AS13="",AS13>$AU$5),IF(O13="",$AU$5,IF(O13>$AU$5,$AU$5,O13)),AS13) -> 2025-11-30 | DJ13: =IF(AQ13="AT",DK13,0) -> 00:00:00 | DK13: =IF(IF(AR13="",0,AR13)+3=3,VALUE(1&"-"&1&"-"&$AU$7),AR13) -> 2025-01-01 | DL13: =CW13 -> 0 | DM13: =IF(OR(AQ13="IT",AQ13="AT"),IF(DH13<DD13,DD13-(DH13),0),0) -> 0 | DN13: =IF(OR(AQ13="IT",AQ13="AT"),DI13+1-(DH13),0) -> 0 | DO13: =IF(OR(AQ13="IT",AQ13="AT"),IF(DM13>=15,12,IF(DM13<15,DM13,DM13-3)),0) -> 0 | DP13: =IF(AND(AQ13="AT",DN13-DL13=0),1,IF(AQ13="IT",DZ13,0)) -> 0 | DQ13: =IF(N13<VALUE(1&"-"&1&"-"&IF(YEAR($AU$5)<$AU$7,YEAR($AU$5),$AU$7)),VALUE(1&"-"&1&"-"&IF(YEAR($AU$5)<$AU$7,YEAR($AU$5),$AU$7)),N13) -> 2025-01-01 | DR13: =IF(O13="",0,(DAYS360(DQ13,O13)+1)/30*2.5) -> 0 | DS13: =IFERROR(DS12+IF(EE13=$I$7,1,0),0) -> 0 | DT13: =IF(DS13="","",IF(MOD(DS13,10)=0,QUOTIENT(DS13,10),QUOTIENT(DS13,10)+1)) -> 0 | DU13: 0 | DV13: =IF(DO13>=3,3,DO13) -> 0 | DW13: =IF(OR($DY$8="SI",$AT13="SI"),DV13,3-DV13) -> 3 | DX13: =IF(DM13>15,IF(OR($DY$8="SI",$AT13="SI"),15,12),IF(OR($DY$8="SI",$AT13="SI"),DM13,DM13-DV13)) -> 0 | DY13: =IF(DN13-DW13-DV13<0,0,IF(DN13-DW13-DV13>12,IF(OR($DY$8="SI",$AT13="SI"),15,12),IF(DN13-DW13-DV13>CW13,CW13-DW13,DN13-DW13-DV13))) -> 0 | DZ13: =IF(DY13-DX13>=IF(OR($DY$8="SI",$AT13="SI"),15,12),IF(OR($DY$8="SI",$AT13="SI"),15,12),DY13-DX13) -> 0 | EA13: =EB13&EC13&IF(OR(P13=510,P13=410),"INT","") -> AA | EB13: =IF(YEAR(N13)<YEAR($I$7),"A",IF(YEAR(N13)=YEAR($I$7),IF(MONTH(N13)<=MONTH($I$7),"A","NO"))) -> A | EC13: =IF(O13="","A",IF(YEAR(O13)>YEAR($I$7),"A",IF(YEAR(O13)=YEAR($I$7),IF(MONTH(O13)>MONTH($I$7),"A",IF(MONTH(O13)=MONTH($I$7),"L","B"))))) -> A | ED13: =IFERROR(IF(L13<33,"NO",IF(OR(EA13="AA",EA13="AL"),"SI",IF(OR(EA13="AAINT",EA13="ALINT"),"SI",""))),"") -> NO | EE13: =IFERROR(IF(ED13="SI",$I$7,""),0) ->  | EG13: =IFERROR(SUM(EH13:EL13),0) -> 30 | EH13: =IF(OR(EU13=0,FG13=0),0,IF(FG13-EU13+1>30,30,FG13-EU13+1)) -> 30 | EI13: =IF(OR(EV13=0,FH13=0),0,IF(FH13-EV13+1>30,30,FH13-EV13+1)) -> 0 | EJ13: =IF(OR(EW13=0,FI13=0),0,IF(FI13-EW13+1>30,30,FI13-EW13+1)) -> 0 | EK13: =IF(OR(EX13=0,FJ13=0),0,IF(FJ13-EX13+1>30,30,FJ13-EX13+1)) -> 0 | EL13: =IF(OR(EY13=0,FK13=0),0,IF(FK13-EY13+1>30,30,FK13-EY13+1)) -> 0 | EM13: =IFERROR(SUM(EN13:ET13),0) -> 0 | EN13: =IF(OR(EZ13=0,FL13=0),0,IF(FL13-EZ13+1>30,30,FL13-EZ13+1)) -> 0 | EO13: =IF(OR(FA13=0,FM13=0),0,IF(FM13-FA13+1>30,30,FM13-FA13+1)) -> 0 | EP13: =IF(IF(OR(FB13=0,FN13=0),0,IF(FN13-FB13+1>30,30,FN13-FB13+1))>=28,30,IF(OR(FB13=0,FN13=0),0,IF(FN13-FB13+1>30,30,FN13-FB13+1))) -> 0 | EQ13: =IF(OR(FC13=0,FO13=0),0,IF(FO13-FC13+1>30,30,FO13-FC13+1)) -> 0 | ER13: =IF(OR(FD13=0,FP13=0),0,IF(FP13-FD13+1>30,30,FP13-FD13+1)) -> 0 | ES13: =IF(OR(FE13=0,FQ13=0),0,IF(FQ13-FE13+1>30,30,FQ13-FE13+1)) -> 0 | ET13: =IF(OR(FF13=0,FR13=0),0,IF(FR13-FF13+1>30,30,FR13-FF13+1)) -> 0 | EU13: =IFERROR(IF($N13<=EU$11,1,IF(YEAR($N13)=YEAR(EU$11),IF(MONTH($N13)=MONTH(EU$11),DAY($N13),0))),0) -> 1 | FG13: =IFERROR(IF(OR($O13="",$O13=0),DAY(FG$11),IF($O13>=FG$11,DAY(FG$11),IF(MONTH($O13)=MONTH(FG$11),DAY($O13),0))),0) -> 31
B14: 3 | Q14: =IFERROR(VLOOKUP(P14,Importes!L:Q,2,FALSE),"") ->  | S14: =IF(G14="","",#REF!) ->  | T14: =IF(G14="","",#REF!) ->  | W14: =IF(G14="","",IF($AG$8="x","Mensualidade",IF(AND($AG$8="",#REF!="x",$AH$8=DATE(YEAR($CU$7),12,1)),"Extra Inverno",IF(AND($AG$8="",#REF!="x",$AH$8=DATE(YEAR($CV$8),6,1)),"Extra Verán","")))) ->  | X14: 0 | AB14: AM+E | AC14: Si | AD14: 3 | AF14: AM+E | AG14: 0 | AH14: =IFERROR(IF(OR(AD14="+CT",AF14=""),0,ROUND(IF(MOD(AG14,30)=0,QUOTIENT(AG14,30)*VLOOKUP(C14&AF14,Importes!$A$2:$I$14,IF($I$7<DATE(2026,1,1),6,9),FALSE)*(IF($AE14>100,0,$AE14)/100),AG14*VLOOKUP(C14&AF14,Importes!$A$2:$I$14,IF($I$7<DATE(2026,1,1),5,8),FALSE)*(IF($AE14>100,0,$AE14)/100)),2)),0) -> 0 | AK14: =IFERROR(IF(AJ14="","",IF(AJ14<180,AJ14*VLOOKUP(C14&"CP",Importes!$A$2:$I$14,IF($I$7<DATE(2026,1,1),5,8),FALSE)*(IF($AI14>100,0,$AI14)/100),IF(AJ14=180,VLOOKUP(C14&"CP",Importes!$A$2:$I$14,IF($I$7<DATE(2026,1,1),6,9),FALSE)*6*(IF($AI14>100,0,$AI14)/100),0))),0) ->  | AN14: =IF(AM14="","",IF(AM14>0,ROUND(IF(MOD(AM14,30)=0,QUOTIENT(AM14,30)*VLOOKUP(C14&IF(AC14="Si","AM+E","AM"),Importes!$A$2:$I$14,IF($I$7<DATE(2026,1,1),6,9),FALSE)*(IF($AL14>100,0,$AL14)/100),AM14*VLOOKUP(C14&IF(AC14="Si","AM+E","AM"),Importes!$A$2:$I$14,IF($I$7<DATE(2026,1,1),5,8),FALSE)*(IF($AL14>100,0,$AL14)/100)),2),0)) ->  | AT14: Non | BG14: 75 | BH14: 0 | BI14: =IFERROR(IF(OR(AD14="+CT",AF14=""),0,ROUND(IF(MOD(AG14,30)=0,QUOTIENT(AG14,30)*VLOOKUP(C14&AF14,Importes!$A$2:$I$14,IF($I$7<DATE(2026,1,1),6,9),FALSE)*(IF($AE14>100,0,$AE14)/100),AG14*VLOOKUP(C14&AF14,Importes!$A$2:$I$14,IF($I$7<DATE(2026,1,1),5,8),FALSE)*(IF($AE14>100,0,$AE14)/100)),2)),0) -> 0 | BL14: =IF(AJ14="","",IF(AJ14>0,ROUND(IF(MOD(AJ14,30)=0,QUOTIENT(AJ14,30)*VLOOKUP(C14&"CP",Importes!$A$2:$I$14,IF($I$7<DATE(2026,1,1),6,9),FALSE)*(IF($BG14>100,0,$BG14)/100),BK14*VLOOKUP(C14&"CP",Importes!$A$2:$I$14,IF($I$7<DATE(2026,1,1),5,8),FALSE)*(IF($BG14>100,0,$BG14)/100)),2),0)) ->  | BO14: =IF(AM14="","",IF(AM14>0,ROUND(IF(MOD(AM14,30)=0,QUOTIENT(AM14,30)*VLOOKUP(C14&IF(AC14="Si","AM+E","AM"),Importes!$A$2:$I$14,IF($I$7<DATE(2026,1,1),6,9),FALSE)*(IF($BG14>100,0,$BG14)/100),AM14*VLOOKUP(C14&IF(AC14="Si","AM+E","AM"),Importes!$A$2:$I$14,IF($I$7<DATE(2026,1,1),5,8),FALSE)*(IF($BG14>100,0,$BG14)/100)),2),0)) ->  | BP14: =IF(IFERROR(VLOOKUP(H14,$AU$12:$AU$44,1,FALSE),"")="","",1) ->  | CV14: 0 | CW14: 0 | CX14: 0 | CY14: 0 | CZ14: 0 | DA14: 0 | DB14: 5 | DC14: 0 | DD14: 2025-11-01 | DE14: 2025-11-30 | DF14: 0 | DG14: 0 | DH14: 2025-01-01 | DI14: 2025-11-30 | DJ14: 00:00:00 | DK14: 2025-01-01 | DL14: 0 | DM14: 0 | DN14: 0 | DO14: 0 | DP14: 0 | DQ14: 2025-01-01 | DR14: 0 | DS14: =IFERROR(DS12+IF(EE14=$I$7,1,0),0) -> 0 | DT14: 0 | DU14: 0 | DV14: 0 | DW14: 3 | DX14: 0 | DY14: 0 | DZ14: 0 | EA14: AA | EB14: A | EC14: A | ED14: NO | EG14: 148 | EH14: 30 | EI14: 30 | EJ14: 30 | EK14: 30 | EL14: 28 | EM14: 210 | EN14: 30 | EO14: 30 | EP14: 30 | EQ14: 30 | ER14: 30 | ES14: 30 | ET14: 30 | EU14: 1 | EV14: 1 | EW14: 1 | EX14: 1 | EY14: 1 | EZ14: 1 | FA14: 1 | FB14: 1 | FC14: 1 | FD14: 1 | FE14: 1 | FF14: 1 | FG14: 31 | FH14: 30 | FI14: 31 | FJ14: 31 | FK14: 28 | FL14: 31 | FM14: 30 | FN14: 31 | FO14: 30 | FP14: 31 | FQ14: 31 | FR14: 30
B15: 5 | C15: =IF(AND(K15="",L15=""),"",IF(L15>=65,1,IF(AND(L15>=33,OR(K15="P. Cerebral",K15="Enf. Mental",K15="D. Intelectual",K15="Psíquica")),1,0))) ->  | D15: =IFERROR(MID(G15,1,2)&(MID(G15,FIND(" ",G15,1)+1,2))&IFERROR((MID(G15,FIND(",",G15,1)+2,1)),MID(G15,FIND(" ",G15,FIND(" ",G15,1)+1)+1,1)),"") ->  | Q15: =IFERROR(VLOOKUP(P15,Importes!L:Q,2,FALSE),"") ->  | S15: =IF(G15="","",#REF!) ->  | T15: =IF(G15="","",#REF!) ->  | W15: =IF(G15="","",IF($AG$8="x","Mensualidade",IF(AND($AG$8="",#REF!="x",$AH$8=DATE(YEAR($CU$7),12,1)),"Extra Inverno",IF(AND($AG$8="",#REF!="x",$AH$8=DATE(YEAR($CV$8),6,1)),"Extra Verán","")))) ->  | X15: 0 | AB15: AM+E | AC15: Si | AD15: 4 | AF15: AM+E | AG15: 0 | AH15: =IFERROR(IF(OR(AD15="+CT",AF15=""),0,ROUND(IF(MOD(AG15,30)=0,QUOTIENT(AG15,30)*VLOOKUP(C15&AF15,Importes!$A$2:$I$14,IF($I$7<DATE(2026,1,1),6,9),FALSE)*(IF($AE15>100,0,$AE15)/100),AG15*VLOOKUP(C15&AF15,Importes!$A$2:$I$14,IF($I$7<DATE(2026,1,1),5,8),FALSE)*(IF($AE15>100,0,$AE15)/100)),2)),0) -> 0 | AI15: =IFERROR(IF(AJ15="","",AE15),"") ->  | AJ15: =IFERROR(IF($M$8="Si",BK15,""),"") ->  | AK15: =IFERROR(IF(AJ15="","",IF(AJ15<180,AJ15*VLOOKUP(C15&"CP",Importes!$A$2:$I$14,IF($I$7<DATE(2026,1,1),5,8),FALSE)*(IF($AI15>100,0,$AI15)/100),IF(AJ15=180,VLOOKUP(C15&"CP",Importes!$A$2:$I$14,IF($I$7<DATE(2026,1,1),6,9),FALSE)*6*(IF($AI15>100,0,$AI15)/100),0))),0) ->  | AL15: =IFERROR(IF(AM15="","",AE15),"") ->  | AN15: =IF(AM15="","",IF(AM15>0,ROUND(IF(MOD(AM15,30)=0,QUOTIENT(AM15,30)*VLOOKUP(C15&IF(AC15="Si","AM+E","AM"),Importes!$A$2:$I$14,IF($I$7<DATE(2026,1,1),6,9),FALSE)*(IF($AL15>100,0,$AL15)/100),AM15*VLOOKUP(C15&IF(AC15="Si","AM+E","AM"),Importes!$A$2:$I$14,IF($I$7<DATE(2026,1,1),5,8),FALSE)*(IF($AL15>100,0,$AL15)/100)),2),0)) ->  | AO15: =IFERROR(IF(ED15="NO","",ED15),"") ->  | AR15: =IF(AQ15="IT",N15,IF(AQ15="AT",N15,"")) ->  | AS15: =IF(AND(AR15<>"",O15>0),O15,"") ->  | AT15: Non | BG15: 62.5 | BH15: 0 | BI15: =IFERROR(IF(OR(AD15="+CT",AF15=""),0,ROUND(IF(MOD(AG15,30)=0,QUOTIENT(AG15,30)*VLOOKUP(C15&AF15,Importes!$A$2:$I$14,IF($I$7<DATE(2026,1,1),6,9),FALSE)*(IF($AE15>100,0,$AE15)/100),AG15*VLOOKUP(C15&AF15,Importes!$A$2:$I$14,IF($I$7<DATE(2026,1,1),5,8),FALSE)*(IF($AE15>100,0,$AE15)/100)),2)),0) -> 0 | BJ15: =IFERROR(IF(BK15="","",BG15),"") ->  | BL15: =IF(AJ15="","",IF(AJ15>0,ROUND(IF(MOD(AJ15,30)=0,QUOTIENT(AJ15,30)*VLOOKUP(C15&"CP",Importes!$A$2:$I$14,IF($I$7<DATE(2026,1,1),6,9),FALSE)*(IF($BG15>100,0,$BG15)/100),BK15*VLOOKUP(C15&"CP",Importes!$A$2:$I$14,IF($I$7<DATE(2026,1,1),5,8),FALSE)*(IF($BG15>100,0,$BG15)/100)),2),0)) ->  | BM15: =IFERROR(IF(BN15="","",BG15),"") ->  | BN15: =IFERROR(IF(OR(EA15="ALINT",EA15="AL"),DR15,""),"") ->  | BO15: =IF(AM15="","",IF(AM15>0,ROUND(IF(MOD(AM15,30)=0,QUOTIENT(AM15,30)*VLOOKUP(C15&IF(AC15="Si","AM+E","AM"),Importes!$A$2:$I$14,IF($I$7<DATE(2026,1,1),6,9),FALSE)*(IF($BG15>100,0,$BG15)/100),AM15*VLOOKUP(C15&IF(AC15="Si","AM+E","AM"),Importes!$A$2:$I$14,IF($I$7<DATE(2026,1,1),5,8),FALSE)*(IF($BG15>100,0,$BG15)/100)),2),0)) ->  | CV15: =IF(COUNTIF(BP15:CU15,"F")=0,0,COUNTIF(BP15:CU15,"F")) -> 0 | CW15: =IF(COUNTIF(BP15:CU15,"h")=0,0,COUNTIF(BP15:CU15,"h")) -> 0 | CX15: =IF(OR(AQ15="IT",AQ15="AT"),DI15+1-(DH15),0) -> 0 | CY15: =IF(AQ15="AT",1,IF(IF(AQ15="IT",DI15+1-(DH15),0)>15,15,IF(AQ15="IT",DI15+1-(DH15),0))) -> 0 | CZ15: =IF(AQ15="IT",IF(CX15-CW15>15,15,CX15-CW15),IF(AQ15="AT",IF(CX15-CW15>1,1,CX15-CW15),0)) -> 0 | DA15: =IF(OR(AT15="SI",$DA$8="SI"),CY15-CZ15,IF(AND(AT15<>"SI",OR($DA$8="NON",$DA$8="<<>>")),IF(CZ15<=3,IF(CY15-CZ15-3<=0,IF(AQ15="AT",IF(CZ15=1,0,1),0),CY15-CZ15-(3-CZ15)),CY15-CZ15),0)) -> 0 | DB15: 5 | DC15: 0 | DD15: =IF(N15<$AH$8,$AH$8,N15) -> 2025-11-01 | DE15: =IF(O15="",$AU$5,O15) -> 2025-11-30 | DF15: =IF(CV15+DG15>30,30,IF(AND(MONTH($I$7)=2,CV15>=DAY($AU$5),OR(AR15="",AR15<=$I$7)),30,IF(CV15+DA15>30,30,CV15+DA15))) -> 0 | DG15: =DP15 -> 0 | DH15: =IF(AQ15="at",IF(DJ15<$AR$7,DJ15,IF(DJ15<$AH$8,$AH$8-1,DJ15)),DK15) -> 2025-01-01 | DI15: =IF(OR(AS15="",AS15>$AU$5),IF(O15="",$AU$5,IF(O15>$AU$5,$AU$5,O15)),AS15) -> 2025-11-30 | DJ15: =IF(AQ15="AT",DK15,0) -> 00:00:00 | DK15: =IF(IF(AR15="",0,AR15)+3=3,VALUE(1&"-"&1&"-"&$AU$7),AR15) -> 2025-01-01 | DL15: =CW15 -> 0 | DM15: =IF(OR(AQ15="IT",AQ15="AT"),IF(DH15<DD15,DD15-(DH15),0),0) -> 0 | DN15: =IF(OR(AQ15="IT",AQ15="AT"),DI15+1-(DH15),0) -> 0 | DO15: =IF(OR(AQ15="IT",AQ15="AT"),IF(DM15>=15,12,IF(DM15<15,DM15,DM15-3)),0) -> 0 | DP15: =IF(AND(AQ15="AT",DN15-DL15=0),1,IF(AQ15="IT",DZ15,0)) -> 0 | DQ15: =IF(N15<VALUE(1&"-"&1&"-"&IF(YEAR($AU$5)<$AU$7,YEAR($AU$5),$AU$7)),VALUE(1&"-"&1&"-"&IF(YEAR($AU$5)<$AU$7,YEAR($AU$5),$AU$7)),N15) -> 2025-01-01 | DR15: =IF(O15="",0,(DAYS360(DQ15,O15)+1)/30*2.5) -> 0 | DS15: =IFERROR(DS14+IF(EE15=$I$7,1,0),0) -> 0 | DT15: =IF(DS15="","",IF(MOD(DS15,10)=0,QUOTIENT(DS15,10),QUOTIENT(DS15,10)+1)) -> 0 | DU15: 0 | DV15: =IF(DO15>=3,3,DO15) -> 0 | DW15: =IF(OR($DY$8="SI",$AT15="SI"),DV15,3-DV15) -> 3 | DX15: =IF(DM15>15,IF(OR($DY$8="SI",$AT15="SI"),15,12),IF(OR($DY$8="SI",$AT15="SI"),DM15,DM15-DV15)) -> 0 | DY15: =IF(DN15-DW15-DV15<0,0,IF(DN15-DW15-DV15>12,IF(OR($DY$8="SI",$AT15="SI"),15,12),IF(DN15-DW15-DV15>CW15,CW15-DW15,DN15-DW15-DV15))) -> 0 | DZ15: =IF(DY15-DX15>=IF(OR($DY$8="SI",$AT15="SI"),15,12),IF(OR($DY$8="SI",$AT15="SI"),15,12),DY15-DX15) -> 0 | EA15: =EB15&EC15&IF(OR(P15=510,P15=410),"INT","") -> AA | EB15: =IF(YEAR(N15)<YEAR($I$7),"A",IF(YEAR(N15)=YEAR($I$7),IF(MONTH(N15)<=MONTH($I$7),"A","NO"))) -> A | EC15: =IF(O15="","A",IF(YEAR(O15)>YEAR($I$7),"A",IF(YEAR(O15)=YEAR($I$7),IF(MONTH(O15)>MONTH($I$7),"A",IF(MONTH(O15)=MONTH($I$7),"L","B"))))) -> A | ED15: NO | EE15: =IFERROR(IF(ED15="SI",$I$7,""),0) ->  | EG15: =IFERROR(SUM(EH15:EL15),0) -> 148 | EH15: =IF(OR(EU15=0,FG15=0),0,IF(FG15-EU15+1>30,30,FG15-EU15+1)) -> 30 | EI15: =IF(OR(EV15=0,FH15=0),0,IF(FH15-EV15+1>30,30,FH15-EV15+1)) -> 30 | EJ15: =IF(OR(EW15=0,FI15=0),0,IF(FI15-EW15+1>30,30,FI15-EW15+1)) -> 30 | EK15: =IF(OR(EX15=0,FJ15=0),0,IF(FJ15-EX15+1>30,30,FJ15-EX15+1)) -> 30 | EL15: =IF(OR(EY15=0,FK15=0),0,IF(FK15-EY15+1>30,30,FK15-EY15+1)) -> 28 | EM15: =IFERROR(SUM(EN15:ET15),0) -> 210 | EN15: =IF(OR(EZ15=0,FL15=0),0,IF(FL15-EZ15+1>30,30,FL15-EZ15+1)) -> 30 | EO15: =IF(OR(FA15=0,FM15=0),0,IF(FM15-FA15+1>30,30,FM15-FA15+1)) -> 30 | EP15: =IF(IF(OR(FB15=0,FN15=0),0,IF(FN15-FB15+1>30,30,FN15-FB15+1))>=28,30,IF(OR(FB15=0,FN15=0),0,IF(FN15-FB15+1>30,30,FN15-FB15+1))) -> 30 | EQ15: =IF(OR(FC15=0,FO15=0),0,IF(FO15-FC15+1>30,30,FO15-FC15+1)) -> 30 | ER15: =IF(OR(FD15=0,FP15=0),0,IF(FP15-FD15+1>30,30,FP15-FD15+1)) -> 30 | ES15: =IF(OR(FE15=0,FQ15=0),0,IF(FQ15-FE15+1>30,30,FQ15-FE15+1)) -> 30 | ET15: =IF(OR(FF15=0,FR15=0),0,IF(FR15-FF15+1>30,30,FR15-FF15+1)) -> 30 | EU15: 1 | EV15: 1 | EW15: 1 | EX15: 1 | EY15: 1 | EZ15: 1 | FA15: 1 | FB15: 1 | FC15: 1 | FD15: 1 | FE15: 1 | FF15: 1 | FG15: 31 | FH15: 30 | FI15: 31 | FJ15: 31 | FK15: 28 | FL15: 31 | FM15: 30 | FN15: 31 | FO15: 30 | FP15: 31 | FQ15: 31 | FR15: 30
C16: =IF(AND(K16="",L16=""),"",IF(L16>=65,1,IF(AND(L16>=33,OR(K16="P. Cerebral",K16="Enf. Mental",K16="D. Intelectual",K16="Psíquica")),1,0))) ->  | D16: =IFERROR(MID(G16,1,2)&(MID(G16,FIND(" ",G16,1)+1,2))&IFERROR((MID(G16,FIND(",",G16,1)+2,1)),MID(G16,FIND(" ",G16,FIND(" ",G16,1)+1)+1,1)),"") ->  | Q16: =IFERROR(VLOOKUP(P16,Importes!L:Q,2,FALSE),"") ->  | R16: =IF(G16="","",$M$4) ->  | S16: =IF(G16="","",$M$2) ->  | T16: =IF(G16="","",$Q$2) ->  | U16: =IF(G16="","",IF($AH$8="Extra Inverno","1/12/2016",IF($AH$8="Extra Verán","1/6/2017",$AH$8))) ->  | V16: =IF(G16="","",$AN$9) ->  | W16: =IF(G16="","",IF($AG$8="x","Mensualidade",IF(AND($AG$8="",$AG$9="x",$I$7=DATE(YEAR($I$7),12,1)),"Extra Inverno",IF(AND($AG$8="",$AG$9="x",$I$7=DATE(YEAR($I$7),6,1)),"Extra Verán","")))) ->  | X16: =$AH$9 -> 0 | Y16: =IF(I16="","",DAY(I16)&"/"&MONTH(I16)&"/"&YEAR(I16)) ->  | Z16: =IF(N16="","",DAY(N16)&"/"&MONTH(N16)&"/"&YEAR(N16)) ->  | AA16: =IF(O16="","",DAY(O16)&"/"&MONTH(O16)&"/"&YEAR(O16)) ->  | AB16: =MID(AF16,1,4) -> AM+E | AC16: ="Si" -> Si | AF16: =IF(AC16="Non","AM+e","AM+E") -> AM+E | AG16: =IFERROR(IF(OR(AD16="NS",AD16="+CT",AD16="<15días",AD16="<15",AD16="Non D.",AF16=""),0,IF(BH16-AP16<0,0,BH16-AP16)),0) -> 0 | AH16: =IFERROR(IF(OR(AD16="+CT",AF16=""),0,ROUND(IF(MOD(AG16,30)=0,QUOTIENT(AG16,30)*VLOOKUP(C16&AF16,Importes!$A$2:$I$14,IF($I$7<DATE(2026,1,1),6,9),FALSE)*(IF($AE16>100,0,$AE16)/100),AG16*VLOOKUP(C16&AF16,Importes!$A$2:$I$14,IF($I$7<DATE(2026,1,1),5,8),FALSE)*(IF($AE16>100,0,$AE16)/100)),2)),0) -> 0 | AI16: =IFERROR(IF(AJ16="","",AE16),"") ->  | AJ16: =IFERROR(IF($M$8="Si",BK16,""),"") ->  | AK16: =IFERROR(IF(AJ16="","",IF(AJ16<180,AJ16*VLOOKUP(C16&"CP",Importes!$A$2:$F$14,5,FALSE)*(IF($AI16>100,0,$AI16)/100),IF(AJ16=180,VLOOKUP(C16&"CP",Importes!$A$2:$F$14,6,FALSE)*6*(IF($AI16>100,0,$AI16)/100),0))),0) ->  | AL16: =IFERROR(IF(AM16="","",AE16),"") ->  | AN16: =IF(AM16="","",IF(AM16>0,ROUND(IF(MOD(AM16,30)=0,QUOTIENT(AM16,30)*VLOOKUP(C16&IF(AC16="Si","AM+E","AM"),Importes!$A$2:$I$14,IF($I$7<DATE(2026,1,1),6,9),FALSE)*(IF($AL16>100,0,$AL16)/100),AM16*VLOOKUP(C16&IF(AC16="Si","AM+E","AM"),Importes!$A$2:$I$14,IF($I$7<DATE(2026,1,1),5,8),FALSE)*(IF($AL16>100,0,$AL16)/100)),2),0)) ->  | AO16: =IFERROR(IF(ED16="NO","",ED16),"") ->  | AR16: =IF(AQ16="IT",N16,IF(AQ16="AT",N16,"")) ->  | AS16: =IF(AND(AR16<>"",O16>0),O16,"") ->  | AW16: =IF($AH16>0,"X","") ->  | BH16: =IFERROR(IF(AF16="AM",DF16,IF(AF16="AM+E",DF16,IF(AF16="CP",DO16,IF(AF16="CV",DR16,IF(AF16="CV+E",DR16))))),0) -> 0 | BI16: =IFERROR(IF(OR(AD16="+CT",AF16=""),0,ROUND(IF(MOD(AG16,30)=0,QUOTIENT(AG16,30)*VLOOKUP(C16&AF16,Importes!$A$2:$F$14,6,FALSE)*(IF($AE16>100,0,$AE16)/100),AG16*VLOOKUP(C16&AF16,Importes!$A$2:$F$14,5,FALSE)*(IF($AE16>100,0,$AE16)/100)),2)),0) -> 0 | BJ16: =IFERROR(IF(BK16="","",BG16),"") ->  | BK16: =IFERROR(ROUND(IF($AI$8="Anual",0.5,1)*IF(AND(AF16="AM",OR(EA16="ALINT",EA16="AL")),DO16,IF(AND(AF16="AM",$AG$9="x"),DO16,"")),0),"") ->  | BL16: =IF(AJ16="","",IF(AJ16>0,ROUND(IF(MOD(AJ16,30)=0,QUOTIENT(AJ16,30)*VLOOKUP(C16&"CP",Importes!$A$2:$F$14,6,FALSE)*(IF($BG16>100,0,$BG16)/100),BK16*VLOOKUP(C16&"CP",Importes!$A$2:$F$14,5,FALSE)*(IF($BG16>100,0,$BG16)/100)),2),0)) ->  | BM16: =IFERROR(IF(BN16="","",BG16),"") ->  | BN16: =IFERROR(IF(OR(EA16="ALINT",EA16="AL"),DR16,""),"") ->  | BO16: =IF(AM16="","",IF(AM16>0,ROUND(IF(MOD(AM16,30)=0,QUOTIENT(AM16,30)*VLOOKUP(C16&IF(AC16="Si","AM+E","AM"),Importes!$A$2:$F$14,6,FALSE)*(IF($BG16>100,0,$BG16)/100),AM16*VLOOKUP(C16&IF(AC16="Si","AM+E","AM"),Importes!$A$2:$F$14,5,FALSE)*(IF($BG16>100,0,$BG16)/100)),2),0)) ->  | BQ16: =IF(VALUE($A16)=0,"",IF(BQ$11="","",IF(AND($O16<>"",$O16<BQ$6),"",IF($N16>BQ$6,"",IF(AND(OR($O16="",$O16>=BQ$6),$AR16="",$AF16<>""),"F",IF(AND($AR16<=BQ$6,OR($AS16=$O16,$AS16>=BQ$6,IF($AS16="",$AU$5))),"h",IF($DE16>=BQ$6,"F",""))))))) ->  | CV16: =IF(COUNTIF(BP16:CU16,"F")=0,0,COUNTIF(BP16:CU16,"F")) -> 0 | CW16: =IF(COUNTIF(BP16:CU16,"h")=0,0,COUNTIF(BP16:CU16,"h")) -> 0 | CX16: =IF(OR(AQ16="IT",AQ16="AT"),DI16+1-(DH16),0) -> 0 | CY16: =IF(AQ16="AT",1,IF(IF(AQ16="IT",DI16+1-(DH16),0)>15,15,IF(AQ16="IT",DI16+1-(DH16),0))) -> 0 | CZ16: =IF(AQ16="IT",IF(CX16-CW16>15,15,CX16-CW16),IF(AQ16="AT",IF(CX16-CW16>1,1,CX16-CW16),0)) -> 0 | DA16: =IF(OR(AT16="SI",$DA$8="SI"),CY16-CZ16,IF(AND(AT16<>"SI",OR($DA$8="NON",$DA$8="<<>>")),IF(CZ16<=3,IF(CY16-CZ16-3<=0,IF(AQ16="AT",IF(CZ16=1,0,1),0),CY16-CZ16-(3-CZ16)),CY16-CZ16),0)) -> 0 | DB16: =IF(COLUMN()>0,5,5) -> 5 | DD16: =IF(N16<$AH$8,$AH$8,N16) -> 2025-11-01 | DE16: =IF(O16="",$AU$5,O16) -> 2025-11-30 | DF16: =IF(CV16+DG16>30,30,IF(AND(MONTH($I$7)=2,CV16>=DAY($AU$5),OR(AR16="",AR16<=$I$7)),30,IF(CV16+DA16>30,30,CV16+DA16))) -> 0 | DG16: =DP16 -> 0 | DH16: =IF(AQ16="at",IF(DJ16<$AR$7,DJ16,IF(DJ16<$AH$8,$AH$8-1,DJ16)),DK16) -> 2025-01-01 | DI16: =IF(OR(AS16="",AS16>$AU$5),IF(O16="",$AU$5,IF(O16>$AU$5,$AU$5,O16)),AS16) -> 2025-11-30 | DJ16: =IF(AQ16="AT",DK16,0) -> 00:00:00 | DK16: =IF(IF(AR16="",0,AR16)+3=3,VALUE(1&"-"&1&"-"&$AU$7),AR16) -> 2025-01-01 | DL16: =CW16 -> 0 | DM16: =IF(OR(AQ16="IT",AQ16="AT"),IF(DH16<DD16,DD16-(DH16),0),0) -> 0 | DN16: =IF(OR(AQ16="IT",AQ16="AT"),DI16+1-(DH16),0) -> 0 | DO16: =IF(OR(AQ16="IT",AQ16="AT"),IF(DM16>=15,12,IF(DM16<15,DM16,DM16-3)),0) -> 0 | DP16: =IF(AND(AQ16="AT",DN16-DL16=0),1,IF(AQ16="IT",DZ16,0)) -> 0 | DQ16: =IF(N16<VALUE(1&"-"&1&"-"&IF(YEAR($AU$5)<$AU$7,YEAR($AU$5),$AU$7)),VALUE(1&"-"&1&"-"&IF(YEAR($AU$5)<$AU$7,YEAR($AU$5),$AU$7)),N16) -> 2025-01-01 | DR16: =IF(O16="",0,(DAYS360(DQ16,O16)+1)/30*2.5) -> 0 | DS16: =IFERROR(DS15+IF(EE16=$I$7,1,0),0) -> 0 | DT16: =IF(DS16="","",IF(MOD(DS16,10)=0,QUOTIENT(DS16,10),QUOTIENT(DS16,10)+1)) -> 0 | DU16: 0 | DV16: =IF(DO16>=3,3,DO16) -> 0 | DW16: =IF(OR($DY$8="SI",$AT16="SI"),DV16,3-DV16) -> 3 | DX16: =IF(DM16>15,IF(OR($DY$8="SI",$AT16="SI"),15,12),IF(OR($DY$8="SI",$AT16="SI"),DM16,DM16-DV16)) -> 0 | DY16: =IF(DN16-DW16-DV16<0,0,IF(DN16-DW16-DV16>12,IF(OR($DY$8="SI",$AT16="SI"),15,12),IF(DN16-DW16-DV16>CW16,CW16-DW16,DN16-DW16-DV16))) -> 0 | DZ16: =IF(DY16-DX16>=IF(OR($DY$8="SI",$AT16="SI"),15,12),IF(OR($DY$8="SI",$AT16="SI"),15,12),DY16-DX16) -> 0 | EA16: =EB16&EC16&IF(OR(P16=510,P16=410),"INT","") -> AA | EB16: =IF(YEAR(N16)<YEAR($I$7),"A",IF(YEAR(N16)=YEAR($I$7),IF(MONTH(N16)<=MONTH($I$7),"A","NO"))) -> A | EC16: =IF(O16="","A",IF(YEAR(O16)>YEAR($I$7),"A",IF(YEAR(O16)=YEAR($I$7),IF(MONTH(O16)>MONTH($I$7),"A",IF(MONTH(O16)=MONTH($I$7),"L","B"))))) -> A | ED16: =IFERROR(IF(L16<33,"NO",IF(OR(EA16="AA",EA16="AL"),"SI",IF(OR(EA16="AAINT",EA16="ALINT"),"SI",""))),"") -> NO | EE16: =IFERROR(IF(ED16="SI",$I$7,""),0) ->  | EG16: =IFERROR(SUM(EH16:EL16),0) -> 30 | EH16: =IF(OR(EU16=0,FG16=0),0,IF(FG16-EU16+1>30,30,FG16-EU16+1)) -> 30 | EI16: =IF(OR(EV16=0,FH16=0),0,IF(FH16-EV16+1>30,30,FH16-EV16+1)) -> 0 | EJ16: =IF(OR(EW16=0,FI16=0),0,IF(FI16-EW16+1>30,30,FI16-EW16+1)) -> 0 | EK16: =IF(OR(EX16=0,FJ16=0),0,IF(FJ16-EX16+1>30,30,FJ16-EX16+1)) -> 0 | EL16: =IF(OR(EY16=0,FK16=0),0,IF(FK16-EY16+1>30,30,FK16-EY16+1)) -> 0 | EM16: =IFERROR(SUM(EN16:ET16),0) -> 0 | EN16: =IF(OR(EZ16=0,FL16=0),0,IF(FL16-EZ16+1>30,30,FL16-EZ16+1)) -> 0 | EO16: =IF(OR(FA16=0,FM16=0),0,IF(FM16-FA16+1>30,30,FM16-FA16+1)) -> 0 | EP16: =IF(IF(OR(FB16=0,FN16=0),0,IF(FN16-FB16+1>30,30,FN16-FB16+1))>=28,30,IF(OR(FB16=0,FN16=0),0,IF(FN16-FB16+1>30,30,FN16-FB16+1))) -> 0 | EQ16: =IF(OR(FC16=0,FO16=0),0,IF(FO16-FC16+1>30,30,FO16-FC16+1)) -> 0 | ER16: =IF(OR(FD16=0,FP16=0),0,IF(FP16-FD16+1>30,30,FP16-FD16+1)) -> 0 | ES16: =IF(OR(FE16=0,FQ16=0),0,IF(FQ16-FE16+1>30,30,FQ16-FE16+1)) -> 0 | ET16: =IF(OR(FF16=0,FR16=0),0,IF(FR16-FF16+1>30,30,FR16-FF16+1)) -> 0 | EU16: =IFERROR(IF($N16<=EU$11,1,IF(YEAR($N16)=YEAR(EU$11),IF(MONTH($N16)=MONTH(EU$11),DAY($N16),0))),0) -> 1 | FG16: =IFERROR(IF(OR($O16="",$O16=0),DAY(FG$11),IF($O16>=FG$11,DAY(FG$11),IF(MONTH($O16)=MONTH(FG$11),DAY($O16),0))),0) -> 31
B17: 6 | Q17: =IFERROR(VLOOKUP(P17,Importes!L:Q,2,FALSE),"") ->  | S17: =IF(G17="","",#REF!) ->  | T17: =IF(G17="","",#REF!) ->  | W17: =IF(G17="","",IF($AG$8="x","Mensualidade",IF(AND($AG$8="",#REF!="x",$AH$8=DATE(YEAR($CU$7),12,1)),"Extra Inverno",IF(AND($AG$8="",#REF!="x",$AH$8=DATE(YEAR($CV$8),6,1)),"Extra Verán","")))) ->  | X17: 0 | AB17: AM+E | AC17: Si | AD17: 5 | AF17: AM+E | AG17: 0 | AH17: =IFERROR(IF(OR(AD17="+CT",AF17=""),0,ROUND(IF(MOD(AG17,30)=0,QUOTIENT(AG17,30)*VLOOKUP(C17&AF17,Importes!$A$2:$I$14,IF($I$7<DATE(2026,1,1),6,9),FALSE)*(IF($AE17>100,0,$AE17)/100),AG17*VLOOKUP(C17&AF17,Importes!$A$2:$I$14,IF($I$7<DATE(2026,1,1),5,8),FALSE)*(IF($AE17>100,0,$AE17)/100)),2)),0) -> 0 | AK17: =IFERROR(IF(AJ17="","",IF(AJ17<180,AJ17*VLOOKUP(C17&"CP",Importes!$A$2:$I$14,IF($I$7<DATE(2026,1,1),5,8),FALSE)*(IF($AI17>100,0,$AI17)/100),IF(AJ17=180,VLOOKUP(C17&"CP",Importes!$A$2:$I$14,IF($I$7<DATE(2026,1,1),6,9),FALSE)*6*(IF($AI17>100,0,$AI17)/100),0))),0) ->  | AN17: =IF(AM17="","",IF(AM17>0,ROUND(IF(MOD(AM17,30)=0,QUOTIENT(AM17,30)*VLOOKUP(C17&IF(AC17="Si","AM+E","AM"),Importes!$A$2:$I$14,IF($I$7<DATE(2026,1,1),6,9),FALSE)*(IF($AL17>100,0,$AL17)/100),AM17*VLOOKUP(C17&IF(AC17="Si","AM+E","AM"),Importes!$A$2:$I$14,IF($I$7<DATE(2026,1,1),5,8),FALSE)*(IF($AL17>100,0,$AL17)/100)),2),0)) ->  | AR17: =IF(AQ17="IT",N17,IF(AQ17="AT",N17,"")) ->  | AT17: Non | BG17: 75 | BH17: 0 | BI17: =IFERROR(IF(OR(AD17="+CT",AF17=""),0,ROUND(IF(MOD(AG17,30)=0,QUOTIENT(AG17,30)*VLOOKUP(C17&AF17,Importes!$A$2:$I$14,IF($I$7<DATE(2026,1,1),6,9),FALSE)*(IF($AE17>100,0,$AE17)/100),AG17*VLOOKUP(C17&AF17,Importes!$A$2:$I$14,IF($I$7<DATE(2026,1,1),5,8),FALSE)*(IF($AE17>100,0,$AE17)/100)),2)),0) -> 0 | BL17: =IF(AJ17="","",IF(AJ17>0,ROUND(IF(MOD(AJ17,30)=0,QUOTIENT(AJ17,30)*VLOOKUP(C17&"CP",Importes!$A$2:$I$14,IF($I$7<DATE(2026,1,1),6,9),FALSE)*(IF($BG17>100,0,$BG17)/100),BK17*VLOOKUP(C17&"CP",Importes!$A$2:$I$14,IF($I$7<DATE(2026,1,1),5,8),FALSE)*(IF($BG17>100,0,$BG17)/100)),2),0)) ->  | BO17: =IF(AM17="","",IF(AM17>0,ROUND(IF(MOD(AM17,30)=0,QUOTIENT(AM17,30)*VLOOKUP(C17&IF(AC17="Si","AM+E","AM"),Importes!$A$2:$I$14,IF($I$7<DATE(2026,1,1),6,9),FALSE)*(IF($BG17>100,0,$BG17)/100),AM17*VLOOKUP(C17&IF(AC17="Si","AM+E","AM"),Importes!$A$2:$I$14,IF($I$7<DATE(2026,1,1),5,8),FALSE)*(IF($BG17>100,0,$BG17)/100)),2),0)) ->  | CV17: 0 | CW17: 0 | CX17: 0 | CY17: 0 | CZ17: 0 | DA17: 0 | DB17: 5 | DC17: 5 | DD17: 2025-11-01 | DE17: 2025-11-30 | DF17: 0 | DG17: 0 | DH17: 2025-01-01 | DI17: 2025-11-30 | DJ17: 00:00:00 | DK17: 2025-01-01 | DL17: 0 | DM17: 0 | DN17: 0 | DO17: 0 | DP17: 0 | DQ17: 2025-01-01 | DR17: 0 | DS17: =IFERROR(DS15+IF(EE17=$I$7,1,0),0) -> 0 | DT17: 0 | DU17: 0 | DV17: 0 | DW17: 3 | DX17: 0 | DY17: 0 | DZ17: 0 | EA17: AA | EB17: A | EC17: A | ED17: NO | EG17: 148 | EH17: 30 | EI17: 30 | EJ17: 30 | EK17: 30 | EL17: 28 | EM17: 210 | EN17: 30 | EO17: 30 | EP17: 30 | EQ17: 30 | ER17: 30 | ES17: 30 | ET17: 30 | EU17: 1 | EV17: 1 | EW17: 1 | EX17: 1 | EY17: 1 | EZ17: 1 | FA17: 1 | FB17: 1 | FC17: 1 | FD17: 1 | FE17: 1 | FF17: 1 | FG17: 31 | FH17: 30 | FI17: 31 | FJ17: 31 | FK17: 28 | FL17: 31 | FM17: 30 | FN17: 31 | FO17: 30 | FP17: 31 | FQ17: 31 | FR17: 30
B18: 7 | C18: =IF(AND(K18="",L18=""),"",IF(L18>=65,1,IF(AND(L18>=33,OR(K18="P. Cerebral",K18="Enf. Mental",K18="D. Intelectual",K18="Psíquica")),1,0))) ->  | D18: =IFERROR(MID(G18,1,2)&(MID(G18,FIND(" ",G18,1)+1,2))&IFERROR((MID(G18,FIND(",",G18,1)+2,1)),MID(G18,FIND(" ",G18,FIND(" ",G18,1)+1)+1,1)),"") ->  | Q18: =IFERROR(VLOOKUP(P18,Importes!L:Q,2,FALSE),"") ->  | S18: =IF(G18="","",#REF!) ->  | T18: =IF(G18="","",#REF!) ->  | W18: =IF(G18="","",IF($AG$8="x","Mensualidade",IF(AND($AG$8="",#REF!="x",$AH$8=DATE(YEAR($CU$7),12,1)),"Extra Inverno",IF(AND($AG$8="",#REF!="x",$AH$8=DATE(YEAR($CV$8),6,1)),"Extra Verán","")))) ->  | X18: 0 | AB18: AM+E | AC18: Si | AD18: 7 | AF18: =IF(AC18="Non","AM+e","AM+E") -> AM+E | AG18: =IFERROR(IF(OR(AD18="NS",AD18="+CT",AD18="<15días",AD18="<15",AD18="Non D.",AF18=""),0,IF(BH18-AP18<0,0,BH18-AP18)),0) -> 0 | AH18: =IFERROR(IF(OR(AD18="+CT",AF18=""),0,ROUND(IF(MOD(AG18,30)=0,QUOTIENT(AG18,30)*VLOOKUP(C18&AF18,Importes!$A$2:$I$14,IF($I$7<DATE(2026,1,1),6,9),FALSE)*(IF($AE18>100,0,$AE18)/100),AG18*VLOOKUP(C18&AF18,Importes!$A$2:$I$14,IF($I$7<DATE(2026,1,1),5,8),FALSE)*(IF($AE18>100,0,$AE18)/100)),2)),0) -> 0 | AI18: =IFERROR(IF(AJ18="","",AE18),"") ->  | AJ18: =IFERROR(IF($M$8="Si",BK18,""),"") ->  | AK18: =IFERROR(IF(AJ18="","",IF(AJ18<180,AJ18*VLOOKUP(C18&"CP",Importes!$A$2:$I$14,IF($I$7<DATE(2026,1,1),5,8),FALSE)*(IF($AI18>100,0,$AI18)/100),IF(AJ18=180,VLOOKUP(C18&"CP",Importes!$A$2:$I$14,IF($I$7<DATE(2026,1,1),6,9),FALSE)*6*(IF($AI18>100,0,$AI18)/100),0))),0) ->  | AN18: =IF(AM18="","",IF(AM18>0,ROUND(IF(MOD(AM18,30)=0,QUOTIENT(AM18,30)*VLOOKUP(C18&IF(AC18="Si","AM+E","AM"),Importes!$A$2:$I$14,IF($I$7<DATE(2026,1,1),6,9),FALSE)*(IF($AL18>100,0,$AL18)/100),AM18*VLOOKUP(C18&IF(AC18="Si","AM+E","AM"),Importes!$A$2:$I$14,IF($I$7<DATE(2026,1,1),5,8),FALSE)*(IF($AL18>100,0,$AL18)/100)),2),0)) ->  | AO18: =IFERROR(IF(ED18="NO","",ED18),"") ->  | AS18: =IF(AND(AR18<>"",O18>0),O18,"") ->  | AT18: Non | BG18: 62.5 | BH18: =IFERROR(IF(AF18="AM",DF18,IF(AF18="AM+E",DF18,IF(AF18="CP",DO18,IF(AF18="CV",DR18,IF(AF18="CV+E",DR18))))),0) -> 0 | BI18: =IFERROR(IF(OR(AD18="+CT",AF18=""),0,ROUND(IF(MOD(AG18,30)=0,QUOTIENT(AG18,30)*VLOOKUP(C18&AF18,Importes!$A$2:$I$14,IF($I$7<DATE(2026,1,1),6,9),FALSE)*(IF($AE18>100,0,$AE18)/100),AG18*VLOOKUP(C18&AF18,Importes!$A$2:$I$14,IF($I$7<DATE(2026,1,1),5,8),FALSE)*(IF($AE18>100,0,$AE18)/100)),2)),0) -> 0 | BJ18: =IFERROR(IF(BK18="","",BG18),"") ->  | BK18: =IFERROR(ROUND(IF($AI$8="Anual",0.5,1)*IF(AND(AF18="AM",OR(EA18="ALINT",EA18="AL")),DO18,IF(AND(AF18="AM",$AG$9="x"),DO18,"")),0),"") ->  | BL18: =IF(AJ18="","",IF(AJ18>0,ROUND(IF(MOD(AJ18,30)=0,QUOTIENT(AJ18,30)*VLOOKUP(C18&"CP",Importes!$A$2:$I$14,IF($I$7<DATE(2026,1,1),6,9),FALSE)*(IF($BG18>100,0,$BG18)/100),BK18*VLOOKUP(C18&"CP",Importes!$A$2:$I$14,IF($I$7<DATE(2026,1,1),5,8),FALSE)*(IF($BG18>100,0,$BG18)/100)),2),0)) ->  | BM18: =IFERROR(IF(BN18="","",BG18),"") ->  | BN18: =IFERROR(IF(OR(EA18="ALINT",EA18="AL"),DR18,""),"") ->  | BO18: =IF(AM18="","",IF(AM18>0,ROUND(IF(MOD(AM18,30)=0,QUOTIENT(AM18,30)*VLOOKUP(C18&IF(AC18="Si","AM+E","AM"),Importes!$A$2:$I$14,IF($I$7<DATE(2026,1,1),6,9),FALSE)*(IF($BG18>100,0,$BG18)/100),AM18*VLOOKUP(C18&IF(AC18="Si","AM+E","AM"),Importes!$A$2:$I$14,IF($I$7<DATE(2026,1,1),5,8),FALSE)*(IF($BG18>100,0,$BG18)/100)),2),0)) ->  | CV18: =IF(COUNTIF(BP18:CU18,"F")=0,0,COUNTIF(BP18:CU18,"F")) -> 0 | CW18: =IF(COUNTIF(BP18:CU18,"h")=0,0,COUNTIF(BP18:CU18,"h")) -> 0 | CX18: =IF(OR(AQ18="IT",AQ18="AT"),DI18+1-(DH18),0) -> 0 | CY18: =IF(AQ18="AT",1,IF(IF(AQ18="IT",DI18+1-(DH18),0)>15,15,IF(AQ18="IT",DI18+1-(DH18),0))) -> 0 | CZ18: =IF(AQ18="IT",IF(CX18-CW18>15,15,CX18-CW18),IF(AQ18="AT",IF(CX18-CW18>1,1,CX18-CW18),0)) -> 0 | DA18: =IF(OR(AT18="SI",$DA$8="SI"),CY18-CZ18,IF(AND(AT18<>"SI",OR($DA$8="NON",$DA$8="<<>>")),IF(CZ18<=3,IF(CY18-CZ18-3<=0,IF(AQ18="AT",IF(CZ18=1,0,1),0),CY18-CZ18-(3-CZ18)),CY18-CZ18),0)) -> 0 | DB18: 5 | DC18: 5 | DD18: =IF(N18<$AH$8,$AH$8,N18) -> 2025-11-01 | DE18: =IF(O18="",$AU$5,O18) -> 2025-11-30 | DF18: =IF(CV18+DG18>30,30,IF(AND(MONTH($I$7)=2,CV18>=DAY($AU$5),OR(AR18="",AR18<=$I$7)),30,IF(CV18+DA18>30,30,CV18+DA18))) -> 0 | DG18: =DP18 -> 0 | DH18: =IF(AQ18="at",IF(DJ18<$AR$7,DJ18,IF(DJ18<$AH$8,$AH$8-1,DJ18)),DK18) -> 2025-01-01 | DI18: =IF(OR(AS18="",AS18>$AU$5),IF(O18="",$AU$5,IF(O18>$AU$5,$AU$5,O18)),AS18) -> 2025-11-30 | DJ18: =IF(AQ18="AT",DK18,0) -> 00:00:00 | DK18: =IF(IF(AR18="",0,AR18)+3=3,VALUE(1&"-"&1&"-"&$AU$7),AR18) -> 2025-01-01 | DL18: =CW18 -> 0 | DM18: =IF(OR(AQ18="IT",AQ18="AT"),IF(DH18<DD18,DD18-(DH18),0),0) -> 0 | DN18: =IF(OR(AQ18="IT",AQ18="AT"),DI18+1-(DH18),0) -> 0 | DO18: =IF(OR(AQ18="IT",AQ18="AT"),IF(DM18>=15,12,IF(DM18<15,DM18,DM18-3)),0) -> 0 | DP18: =IF(AND(AQ18="AT",DN18-DL18=0),1,IF(AQ18="IT",DZ18,0)) -> 0 | DQ18: =IF(N18<VALUE(1&"-"&1&"-"&IF(YEAR($AU$5)<$AU$7,YEAR($AU$5),$AU$7)),VALUE(1&"-"&1&"-"&IF(YEAR($AU$5)<$AU$7,YEAR($AU$5),$AU$7)),N18) -> 2025-01-01 | DR18: =IF(O18="",0,(DAYS360(DQ18,O18)+1)/30*2.5) -> 0 | DS18: =IFERROR(#REF!+IF(EE18=$I$7,1,0),0) -> 0 | DT18: =IF(DS18="","",IF(MOD(DS18,10)=0,QUOTIENT(DS18,10),QUOTIENT(DS18,10)+1)) -> 0 | DU18: 0 | DV18: =IF(DO18>=3,3,DO18) -> 0 | DW18: =IF(OR($DY$8="SI",$AT18="SI"),DV18,3-DV18) -> 3 | DX18: =IF(DM18>15,IF(OR($DY$8="SI",$AT18="SI"),15,12),IF(OR($DY$8="SI",$AT18="SI"),DM18,DM18-DV18)) -> 0 | DY18: =IF(DN18-DW18-DV18<0,0,IF(DN18-DW18-DV18>12,IF(OR($DY$8="SI",$AT18="SI"),15,12),IF(DN18-DW18-DV18>CW18,CW18-DW18,DN18-DW18-DV18))) -> 0 | DZ18: =IF(DY18-DX18>=IF(OR($DY$8="SI",$AT18="SI"),15,12),IF(OR($DY$8="SI",$AT18="SI"),15,12),DY18-DX18) -> 0 | EA18: =EB18&EC18&IF(OR(P18=510,P18=410),"INT","") -> AA | EB18: =IF(YEAR(N18)<YEAR($I$7),"A",IF(YEAR(N18)=YEAR($I$7),IF(MONTH(N18)<=MONTH($I$7),"A","NO"))) -> A | EC18: =IF(O18="","A",IF(YEAR(O18)>YEAR($I$7),"A",IF(YEAR(O18)=YEAR($I$7),IF(MONTH(O18)>MONTH($I$7),"A",IF(MONTH(O18)=MONTH($I$7),"L","B"))))) -> A | ED18: =IFERROR(IF(L18<33,"NO",IF(OR(EA18="AA",EA18="AL"),"SI",IF(OR(EA18="AAINT",EA18="ALINT"),"SI",""))),"") -> NO | EE18: =IFERROR(IF(ED18="SI",$I$7,""),0) ->  | EG18: =IFERROR(SUM(EH18:EL18),0) -> 148 | EH18: =IF(OR(EU18=0,FG18=0),0,IF(FG18-EU18+1>30,30,FG18-EU18+1)) -> 30 | EI18: =IF(OR(EV18=0,FH18=0),0,IF(FH18-EV18+1>30,30,FH18-EV18+1)) -> 30 | EJ18: =IF(OR(EW18=0,FI18=0),0,IF(FI18-EW18+1>30,30,FI18-EW18+1)) -> 30 | EK18: =IF(OR(EX18=0,FJ18=0),0,IF(FJ18-EX18+1>30,30,FJ18-EX18+1)) -> 30 | EL18: =IF(OR(EY18=0,FK18=0),0,IF(FK18-EY18+1>30,30,FK18-EY18+1)) -> 28 | EM18: =IFERROR(SUM(EN18:ET18),0) -> 210 | EN18: =IF(OR(EZ18=0,FL18=0),0,IF(FL18-EZ18+1>30,30,FL18-EZ18+1)) -> 30 | EO18: =IF(OR(FA18=0,FM18=0),0,IF(FM18-FA18+1>30,30,FM18-FA18+1)) -> 30 | EP18: =IF(IF(OR(FB18=0,FN18=0),0,IF(FN18-FB18+1>30,30,FN18-FB18+1))>=28,30,IF(OR(FB18=0,FN18=0),0,IF(FN18-FB18+1>30,30,FN18-FB18+1))) -> 30 | EQ18: =IF(OR(FC18=0,FO18=0),0,IF(FO18-FC18+1>30,30,FO18-FC18+1)) -> 30 | ER18: =IF(OR(FD18=0,FP18=0),0,IF(FP18-FD18+1>30,30,FP18-FD18+1)) -> 30 | ES18: =IF(OR(FE18=0,FQ18=0),0,IF(FQ18-FE18+1>30,30,FQ18-FE18+1)) -> 30 | ET18: =IF(OR(FF18=0,FR18=0),0,IF(FR18-FF18+1>30,30,FR18-FF18+1)) -> 30 | EU18: 1 | EV18: 1 | EW18: 1 | EX18: 1 | EY18: 1 | EZ18: 1 | FA18: 1 | FB18: 1 | FC18: 1 | FD18: 1 | FE18: 1 | FF18: 1 | FG18: 31 | FH18: 30 | FI18: 31 | FJ18: 31 | FK18: 28 | FL18: 31 | FM18: 30 | FN18: 31 | FO18: 30 | FP18: 31 | FQ18: 31 | FR18: 30
C19: =IF(AND(K19="",L19=""),"",IF(L19>=65,1,IF(AND(L19>=33,OR(K19="P. Cerebral",K19="Enf. Mental",K19="D. Intelectual",K19="Psíquica")),1,0))) ->  | D19: =IFERROR(MID(G19,1,2)&(MID(G19,FIND(" ",G19,1)+1,2))&IFERROR((MID(G19,FIND(",",G19,1)+2,1)),MID(G19,FIND(" ",G19,FIND(" ",G19,1)+1)+1,1)),"") ->  | Q19: =IFERROR(VLOOKUP(P19,Importes!L:Q,2,FALSE),"") ->  | R19: =IF(G19="","",$M$4) ->  | S19: =IF(G19="","",$M$2) ->  | T19: =IF(G19="","",$Q$2) ->  | U19: =IF(G19="","",IF($AH$8="Extra Inverno","1/12/2016",IF($AH$8="Extra Verán","1/6/2017",$AH$8))) ->  | V19: =IF(G19="","",$AN$9) ->  | W19: =IF(G19="","",IF($AG$8="x","Mensualidade",IF(AND($AG$8="",$AG$9="x",$I$7=DATE(YEAR($I$7),12,1)),"Extra Inverno",IF(AND($AG$8="",$AG$9="x",$I$7=DATE(YEAR($I$7),6,1)),"Extra Verán","")))) ->  | X19: =$AH$9 -> 0 | Y19: =IF(I19="","",DAY(I19)&"/"&MONTH(I19)&"/"&YEAR(I19)) ->  | Z19: =IF(N19="","",DAY(N19)&"/"&MONTH(N19)&"/"&YEAR(N19)) ->  | AA19: =IF(O19="","",DAY(O19)&"/"&MONTH(O19)&"/"&YEAR(O19)) ->  | AB19: =MID(AF19,1,4) -> AM+E | AC19: Si | AF19: =IF(AC19="Non","AM+e","AM+E") -> AM+E | AG19: 0 | AH19: =IFERROR(IF(OR(AD19="+CT",AF19=""),0,ROUND(IF(MOD(AG19,30)=0,QUOTIENT(AG19,30)*VLOOKUP(C19&AF19,Importes!$A$2:$I$14,IF($I$7<DATE(2026,1,1),6,9),FALSE)*(IF($AE19>100,0,$AE19)/100),AG19*VLOOKUP(C19&AF19,Importes!$A$2:$I$14,IF($I$7<DATE(2026,1,1),5,8),FALSE)*(IF($AE19>100,0,$AE19)/100)),2)),0) -> 0 | AI19: =IFERROR(IF(AJ19="","",AE19),"") ->  | AJ19: =IFERROR(IF($M$8="Si",BK19,""),"") ->  | AK19: =IFERROR(IF(AJ19="","",IF(AJ19<180,AJ19*VLOOKUP(C19&"CP",Importes!$A$2:$F$14,5,FALSE)*(IF($AI19>100,0,$AI19)/100),IF(AJ19=180,VLOOKUP(C19&"CP",Importes!$A$2:$F$14,6,FALSE)*6*(IF($AI19>100,0,$AI19)/100),0))),0) ->  | AN19: =IF(AM19="","",IF(AM19>0,ROUND(IF(MOD(AM19,30)=0,QUOTIENT(AM19,30)*VLOOKUP(C19&IF(AC19="Si","AM+E","AM"),Importes!$A$2:$I$14,IF($I$7<DATE(2026,1,1),6,9),FALSE)*(IF($AL19>100,0,$AL19)/100),AM19*VLOOKUP(C19&IF(AC19="Si","AM+E","AM"),Importes!$A$2:$I$14,IF($I$7<DATE(2026,1,1),5,8),FALSE)*(IF($AL19>100,0,$AL19)/100)),2),0)) ->  | AO19: =IFERROR(IF(ED19="NO","",ED19),"") ->  | AS19: =IF(AND(AR19<>"",O19>0),O19,"") ->  | AW19: =IF($AH19>0,"X","") ->  | BH19: =IFERROR(IF(AF19="AM",DF19,IF(AF19="AM+E",DF19,IF(AF19="CP",DO19,IF(AF19="CV",DR19,IF(AF19="CV+E",DR19))))),0) -> 0 | BI19: =IFERROR(IF(OR(AD19="+CT",AF19=""),0,ROUND(IF(MOD(AG19,30)=0,QUOTIENT(AG19,30)*VLOOKUP(C19&AF19,Importes!$A$2:$F$14,6,FALSE)*(IF($AE19>100,0,$AE19)/100),AG19*VLOOKUP(C19&AF19,Importes!$A$2:$F$14,5,FALSE)*(IF($AE19>100,0,$AE19)/100)),2)),0) -> 0 | BJ19: =IFERROR(IF(BK19="","",BG19),"") ->  | BK19: =IFERROR(ROUND(IF($AI$8="Anual",0.5,1)*IF(AND(AF19="AM",OR(EA19="ALINT",EA19="AL")),DO19,IF(AND(AF19="AM",$AG$9="x"),DO19,"")),0),"") ->  | BL19: =IF(AJ19="","",IF(AJ19>0,ROUND(IF(MOD(AJ19,30)=0,QUOTIENT(AJ19,30)*VLOOKUP(C19&"CP",Importes!$A$2:$F$14,6,FALSE)*(IF($BG19>100,0,$BG19)/100),BK19*VLOOKUP(C19&"CP",Importes!$A$2:$F$14,5,FALSE)*(IF($BG19>100,0,$BG19)/100)),2),0)) ->  | BM19: =IFERROR(IF(BN19="","",BG19),"") ->  | BN19: =IFERROR(IF(OR(EA19="ALINT",EA19="AL"),DR19,""),"") ->  | BO19: =IF(AM19="","",IF(AM19>0,ROUND(IF(MOD(AM19,30)=0,QUOTIENT(AM19,30)*VLOOKUP(C19&IF(AC19="Si","AM+E","AM"),Importes!$A$2:$F$14,6,FALSE)*(IF($BG19>100,0,$BG19)/100),AM19*VLOOKUP(C19&IF(AC19="Si","AM+E","AM"),Importes!$A$2:$F$14,5,FALSE)*(IF($BG19>100,0,$BG19)/100)),2),0)) ->  | BQ19: =IF(VALUE($A19)=0,"",IF(BQ$11="","",IF(AND($O19<>"",$O19<BQ$6),"",IF($N19>BQ$6,"",IF(AND(OR($O19="",$O19>=BQ$6),$AR19="",$AF19<>""),"F",IF(AND($AR19<=BQ$6,OR($AS19=$O19,$AS19>=BQ$6,IF($AS19="",$AU$5))),"h",IF($DE19>=BQ$6,"F",""))))))) ->  | CV19: =IF(COUNTIF(BP19:CU19,"F")=0,0,COUNTIF(BP19:CU19,"F")) -> 0 | CW19: =IF(COUNTIF(BP19:CU19,"h")=0,0,COUNTIF(BP19:CU19,"h")) -> 0 | CX19: =IF(OR(AQ19="IT",AQ19="AT"),DI19+1-(DH19),0) -> 0 | CY19: =IF(AQ19="AT",1,IF(IF(AQ19="IT",DI19+1-(DH19),0)>15,15,IF(AQ19="IT",DI19+1-(DH19),0))) -> 0 | CZ19: =IF(AQ19="IT",IF(CX19-CW19>15,15,CX19-CW19),IF(AQ19="AT",IF(CX19-CW19>1,1,CX19-CW19),0)) -> 0 | DA19: =IF(OR(AT19="SI",$DA$8="SI"),CY19-CZ19,IF(AND(AT19<>"SI",OR($DA$8="NON",$DA$8="<<>>")),IF(CZ19<=3,IF(CY19-CZ19-3<=0,IF(AQ19="AT",IF(CZ19=1,0,1),0),CY19-CZ19-(3-CZ19)),CY19-CZ19),0)) -> 0 | DB19: =IF(COLUMN()>0,5,5) -> 5 | DD19: =IF(N19<$AH$8,$AH$8,N19) -> 2025-11-01 | DE19: =IF(O19="",$AU$5,O19) -> 2025-11-30 | DF19: =IF(CV19+DG19>30,30,IF(AND(MONTH($I$7)=2,CV19>=DAY($AU$5),OR(AR19="",AR19<=$I$7)),30,IF(CV19+DA19>30,30,CV19+DA19))) -> 0 | DG19: =DP19 -> 0 | DH19: =IF(AQ19="at",IF(DJ19<$AR$7,DJ19,IF(DJ19<$AH$8,$AH$8-1,DJ19)),DK19) -> 2025-01-01 | DI19: =IF(OR(AS19="",AS19>$AU$5),IF(O19="",$AU$5,IF(O19>$AU$5,$AU$5,O19)),AS19) -> 2025-11-30 | DJ19: =IF(AQ19="AT",DK19,0) -> 00:00:00 | DK19: =IF(IF(AR19="",0,AR19)+3=3,VALUE(1&"-"&1&"-"&$AU$7),AR19) -> 2025-01-01 | DL19: =CW19 -> 0 | DM19: =IF(OR(AQ19="IT",AQ19="AT"),IF(DH19<DD19,DD19-(DH19),0),0) -> 0 | DN19: =IF(OR(AQ19="IT",AQ19="AT"),DI19+1-(DH19),0) -> 0 | DO19: =IF(OR(AQ19="IT",AQ19="AT"),IF(DM19>=15,12,IF(DM19<15,DM19,DM19-3)),0) -> 0 | DP19: =IF(AND(AQ19="AT",DN19-DL19=0),1,IF(AQ19="IT",DZ19,0)) -> 0 | DQ19: =IF(N19<VALUE(1&"-"&1&"-"&IF(YEAR($AU$5)<$AU$7,YEAR($AU$5),$AU$7)),VALUE(1&"-"&1&"-"&IF(YEAR($AU$5)<$AU$7,YEAR($AU$5),$AU$7)),N19) -> 2025-01-01 | DR19: =IF(O19="",0,(DAYS360(DQ19,O19)+1)/30*2.5) -> 0 | DS19: =IFERROR(DS18+IF(EE19=$I$7,1,0),0) -> 0 | DT19: =IF(DS19="","",IF(MOD(DS19,10)=0,QUOTIENT(DS19,10),QUOTIENT(DS19,10)+1)) -> 0 | DU19: 0 | DV19: =IF(DO19>=3,3,DO19) -> 0 | DW19: =IF(OR($DY$8="SI",$AT19="SI"),DV19,3-DV19) -> 3 | DX19: =IF(DM19>15,IF(OR($DY$8="SI",$AT19="SI"),15,12),IF(OR($DY$8="SI",$AT19="SI"),DM19,DM19-DV19)) -> 0 | DY19: =IF(DN19-DW19-DV19<0,0,IF(DN19-DW19-DV19>12,IF(OR($DY$8="SI",$AT19="SI"),15,12),IF(DN19-DW19-DV19>CW19,CW19-DW19,DN19-DW19-DV19))) -> 0 | DZ19: =IF(DY19-DX19>=IF(OR($DY$8="SI",$AT19="SI"),15,12),IF(OR($DY$8="SI",$AT19="SI"),15,12),DY19-DX19) -> 0 | EA19: =EB19&EC19&IF(OR(P19=510,P19=410),"INT","") -> AA | EB19: =IF(YEAR(N19)<YEAR($I$7),"A",IF(YEAR(N19)=YEAR($I$7),IF(MONTH(N19)<=MONTH($I$7),"A","NO"))) -> A | EC19: =IF(O19="","A",IF(YEAR(O19)>YEAR($I$7),"A",IF(YEAR(O19)=YEAR($I$7),IF(MONTH(O19)>MONTH($I$7),"A",IF(MONTH(O19)=MONTH($I$7),"L","B"))))) -> A | ED19: =IFERROR(IF(L19<33,"NO",IF(OR(EA19="AA",EA19="AL"),"SI",IF(OR(EA19="AAINT",EA19="ALINT"),"SI",""))),"") -> NO | EE19: =IFERROR(IF(ED19="SI",$I$7,""),0) ->  | EG19: =IFERROR(SUM(EH19:EL19),0) -> 30 | EH19: =IF(OR(EU19=0,FG19=0),0,IF(FG19-EU19+1>30,30,FG19-EU19+1)) -> 30 | EI19: 0 | EJ19: 0 | EK19: 0 | EL19: 0 | EM19: =IFERROR(SUM(EN19:ET19),0) -> 0 | EN19: =IF(OR(EZ19=0,FL19=0),0,IF(FL19-EZ19+1>30,30,FL19-EZ19+1)) -> 0 | EO19: =IF(OR(FA19=0,FM19=0),0,IF(FM19-FA19+1>30,30,FM19-FA19+1)) -> 0 | EP19: =IF(IF(OR(FB19=0,FN19=0),0,IF(FN19-FB19+1>30,30,FN19-FB19+1))>=28,30,IF(OR(FB19=0,FN19=0),0,IF(FN19-FB19+1>30,30,FN19-FB19+1))) -> 0 | EQ19: =IF(OR(FC19=0,FO19=0),0,IF(FO19-FC19+1>30,30,FO19-FC19+1)) -> 0 | ER19: 0 | ES19: 0 | ET19: 0 | EU19: =IFERROR(IF($N19<=EU$11,1,IF(YEAR($N19)=YEAR(EU$11),IF(MONTH($N19)=MONTH(EU$11),DAY($N19),0))),0) -> 1 | FG19: =IFERROR(IF(OR($O19="",$O19=0),DAY(FG$11),IF($O19>=FG$11,DAY(FG$11),IF(MONTH($O19)=MONTH(FG$11),DAY($O19),0))),0) -> 31
B20: 8 | Q20: =IFERROR(VLOOKUP(P20,Importes!L:Q,2,FALSE),"") ->  | S20: =IF(G20="","",#REF!) ->  | T20: =IF(G20="","",#REF!) ->  | W20: =IF(G20="","",IF($AG$8="x","Mensualidade",IF(AND($AG$8="",#REF!="x",$AH$8=DATE(YEAR($CU$7),12,1)),"Extra Inverno",IF(AND($AG$8="",#REF!="x",$AH$8=DATE(YEAR($CV$8),6,1)),"Extra Verán","")))) ->  | X20: 0 | AB20: AM+E | AC20: Si | AD20: 8 | AF20: AM+E | AG20: 0 | AH20: =IFERROR(IF(OR(AD20="+CT",AF20=""),0,ROUND(IF(MOD(AG20,30)=0,QUOTIENT(AG20,30)*VLOOKUP(C20&AF20,Importes!$A$2:$I$14,IF($I$7<DATE(2026,1,1),6,9),FALSE)*(IF($AE20>100,0,$AE20)/100),AG20*VLOOKUP(C20&AF20,Importes!$A$2:$I$14,IF($I$7<DATE(2026,1,1),5,8),FALSE)*(IF($AE20>100,0,$AE20)/100)),2)),0) -> 0 | AK20: =IFERROR(IF(AJ20="","",IF(AJ20<180,AJ20*VLOOKUP(C20&"CP",Importes!$A$2:$I$14,IF($I$7<DATE(2026,1,1),5,8),FALSE)*(IF($AI20>100,0,$AI20)/100),IF(AJ20=180,VLOOKUP(C20&"CP",Importes!$A$2:$I$14,IF($I$7<DATE(2026,1,1),6,9),FALSE)*6*(IF($AI20>100,0,$AI20)/100),0))),0) ->  | AN20: =IF(AM20="","",IF(AM20>0,ROUND(IF(MOD(AM20,30)=0,QUOTIENT(AM20,30)*VLOOKUP(C20&IF(AC20="Si","AM+E","AM"),Importes!$A$2:$I$14,IF($I$7<DATE(2026,1,1),6,9),FALSE)*(IF($AL20>100,0,$AL20)/100),AM20*VLOOKUP(C20&IF(AC20="Si","AM+E","AM"),Importes!$A$2:$I$14,IF($I$7<DATE(2026,1,1),5,8),FALSE)*(IF($AL20>100,0,$AL20)/100)),2),0)) ->  | AT20: Non | BG20: 100 | BH20: 0 | BI20: =IFERROR(IF(OR(AD20="+CT",AF20=""),0,ROUND(IF(MOD(AG20,30)=0,QUOTIENT(AG20,30)*VLOOKUP(C20&AF20,Importes!$A$2:$I$14,IF($I$7<DATE(2026,1,1),6,9),FALSE)*(IF($AE20>100,0,$AE20)/100),AG20*VLOOKUP(C20&AF20,Importes!$A$2:$I$14,IF($I$7<DATE(2026,1,1),5,8),FALSE)*(IF($AE20>100,0,$AE20)/100)),2)),0) -> 0 | BL20: =IF(AJ20="","",IF(AJ20>0,ROUND(IF(MOD(AJ20,30)=0,QUOTIENT(AJ20,30)*VLOOKUP(C20&"CP",Importes!$A$2:$I$14,IF($I$7<DATE(2026,1,1),6,9),FALSE)*(IF($BG20>100,0,$BG20)/100),BK20*VLOOKUP(C20&"CP",Importes!$A$2:$I$14,IF($I$7<DATE(2026,1,1),5,8),FALSE)*(IF($BG20>100,0,$BG20)/100)),2),0)) ->  | BO20: =IF(AM20="","",IF(AM20>0,ROUND(IF(MOD(AM20,30)=0,QUOTIENT(AM20,30)*VLOOKUP(C20&IF(AC20="Si","AM+E","AM"),Importes!$A$2:$I$14,IF($I$7<DATE(2026,1,1),6,9),FALSE)*(IF($BG20>100,0,$BG20)/100),AM20*VLOOKUP(C20&IF(AC20="Si","AM+E","AM"),Importes!$A$2:$I$14,IF($I$7<DATE(2026,1,1),5,8),FALSE)*(IF($BG20>100,0,$BG20)/100)),2),0)) ->  | CN20: =IF(VALUE($A20)=0,"",IF(CN$11="","",IF(AND($O20<>"",$O20<CN$6),"",IF($N20>CN$6,"",IF(AND(OR($O20="",$O20>=CN$6),$AR20="",$AF20<>""),"F",IF(AND($AR20<=CN$6,OR($AS20=$O20,$AS20>=CN$6,IF($AS20="",$AU$5))),"h",IF($DE20>=CN$6,"F",""))))))) ->  | CV20: 0 | CW20: 0 | CX20: 0 | CY20: 0 | CZ20: 0 | DA20: 0 | DB20: 5 | DC20: 0 | DD20: 2025-11-01 | DE20: 2025-11-30 | DF20: 0 | DG20: 0 | DH20: 2025-01-01 | DI20: 2025-11-30 | DJ20: 00:00:00 | DK20: 2025-01-01 | DL20: 0 | DM20: 0 | DN20: 0 | DO20: 0 | DP20: 0 | DQ20: 2025-01-01 | DR20: 0 | DS20: =IFERROR(#REF!+IF(EE20=$I$7,1,0),0) -> 0 | DT20: 0 | DU20: 0 | DV20: 0 | DW20: 3 | DX20: 0 | DY20: 0 | DZ20: 0 | EA20: AA | EB20: A | EC20: A | ED20: NO | EG20: 148 | EH20: 30 | EI20: 30 | EJ20: 30 | EK20: 30 | EL20: 28 | EM20: 210 | EN20: 30 | EO20: 30 | EP20: 30 | EQ20: 30 | ER20: 30 | ES20: 30 | ET20: 30 | EU20: 1 | EV20: 1 | EW20: 1 | EX20: 1 | EY20: 1 | EZ20: 1 | FA20: 1 | FB20: 1 | FC20: 1 | FD20: 1 | FE20: 1 | FF20: 1 | FG20: 31 | FH20: 30 | FI20: 31 | FJ20: 31 | FK20: 28 | FL20: 31 | FM20: 30 | FN20: 31 | FO20: 30 | FP20: 31 | FQ20: 31 | FR20: 30
B21: 9 | Q21: =IFERROR(VLOOKUP(P21,Importes!L:Q,2,FALSE),"") ->  | S21: =IF(G21="","",#REF!) ->  | T21: =IF(G21="","",#REF!) ->  | W21: =IF(G21="","",IF($AG$8="x","Mensualidade",IF(AND($AG$8="",#REF!="x",$AH$8=DATE(YEAR($CU$7),12,1)),"Extra Inverno",IF(AND($AG$8="",#REF!="x",$AH$8=DATE(YEAR($CV$8),6,1)),"Extra Verán","")))) ->  | X21: 0 | AB21: AM+E | AC21: Si | AD21: 9 | AF21: AM+E | AG21: 0 | AH21: 0 | AK21: =IFERROR(IF(AJ21="","",IF(AJ21<180,AJ21*VLOOKUP(C21&"CP",Importes!$A$2:$I$14,IF($I$7<DATE(2026,1,1),5,8),FALSE)*(IF($AI21>100,0,$AI21)/100),IF(AJ21=180,VLOOKUP(C21&"CP",Importes!$A$2:$I$14,IF($I$7<DATE(2026,1,1),6,9),FALSE)*6*(IF($AI21>100,0,$AI21)/100),0))),0) ->  | AN21: =IF(AM21="","",IF(AM21>0,ROUND(IF(MOD(AM21,30)=0,QUOTIENT(AM21,30)*VLOOKUP(C21&IF(AC21="Si","AM+E","AM"),Importes!$A$2:$I$14,IF($I$7<DATE(2026,1,1),6,9),FALSE)*(IF($AL21>100,0,$AL21)/100),AM21*VLOOKUP(C21&IF(AC21="Si","AM+E","AM"),Importes!$A$2:$I$14,IF($I$7<DATE(2026,1,1),5,8),FALSE)*(IF($AL21>100,0,$AL21)/100)),2),0)) ->  | AT21: Non | BG21: 100 | BH21: 0 | BI21: =IFERROR(IF(OR(AD21="+CT",AF21=""),0,ROUND(IF(MOD(AG21,30)=0,QUOTIENT(AG21,30)*VLOOKUP(C21&AF21,Importes!$A$2:$I$14,IF($I$7<DATE(2026,1,1),6,9),FALSE)*(IF($AE21>100,0,$AE21)/100),AG21*VLOOKUP(C21&AF21,Importes!$A$2:$I$14,IF($I$7<DATE(2026,1,1),5,8),FALSE)*(IF($AE21>100,0,$AE21)/100)),2)),0) -> 0 | BL21: =IF(AJ21="","",IF(AJ21>0,ROUND(IF(MOD(AJ21,30)=0,QUOTIENT(AJ21,30)*VLOOKUP(C21&"CP",Importes!$A$2:$I$14,IF($I$7<DATE(2026,1,1),6,9),FALSE)*(IF($BG21>100,0,$BG21)/100),BK21*VLOOKUP(C21&"CP",Importes!$A$2:$I$14,IF($I$7<DATE(2026,1,1),5,8),FALSE)*(IF($BG21>100,0,$BG21)/100)),2),0)) ->  | BO21: =IF(AM21="","",IF(AM21>0,ROUND(IF(MOD(AM21,30)=0,QUOTIENT(AM21,30)*VLOOKUP(C21&IF(AC21="Si","AM+E","AM"),Importes!$A$2:$I$14,IF($I$7<DATE(2026,1,1),6,9),FALSE)*(IF($BG21>100,0,$BG21)/100),AM21*VLOOKUP(C21&IF(AC21="Si","AM+E","AM"),Importes!$A$2:$I$14,IF($I$7<DATE(2026,1,1),5,8),FALSE)*(IF($BG21>100,0,$BG21)/100)),2),0)) ->  | BV21: =IF(VALUE($A21)=0,"",IF(BV$11="","",IF(AND($O21<>"",$O21<BV$6),"",IF($N21>BV$6,"",IF(AND(OR($O21="",$O21>=BV$6),$AR21="",$AF21<>""),"F",IF(AND($AR21<=BV$6,OR($AS21=$O21,$AS21>=BV$6,IF($AS21="",$AU$5))),"h",IF($DE21>=BV$6,"F",""))))))) ->  | CF21: =IF(VALUE($A21)=0,"",IF(CF$11="","",IF(AND($O21<>"",$O21<CF$6),"",IF($N21>CF$6,"",IF(AND(OR($O21="",$O21>=CF$6),$AR21="",$AF21<>""),"F",IF(AND($AR21<=CF$6,OR($AS21=$O21,$AS21>=CF$6,IF($AS21="",$AU$5))),"h",IF($DE21>=CF$6,"F",""))))))) ->  | CV21: 0 | CW21: 0 | CX21: 0 | CY21: 0 | CZ21: 0 | DA21: 0 | DB21: 5 | DC21: 5 | DD21: 2025-11-01 | DE21: 2025-11-30 | DF21: 0 | DG21: 0 | DH21: 2025-01-01 | DI21: 2025-11-30 | DJ21: 00:00:00 | DK21: 2025-01-01 | DL21: 0 | DM21: 0 | DN21: 0 | DO21: 0 | DP21: 0 | DQ21: 2025-01-01 | DR21: 0 | DS21: =IFERROR(DS20+IF(EE21=$I$7,1,0),0) -> 0 | DT21: 0 | DU21: 0 | DV21: 0 | DW21: 3 | DX21: 0 | DY21: 0 | DZ21: 0 | EA21: AA | EB21: A | EC21: A | ED21: NO | EG21: 148 | EH21: 30 | EI21: 30 | EJ21: 30 | EK21: 30 | EL21: 28 | EM21: 210 | EN21: 30 | EO21: 30 | EP21: 30 | EQ21: 30 | ER21: 30 | ES21: 30 | ET21: 30 | EU21: 1 | EV21: 1 | EW21: 1 | EX21: 1 | EY21: 1 | EZ21: 1 | FA21: 1 | FB21: 1 | FC21: 1 | FD21: 1 | FE21: 1 | FF21: 1 | FG21: 31 | FH21: 30 | FI21: 31 | FJ21: 31 | FK21: 28 | FL21: 31 | FM21: 30 | FN21: 31 | FO21: 30 | FP21: 31 | FQ21: 31 | FR21: 30
Q22: =IFERROR(VLOOKUP(P22,Importes!L:Q,2,FALSE),"") ->  | S22: =IF(G22="","",#REF!) ->  | T22: =IF(G22="","",#REF!) ->  | W22: =IF(G22="","",IF($AG$8="x","Mensualidade",IF(AND($AG$8="",#REF!="x",$AH$8=DATE(YEAR($CU$7),12,1)),"Extra Inverno",IF(AND($AG$8="",#REF!="x",$AH$8=DATE(YEAR($CV$8),6,1)),"Extra Verán","")))) ->  | X22: 0 | AB22: AM+E | AC22: Si | AD22: 11 | AF22: =IF(AC22="Non","AM+e","AM+E") -> AM+E | AG22: 0 | AH22: =IFERROR(IF(OR(AD22="+CT",AF22=""),0,ROUND(IF(MOD(AG22,30)=0,QUOTIENT(AG22,30)*VLOOKUP(C22&AF22,Importes!$A$2:$I$14,IF($I$7<DATE(2026,1,1),6,9),FALSE)*(IF($AE22>100,0,$AE22)/100),AG22*VLOOKUP(C22&AF22,Importes!$A$2:$I$14,IF($I$7<DATE(2026,1,1),5,8),FALSE)*(IF($AE22>100,0,$AE22)/100)),2)),0) -> 0 | AK22: =IFERROR(IF(AJ22="","",IF(AJ22<180,AJ22*VLOOKUP(C22&"CP",Importes!$A$2:$I$14,IF($I$7<DATE(2026,1,1),5,8),FALSE)*(IF($AI22>100,0,$AI22)/100),IF(AJ22=180,VLOOKUP(C22&"CP",Importes!$A$2:$I$14,IF($I$7<DATE(2026,1,1),6,9),FALSE)*6*(IF($AI22>100,0,$AI22)/100),0))),0) ->  | AN22: =IF(AM22="","",IF(AM22>0,ROUND(IF(MOD(AM22,30)=0,QUOTIENT(AM22,30)*VLOOKUP(C22&IF(AC22="Si","AM+E","AM"),Importes!$A$2:$I$14,IF($I$7<DATE(2026,1,1),6,9),FALSE)*(IF($AL22>100,0,$AL22)/100),AM22*VLOOKUP(C22&IF(AC22="Si","AM+E","AM"),Importes!$A$2:$I$14,IF($I$7<DATE(2026,1,1),5,8),FALSE)*(IF($AL22>100,0,$AL22)/100)),2),0)) ->  | AT22: Non | AW22: =IF($AH22>0,"X","") ->  | BH22: 0 | BI22: =IFERROR(IF(OR(AD22="+CT",AF22=""),0,ROUND(IF(MOD(AG22,30)=0,QUOTIENT(AG22,30)*VLOOKUP(C22&AF22,Importes!$A$2:$I$14,IF($I$7<DATE(2026,1,1),6,9),FALSE)*(IF($AE22>100,0,$AE22)/100),AG22*VLOOKUP(C22&AF22,Importes!$A$2:$I$14,IF($I$7<DATE(2026,1,1),5,8),FALSE)*(IF($AE22>100,0,$AE22)/100)),2)),0) -> 0 | BL22: =IF(AJ22="","",IF(AJ22>0,ROUND(IF(MOD(AJ22,30)=0,QUOTIENT(AJ22,30)*VLOOKUP(C22&"CP",Importes!$A$2:$I$14,IF($I$7<DATE(2026,1,1),6,9),FALSE)*(IF($BG22>100,0,$BG22)/100),BK22*VLOOKUP(C22&"CP",Importes!$A$2:$I$14,IF($I$7<DATE(2026,1,1),5,8),FALSE)*(IF($BG22>100,0,$BG22)/100)),2),0)) ->  | BO22: =IF(AM22="","",IF(AM22>0,ROUND(IF(MOD(AM22,30)=0,QUOTIENT(AM22,30)*VLOOKUP(C22&IF(AC22="Si","AM+E","AM"),Importes!$A$2:$I$14,IF($I$7<DATE(2026,1,1),6,9),FALSE)*(IF($BG22>100,0,$BG22)/100),AM22*VLOOKUP(C22&IF(AC22="Si","AM+E","AM"),Importes!$A$2:$I$14,IF($I$7<DATE(2026,1,1),5,8),FALSE)*(IF($BG22>100,0,$BG22)/100)),2),0)) ->  | CV22: 0 | CW22: 0 | CX22: 0 | CY22: 0 | CZ22: 0 | DA22: 0 | DB22: 5 | DC22: 5 | DD22: 2025-11-01 | DE22: 2025-11-30 | DF22: 0 | DG22: 0 | DH22: 2025-01-01 | DI22: 2025-11-30 | DJ22: 00:00:00 | DK22: 2025-01-01 | DL22: 0 | DM22: 0 | DN22: 0 | DO22: 0 | DP22: 0 | DQ22: 2025-01-01 | DR22: 0 | DS22: =IFERROR(#REF!+IF(EE22=$I$7,1,0),0) -> 0 | DT22: 0 | DU22: 0 | DV22: 0 | DW22: 3 | DX22: 0 | DY22: 0 | DZ22: 0 | EA22: AA | EB22: A | EC22: A | ED22: NO | EG22: 148 | EH22: 30 | EI22: 30 | EJ22: 30 | EK22: 30 | EL22: 28 | EM22: 210 | EN22: 30 | EO22: 30 | EP22: 30 | EQ22: 30 | ER22: 30 | ES22: 30 | ET22: 30 | EU22: 1 | EV22: 1 | EW22: 1 | EX22: 1 | EY22: 1 | EZ22: 1 | FA22: 1 | FB22: 1 | FC22: 1 | FD22: 1 | FE22: 1 | FF22: 1 | FG22: 31 | FH22: 30 | FI22: 31 | FJ22: 31 | FK22: 28 | FL22: 31 | FM22: 30 | FN22: 31 | FO22: 30 | FP22: 31 | FQ22: 31 | FR22: 30
Q23: =IFERROR(VLOOKUP(P23,Importes!L:Q,2,FALSE),"") ->  | S23: =IF(G23="","",#REF!) ->  | T23: =IF(G23="","",#REF!) ->  | W23: =IF(G23="","",IF($AG$8="x","Mensualidade",IF(AND($AG$8="",#REF!="x",$AH$8=DATE(YEAR($CU$7),12,1)),"Extra Inverno",IF(AND($AG$8="",#REF!="x",$AH$8=DATE(YEAR($CV$8),6,1)),"Extra Verán","")))) ->  | X23: 0 | AB23: AM+E | AC23: Si | AD23: 12 | AF23: AM+E | AG23: 0 | AH23: =IFERROR(IF(OR(AD23="+CT",AF23=""),0,ROUND(IF(MOD(AG23,30)=0,QUOTIENT(AG23,30)*VLOOKUP(C23&AF23,Importes!$A$2:$I$14,IF($I$7<DATE(2026,1,1),6,9),FALSE)*(IF($AE23>100,0,$AE23)/100),AG23*VLOOKUP(C23&AF23,Importes!$A$2:$I$14,IF($I$7<DATE(2026,1,1),5,8),FALSE)*(IF($AE23>100,0,$AE23)/100)),2)),0) -> 0 | AK23: =IFERROR(IF(AJ23="","",IF(AJ23<180,AJ23*VLOOKUP(C23&"CP",Importes!$A$2:$I$14,IF($I$7<DATE(2026,1,1),5,8),FALSE)*(IF($AI23>100,0,$AI23)/100),IF(AJ23=180,VLOOKUP(C23&"CP",Importes!$A$2:$I$14,IF($I$7<DATE(2026,1,1),6,9),FALSE)*6*(IF($AI23>100,0,$AI23)/100),0))),0) ->  | AN23: =IF(AM23="","",IF(AM23>0,ROUND(IF(MOD(AM23,30)=0,QUOTIENT(AM23,30)*VLOOKUP(C23&IF(AC23="Si","AM+E","AM"),Importes!$A$2:$I$14,IF($I$7<DATE(2026,1,1),6,9),FALSE)*(IF($AL23>100,0,$AL23)/100),AM23*VLOOKUP(C23&IF(AC23="Si","AM+E","AM"),Importes!$A$2:$I$14,IF($I$7<DATE(2026,1,1),5,8),FALSE)*(IF($AL23>100,0,$AL23)/100)),2),0)) ->  | AT23: Non | BH23: 0 | BI23: =IFERROR(IF(OR(AD23="+CT",AF23=""),0,ROUND(IF(MOD(AG23,30)=0,QUOTIENT(AG23,30)*VLOOKUP(C23&AF23,Importes!$A$2:$I$14,IF($I$7<DATE(2026,1,1),6,9),FALSE)*(IF($AE23>100,0,$AE23)/100),AG23*VLOOKUP(C23&AF23,Importes!$A$2:$I$14,IF($I$7<DATE(2026,1,1),5,8),FALSE)*(IF($AE23>100,0,$AE23)/100)),2)),0) -> 0 | BL23: =IF(AJ23="","",IF(AJ23>0,ROUND(IF(MOD(AJ23,30)=0,QUOTIENT(AJ23,30)*VLOOKUP(C23&"CP",Importes!$A$2:$I$14,IF($I$7<DATE(2026,1,1),6,9),FALSE)*(IF($BG23>100,0,$BG23)/100),BK23*VLOOKUP(C23&"CP",Importes!$A$2:$I$14,IF($I$7<DATE(2026,1,1),5,8),FALSE)*(IF($BG23>100,0,$BG23)/100)),2),0)) ->  | BO23: =IF(AM23="","",IF(AM23>0,ROUND(IF(MOD(AM23,30)=0,QUOTIENT(AM23,30)*VLOOKUP(C23&IF(AC23="Si","AM+E","AM"),Importes!$A$2:$I$14,IF($I$7<DATE(2026,1,1),6,9),FALSE)*(IF($BG23>100,0,$BG23)/100),AM23*VLOOKUP(C23&IF(AC23="Si","AM+E","AM"),Importes!$A$2:$I$14,IF($I$7<DATE(2026,1,1),5,8),FALSE)*(IF($BG23>100,0,$BG23)/100)),2),0)) ->  | CV23: 0 | CW23: 0 | CX23: 0 | CY23: 0 | CZ23: 0 | DA23: 0 | DB23: 5 | DC23: 5 | DD23: 2025-11-01 | DE23: 2025-11-30 | DF23: 0 | DG23: 0 | DH23: 2025-01-01 | DI23: 2025-11-30 | DJ23: 00:00:00 | DK23: 2025-01-01 | DL23: 0 | DM23: 0 | DN23: 0 | DO23: 0 | DP23: 0 | DQ23: 2025-01-01 | DR23: 0 | DS23: =IFERROR(#REF!+IF(EE23=$I$7,1,0),0) -> 0 | DT23: 0 | DU23: 0 | DV23: 0 | DW23: 3 | DX23: 0 | DY23: 0 | DZ23: 0 | EA23: AA | EB23: A | EC23: A | ED23: NO | EG23: 148 | EH23: 30 | EI23: 30 | EJ23: 30 | EK23: 30 | EL23: 28 | EM23: 210 | EN23: 30 | EO23: 30 | EP23: 30 | EQ23: 30 | ER23: 30 | ES23: 30 | ET23: 30 | EU23: =IFERROR(IF($N23<=EU$11,1,IF(YEAR($N23)=YEAR(EU$11),IF(MONTH($N23)=MONTH(EU$11),DAY($N23),0))),0) -> 1 | EV23: 1 | EW23: 1 | EX23: 1 | EY23: 1 | EZ23: 1 | FA23: 1 | FB23: 1 | FC23: 1 | FD23: 1 | FE23: 1 | FF23: 1 | FG23: =IFERROR(IF(OR($O23="",$O23=0),DAY(FG$11),IF($O23>=FG$11,DAY(FG$11),IF(MONTH($O23)=MONTH(FG$11),DAY($O23),0))),0) -> 31 | FH23: 30 | FI23: 31 | FJ23: 31 | FK23: 28 | FL23: 31 | FM23: 30 | FN23: 31 | FO23: 30 | FP23: 31 | FQ23: 31 | FR23: 30
Q24: =IFERROR(VLOOKUP(P24,Importes!L:Q,2,FALSE),"") ->  | S24: =IF(G24="","",#REF!) ->  | T24: =IF(G24="","",#REF!) ->  | W24: =IF(G24="","",IF($AG$8="x","Mensualidade",IF(AND($AG$8="",#REF!="x",$AH$8=DATE(YEAR($CU$7),12,1)),"Extra Inverno",IF(AND($AG$8="",#REF!="x",$AH$8=DATE(YEAR($CV$8),6,1)),"Extra Verán","")))) ->  | X24: 0 | AB24: AM+E | AC24: Si | AD24: 15 | AF24: AM+E | AG24: 0 | AH24: =IFERROR(IF(OR(AD24="+CT",AF24=""),0,ROUND(IF(MOD(AG24,30)=0,QUOTIENT(AG24,30)*VLOOKUP(C24&AF24,Importes!$A$2:$I$14,IF($I$7<DATE(2026,1,1),6,9),FALSE)*(IF($AE24>100,0,$AE24)/100),AG24*VLOOKUP(C24&AF24,Importes!$A$2:$I$14,IF($I$7<DATE(2026,1,1),5,8),FALSE)*(IF($AE24>100,0,$AE24)/100)),2)),0) -> 0 | AK24: =IFERROR(IF(AJ24="","",IF(AJ24<180,AJ24*VLOOKUP(C24&"CP",Importes!$A$2:$I$14,IF($I$7<DATE(2026,1,1),5,8),FALSE)*(IF($AI24>100,0,$AI24)/100),IF(AJ24=180,VLOOKUP(C24&"CP",Importes!$A$2:$I$14,IF($I$7<DATE(2026,1,1),6,9),FALSE)*6*(IF($AI24>100,0,$AI24)/100),0))),0) ->  | AN24: =IF(AM24="","",IF(AM24>0,ROUND(IF(MOD(AM24,30)=0,QUOTIENT(AM24,30)*VLOOKUP(C24&IF(AC24="Si","AM+E","AM"),Importes!$A$2:$I$14,IF($I$7<DATE(2026,1,1),6,9),FALSE)*(IF($AL24>100,0,$AL24)/100),AM24*VLOOKUP(C24&IF(AC24="Si","AM+E","AM"),Importes!$A$2:$I$14,IF($I$7<DATE(2026,1,1),5,8),FALSE)*(IF($AL24>100,0,$AL24)/100)),2),0)) ->  | AT24: Non | BH24: 0 | BI24: =IFERROR(IF(OR(AD24="+CT",AF24=""),0,ROUND(IF(MOD(AG24,30)=0,QUOTIENT(AG24,30)*VLOOKUP(C24&AF24,Importes!$A$2:$I$14,IF($I$7<DATE(2026,1,1),6,9),FALSE)*(IF($AE24>100,0,$AE24)/100),AG24*VLOOKUP(C24&AF24,Importes!$A$2:$I$14,IF($I$7<DATE(2026,1,1),5,8),FALSE)*(IF($AE24>100,0,$AE24)/100)),2)),0) -> 0 | BL24: =IF(AJ24="","",IF(AJ24>0,ROUND(IF(MOD(AJ24,30)=0,QUOTIENT(AJ24,30)*VLOOKUP(C24&"CP",Importes!$A$2:$I$14,IF($I$7<DATE(2026,1,1),6,9),FALSE)*(IF($BG24>100,0,$BG24)/100),BK24*VLOOKUP(C24&"CP",Importes!$A$2:$I$14,IF($I$7<DATE(2026,1,1),5,8),FALSE)*(IF($BG24>100,0,$BG24)/100)),2),0)) ->  | BO24: =IF(AM24="","",IF(AM24>0,ROUND(IF(MOD(AM24,30)=0,QUOTIENT(AM24,30)*VLOOKUP(C24&IF(AC24="Si","AM+E","AM"),Importes!$A$2:$I$14,IF($I$7<DATE(2026,1,1),6,9),FALSE)*(IF($BG24>100,0,$BG24)/100),AM24*VLOOKUP(C24&IF(AC24="Si","AM+E","AM"),Importes!$A$2:$I$14,IF($I$7<DATE(2026,1,1),5,8),FALSE)*(IF($BG24>100,0,$BG24)/100)),2),0)) ->  | CU24: =IF(VALUE($A24)=0,"",IF(CU$11="","",IF(AND($O24<>"",$O24<CU$6),"",IF($N24>CU$6,"",IF(AND(OR($O24="",$O24>=CU$6),$AR24="",$AF24<>""),"F",IF(AND($AR24<=CU$6,OR($AS24=$O24,$AS24>=CU$6,IF($AS24="",$AU$5))),"h",IF($DE24>=CU$6,"F",""))))))) ->  | CV24: 0 | CW24: 0 | CX24: 0 | CY24: 0 | CZ24: 0 | DA24: 0 | DB24: 5 | DC24: 5 | DD24: 2025-11-01 | DE24: 2025-11-30 | DF24: 0 | DG24: 0 | DH24: 2025-01-01 | DI24: 2025-11-30 | DJ24: 00:00:00 | DK24: 2025-01-01 | DL24: 0 | DM24: 0 | DN24: 0 | DO24: 0 | DP24: 0 | DQ24: 2025-01-01 | DR24: 0 | DS24: =IFERROR(#REF!+IF(EE24=$I$7,1,0),0) -> 0 | DT24: 0 | DU24: 0 | DV24: 0 | DW24: 3 | DX24: 0 | DY24: 0 | DZ24: 0 | EA24: AA | EB24: A | EC24: A | ED24: NO | EG24: 148 | EH24: 30 | EI24: 30 | EJ24: 30 | EK24: 30 | EL24: 28 | EM24: 210 | EN24: 30 | EO24: 30 | EP24: 30 | EQ24: 30 | ER24: 30 | ES24: 30 | ET24: 30 | EU24: 1 | EV24: 1 | EW24: 1 | EX24: 1 | EY24: 1 | EZ24: 1 | FA24: 1 | FB24: 1 | FC24: 1 | FD24: 1 | FE24: 1 | FF24: 1 | FG24: 31 | FH24: 30 | FI24: 31 | FJ24: 31 | FK24: 28 | FL24: 31 | FM24: 30 | FN24: 31 | FO24: 30 | FP24: 31 | FQ24: 31 | FR24: 30
Q25: =IFERROR(VLOOKUP(P25,Importes!L:Q,2,FALSE),"") ->  | S25: =IF(G25="","",#REF!) ->  | T25: =IF(G25="","",#REF!) ->  | W25: =IF(G25="","",IF($AG$8="x","Mensualidade",IF(AND($AG$8="",#REF!="x",$AH$8=DATE(YEAR($CU$7),12,1)),"Extra Inverno",IF(AND($AG$8="",#REF!="x",$AH$8=DATE(YEAR($CV$8),6,1)),"Extra Verán","")))) ->  | X25: 0 | AB25: AM+E | AC25: Si | AD25: 17 | AF25: AM+E | AG25: 0 | AH25: =IFERROR(IF(OR(AD25="+CT",AF25=""),0,ROUND(IF(MOD(AG25,30)=0,QUOTIENT(AG25,30)*VLOOKUP(C25&AF25,Importes!$A$2:$I$14,IF($I$7<DATE(2026,1,1),6,9),FALSE)*(IF($AE25>100,0,$AE25)/100),AG25*VLOOKUP(C25&AF25,Importes!$A$2:$I$14,IF($I$7<DATE(2026,1,1),5,8),FALSE)*(IF($AE25>100,0,$AE25)/100)),2)),0) -> 0 | AK25: =IFERROR(IF(AJ25="","",IF(AJ25<180,AJ25*VLOOKUP(C25&"CP",Importes!$A$2:$I$14,IF($I$7<DATE(2026,1,1),5,8),FALSE)*(IF($AI25>100,0,$AI25)/100),IF(AJ25=180,VLOOKUP(C25&"CP",Importes!$A$2:$I$14,IF($I$7<DATE(2026,1,1),6,9),FALSE)*6*(IF($AI25>100,0,$AI25)/100),0))),0) ->  | AN25: =IF(AM25="","",IF(AM25>0,ROUND(IF(MOD(AM25,30)=0,QUOTIENT(AM25,30)*VLOOKUP(C25&IF(AC25="Si","AM+E","AM"),Importes!$A$2:$I$14,IF($I$7<DATE(2026,1,1),6,9),FALSE)*(IF($AL25>100,0,$AL25)/100),AM25*VLOOKUP(C25&IF(AC25="Si","AM+E","AM"),Importes!$A$2:$I$14,IF($I$7<DATE(2026,1,1),5,8),FALSE)*(IF($AL25>100,0,$AL25)/100)),2),0)) ->  | AT25: Non | BH25: 0 | BI25: =IFERROR(IF(OR(AD25="+CT",AF25=""),0,ROUND(IF(MOD(AG25,30)=0,QUOTIENT(AG25,30)*VLOOKUP(C25&AF25,Importes!$A$2:$I$14,IF($I$7<DATE(2026,1,1),6,9),FALSE)*(IF($AE25>100,0,$AE25)/100),AG25*VLOOKUP(C25&AF25,Importes!$A$2:$I$14,IF($I$7<DATE(2026,1,1),5,8),FALSE)*(IF($AE25>100,0,$AE25)/100)),2)),0) -> 0 | BL25: =IF(AJ25="","",IF(AJ25>0,ROUND(IF(MOD(AJ25,30)=0,QUOTIENT(AJ25,30)*VLOOKUP(C25&"CP",Importes!$A$2:$I$14,IF($I$7<DATE(2026,1,1),6,9),FALSE)*(IF($BG25>100,0,$BG25)/100),BK25*VLOOKUP(C25&"CP",Importes!$A$2:$I$14,IF($I$7<DATE(2026,1,1),5,8),FALSE)*(IF($BG25>100,0,$BG25)/100)),2),0)) ->  | BO25: =IF(AM25="","",IF(AM25>0,ROUND(IF(MOD(AM25,30)=0,QUOTIENT(AM25,30)*VLOOKUP(C25&IF(AC25="Si","AM+E","AM"),Importes!$A$2:$I$14,IF($I$7<DATE(2026,1,1),6,9),FALSE)*(IF($BG25>100,0,$BG25)/100),AM25*VLOOKUP(C25&IF(AC25="Si","AM+E","AM"),Importes!$A$2:$I$14,IF($I$7<DATE(2026,1,1),5,8),FALSE)*(IF($BG25>100,0,$BG25)/100)),2),0)) ->  | CV25: 0 | CW25: 0 | CX25: 0 | CY25: 0 | CZ25: 0 | DA25: 0 | DB25: 5 | DC25: 5 | DD25: 2025-11-01 | DE25: 2025-11-30 | DF25: 0 | DG25: 0 | DH25: 2025-01-01 | DI25: 2025-11-30 | DJ25: 00:00:00 | DK25: 2025-01-01 | DL25: 0 | DM25: 0 | DN25: 0 | DO25: 0 | DP25: 0 | DQ25: 2025-01-01 | DR25: 0 | DS25: =IFERROR(#REF!+IF(EE25=$I$7,1,0),0) -> 0 | DT25: 0 | DU25: 0 | DV25: 0 | DW25: 3 | DX25: 0 | DY25: 0 | DZ25: 0 | EA25: AA | EB25: A | EC25: A | ED25: NO | EG25: 148 | EH25: 30 | EI25: 30 | EJ25: 30 | EK25: 30 | EL25: 28 | EM25: 210 | EN25: 30 | EO25: 30 | EP25: 30 | EQ25: 30 | ER25: 30 | ES25: 30 | ET25: 30 | EU25: 1 | EV25: 1 | EW25: 1 | EX25: 1 | EY25: 1 | EZ25: 1 | FA25: 1 | FB25: 1 | FC25: 1 | FD25: 1 | FE25: 1 | FF25: 1 | FG25: 31 | FH25: 30 | FI25: 31 | FJ25: 31 | FK25: 28 | FL25: 31 | FM25: 30 | FN25: 31 | FO25: 30 | FP25: 31 | FQ25: 31 | FR25: 30
Q26: =IFERROR(VLOOKUP(P26,Importes!L:Q,2,FALSE),"") ->  | S26: =IF(G26="","",#REF!) ->  | T26: =IF(G26="","",#REF!) ->  | W26: =IF(G26="","",IF($AG$8="x","Mensualidade",IF(AND($AG$8="",#REF!="x",$AH$8=DATE(YEAR($CU$7),12,1)),"Extra Inverno",IF(AND($AG$8="",#REF!="x",$AH$8=DATE(YEAR($CV$8),6,1)),"Extra Verán","")))) ->  | X26: 0 | AB26: AM+E | AC26: Si | AD26: 18 | AF26: AM+E | AG26: 0 | AH26: =IFERROR(IF(OR(AD26="+CT",AF26=""),0,ROUND(IF(MOD(AG26,30)=0,QUOTIENT(AG26,30)*VLOOKUP(C26&AF26,Importes!$A$2:$I$14,IF($I$7<DATE(2026,1,1),6,9),FALSE)*(IF($AE26>100,0,$AE26)/100),AG26*VLOOKUP(C26&AF26,Importes!$A$2:$I$14,IF($I$7<DATE(2026,1,1),5,8),FALSE)*(IF($AE26>100,0,$AE26)/100)),2)),0) -> 0 | AK26: =IFERROR(IF(AJ26="","",IF(AJ26<180,AJ26*VLOOKUP(C26&"CP",Importes!$A$2:$I$14,IF($I$7<DATE(2026,1,1),5,8),FALSE)*(IF($AI26>100,0,$AI26)/100),IF(AJ26=180,VLOOKUP(C26&"CP",Importes!$A$2:$I$14,IF($I$7<DATE(2026,1,1),6,9),FALSE)*6*(IF($AI26>100,0,$AI26)/100),0))),0) ->  | AN26: =IF(AM26="","",IF(AM26>0,ROUND(IF(MOD(AM26,30)=0,QUOTIENT(AM26,30)*VLOOKUP(C26&IF(AC26="Si","AM+E","AM"),Importes!$A$2:$I$14,IF($I$7<DATE(2026,1,1),6,9),FALSE)*(IF($AL26>100,0,$AL26)/100),AM26*VLOOKUP(C26&IF(AC26="Si","AM+E","AM"),Importes!$A$2:$I$14,IF($I$7<DATE(2026,1,1),5,8),FALSE)*(IF($AL26>100,0,$AL26)/100)),2),0)) ->  | AT26: Non | BH26: 0 | BI26: =IFERROR(IF(OR(AD26="+CT",AF26=""),0,ROUND(IF(MOD(AG26,30)=0,QUOTIENT(AG26,30)*VLOOKUP(C26&AF26,Importes!$A$2:$I$14,IF($I$7<DATE(2026,1,1),6,9),FALSE)*(IF($AE26>100,0,$AE26)/100),AG26*VLOOKUP(C26&AF26,Importes!$A$2:$I$14,IF($I$7<DATE(2026,1,1),5,8),FALSE)*(IF($AE26>100,0,$AE26)/100)),2)),0) -> 0 | BL26: =IF(AJ26="","",IF(AJ26>0,ROUND(IF(MOD(AJ26,30)=0,QUOTIENT(AJ26,30)*VLOOKUP(C26&"CP",Importes!$A$2:$I$14,IF($I$7<DATE(2026,1,1),6,9),FALSE)*(IF($BG26>100,0,$BG26)/100),BK26*VLOOKUP(C26&"CP",Importes!$A$2:$I$14,IF($I$7<DATE(2026,1,1),5,8),FALSE)*(IF($BG26>100,0,$BG26)/100)),2),0)) ->  | BO26: =IF(AM26="","",IF(AM26>0,ROUND(IF(MOD(AM26,30)=0,QUOTIENT(AM26,30)*VLOOKUP(C26&IF(AC26="Si","AM+E","AM"),Importes!$A$2:$I$14,IF($I$7<DATE(2026,1,1),6,9),FALSE)*(IF($BG26>100,0,$BG26)/100),AM26*VLOOKUP(C26&IF(AC26="Si","AM+E","AM"),Importes!$A$2:$I$14,IF($I$7<DATE(2026,1,1),5,8),FALSE)*(IF($BG26>100,0,$BG26)/100)),2),0)) ->  | CV26: 0 | CW26: 0 | CX26: 0 | CY26: 0 | CZ26: 0 | DA26: 0 | DB26: 5 | DC26: 5 | DD26: 2025-11-01 | DE26: 2025-11-30 | DF26: 0 | DG26: 0 | DH26: 2025-01-01 | DI26: 2025-11-30 | DJ26: 00:00:00 | DK26: 2025-01-01 | DL26: 0 | DM26: 0 | DN26: 0 | DO26: 0 | DP26: 0 | DQ26: 2025-01-01 | DR26: 0 | DS26: =IFERROR(#REF!+IF(EE26=$I$7,1,0),0) -> 0 | DT26: 0 | DU26: 0 | DV26: 0 | DW26: 3 | DX26: 0 | DY26: 0 | DZ26: 0 | EA26: AA | EB26: A | EC26: A | ED26: NO | EG26: 148 | EH26: 30 | EI26: 30 | EJ26: 30 | EK26: 30 | EL26: 28 | EM26: 210 | EN26: 30 | EO26: 30 | EP26: 30 | EQ26: 30 | ER26: 30 | ES26: 30 | ET26: 30 | EU26: 1 | EV26: 1 | EW26: 1 | EX26: 1 | EY26: 1 | EZ26: 1 | FA26: 1 | FB26: 1 | FC26: 1 | FD26: 1 | FE26: 1 | FF26: 1 | FG26: 31 | FH26: 30 | FI26: 31 | FJ26: 31 | FK26: 28 | FL26: 31 | FM26: 30 | FN26: 31 | FO26: 30 | FP26: 31 | FQ26: 31 | FR26: 30
Q27: =IFERROR(VLOOKUP(P27,Importes!L:Q,2,FALSE),"") ->  | S27: =IF(G27="","",#REF!) ->  | T27: =IF(G27="","",#REF!) ->  | W27: =IF(G27="","",IF($AG$8="x","Mensualidade",IF(AND($AG$8="",#REF!="x",$AH$8=DATE(YEAR($CU$7),12,1)),"Extra Inverno",IF(AND($AG$8="",#REF!="x",$AH$8=DATE(YEAR($CV$8),6,1)),"Extra Verán","")))) ->  | X27: 0 | AB27: AM+E | AC27: Si | AD27: 19 | AF27: AM+E | AG27: 0 | AH27: =IFERROR(IF(OR(AD27="+CT",AF27=""),0,ROUND(IF(MOD(AG27,30)=0,QUOTIENT(AG27,30)*VLOOKUP(C27&AF27,Importes!$A$2:$I$14,IF($I$7<DATE(2026,1,1),6,9),FALSE)*(IF($AE27>100,0,$AE27)/100),AG27*VLOOKUP(C27&AF27,Importes!$A$2:$I$14,IF($I$7<DATE(2026,1,1),5,8),FALSE)*(IF($AE27>100,0,$AE27)/100)),2)),0) -> 0 | AK27: =IFERROR(IF(AJ27="","",IF(AJ27<180,AJ27*VLOOKUP(C27&"CP",Importes!$A$2:$I$14,IF($I$7<DATE(2026,1,1),5,8),FALSE)*(IF($AI27>100,0,$AI27)/100),IF(AJ27=180,VLOOKUP(C27&"CP",Importes!$A$2:$I$14,IF($I$7<DATE(2026,1,1),6,9),FALSE)*6*(IF($AI27>100,0,$AI27)/100),0))),0) ->  | AL27: =IFERROR(IF(AM27="","",AE27),"") ->  | AN27: =IF(AM27="","",IF(AM27>0,ROUND(IF(MOD(AM27,30)=0,QUOTIENT(AM27,30)*VLOOKUP(C27&IF(AC27="Si","AM+E","AM"),Importes!$A$2:$I$14,IF($I$7<DATE(2026,1,1),6,9),FALSE)*(IF($AL27>100,0,$AL27)/100),AM27*VLOOKUP(C27&IF(AC27="Si","AM+E","AM"),Importes!$A$2:$I$14,IF($I$7<DATE(2026,1,1),5,8),FALSE)*(IF($AL27>100,0,$AL27)/100)),2),0)) ->  | AT27: Non | BH27: 0 | BI27: =IFERROR(IF(OR(AD27="+CT",AF27=""),0,ROUND(IF(MOD(AG27,30)=0,QUOTIENT(AG27,30)*VLOOKUP(C27&AF27,Importes!$A$2:$I$14,IF($I$7<DATE(2026,1,1),6,9),FALSE)*(IF($AE27>100,0,$AE27)/100),AG27*VLOOKUP(C27&AF27,Importes!$A$2:$I$14,IF($I$7<DATE(2026,1,1),5,8),FALSE)*(IF($AE27>100,0,$AE27)/100)),2)),0) -> 0 | BL27: =IF(AJ27="","",IF(AJ27>0,ROUND(IF(MOD(AJ27,30)=0,QUOTIENT(AJ27,30)*VLOOKUP(C27&"CP",Importes!$A$2:$I$14,IF($I$7<DATE(2026,1,1),6,9),FALSE)*(IF($BG27>100,0,$BG27)/100),BK27*VLOOKUP(C27&"CP",Importes!$A$2:$I$14,IF($I$7<DATE(2026,1,1),5,8),FALSE)*(IF($BG27>100,0,$BG27)/100)),2),0)) ->  | BO27: =IF(AM27="","",IF(AM27>0,ROUND(IF(MOD(AM27,30)=0,QUOTIENT(AM27,30)*VLOOKUP(C27&IF(AC27="Si","AM+E","AM"),Importes!$A$2:$I$14,IF($I$7<DATE(2026,1,1),6,9),FALSE)*(IF($BG27>100,0,$BG27)/100),AM27*VLOOKUP(C27&IF(AC27="Si","AM+E","AM"),Importes!$A$2:$I$14,IF($I$7<DATE(2026,1,1),5,8),FALSE)*(IF($BG27>100,0,$BG27)/100)),2),0)) ->  | CV27: 0 | CW27: 0 | CX27: 0 | CY27: 0 | CZ27: 0 | DA27: 0 | DB27: 5 | DC27: 5 | DD27: 2025-11-01 | DE27: 2025-11-30 | DF27: 0 | DG27: 0 | DH27: 2025-01-01 | DI27: 2025-11-30 | DJ27: 00:00:00 | DK27: 2025-01-01 | DL27: 0 | DM27: 0 | DN27: 0 | DO27: 0 | DP27: 0 | DQ27: 2025-01-01 | DR27: 0 | DS27: =IFERROR(DS26+IF(EE27=$I$7,1,0),0) -> 0 | DT27: 0 | DU27: 0 | DV27: 0 | DW27: 3 | DX27: 0 | DY27: 0 | DZ27: 0 | EA27: AA | EB27: A | EC27: A | ED27: NO | EG27: 148 | EH27: 30 | EI27: 30 | EJ27: 30 | EK27: 30 | EL27: 28 | EM27: 210 | EN27: 30 | EO27: 30 | EP27: 30 | EQ27: 30 | ER27: 30 | ES27: 30 | ET27: 30 | EU27: 1 | EV27: 1 | EW27: 1 | EX27: 1 | EY27: 1 | EZ27: 1 | FA27: 1 | FB27: 1 | FC27: 1 | FD27: 1 | FE27: 1 | FF27: 1 | FG27: 31 | FH27: 30 | FI27: 31 | FJ27: 31 | FK27: 28 | FL27: 31 | FM27: 30 | FN27: 31 | FO27: 30 | FP27: 31 | FQ27: 31 | FR27: 30
Q28: =IFERROR(VLOOKUP(P28,Importes!L:Q,2,FALSE),"") ->  | S28: =IF(G28="","",#REF!) ->  | T28: =IF(G28="","",#REF!) ->  | W28: =IF(G28="","",IF($AG$8="x","Mensualidade",IF(AND($AG$8="",#REF!="x",$AH$8=DATE(YEAR($CU$7),12,1)),"Extra Inverno",IF(AND($AG$8="",#REF!="x",$AH$8=DATE(YEAR($CV$8),6,1)),"Extra Verán","")))) ->  | X28: 0 | AB28: AM+E | AC28: Si | AD28: 20 | AF28: AM+E | AG28: 0 | AH28: =IFERROR(IF(OR(AD28="+CT",AF28=""),0,ROUND(IF(MOD(AG28,30)=0,QUOTIENT(AG28,30)*VLOOKUP(C28&AF28,Importes!$A$2:$I$14,IF($I$7<DATE(2026,1,1),6,9),FALSE)*(IF($AE28>100,0,$AE28)/100),AG28*VLOOKUP(C28&AF28,Importes!$A$2:$I$14,IF($I$7<DATE(2026,1,1),5,8),FALSE)*(IF($AE28>100,0,$AE28)/100)),2)),0) -> 0 | AK28: =IFERROR(IF(AJ28="","",IF(AJ28<180,AJ28*VLOOKUP(C28&"CP",Importes!$A$2:$I$14,IF($I$7<DATE(2026,1,1),5,8),FALSE)*(IF($AI28>100,0,$AI28)/100),IF(AJ28=180,VLOOKUP(C28&"CP",Importes!$A$2:$I$14,IF($I$7<DATE(2026,1,1),6,9),FALSE)*6*(IF($AI28>100,0,$AI28)/100),0))),0) ->  | AN28: =IF(AM28="","",IF(AM28>0,ROUND(IF(MOD(AM28,30)=0,QUOTIENT(AM28,30)*VLOOKUP(C28&IF(AC28="Si","AM+E","AM"),Importes!$A$2:$I$14,IF($I$7<DATE(2026,1,1),6,9),FALSE)*(IF($AL28>100,0,$AL28)/100),AM28*VLOOKUP(C28&IF(AC28="Si","AM+E","AM"),Importes!$A$2:$I$14,IF($I$7<DATE(2026,1,1),5,8),FALSE)*(IF($AL28>100,0,$AL28)/100)),2),0)) ->  | AT28: Non | BH28: 0 | BI28: =IFERROR(IF(OR(AD28="+CT",AF28=""),0,ROUND(IF(MOD(AG28,30)=0,QUOTIENT(AG28,30)*VLOOKUP(C28&AF28,Importes!$A$2:$I$14,IF($I$7<DATE(2026,1,1),6,9),FALSE)*(IF($AE28>100,0,$AE28)/100),AG28*VLOOKUP(C28&AF28,Importes!$A$2:$I$14,IF($I$7<DATE(2026,1,1),5,8),FALSE)*(IF($AE28>100,0,$AE28)/100)),2)),0) -> 0 | BL28: =IF(AJ28="","",IF(AJ28>0,ROUND(IF(MOD(AJ28,30)=0,QUOTIENT(AJ28,30)*VLOOKUP(C28&"CP",Importes!$A$2:$I$14,IF($I$7<DATE(2026,1,1),6,9),FALSE)*(IF($BG28>100,0,$BG28)/100),BK28*VLOOKUP(C28&"CP",Importes!$A$2:$I$14,IF($I$7<DATE(2026,1,1),5,8),FALSE)*(IF($BG28>100,0,$BG28)/100)),2),0)) ->  | BO28: =IF(AM28="","",IF(AM28>0,ROUND(IF(MOD(AM28,30)=0,QUOTIENT(AM28,30)*VLOOKUP(C28&IF(AC28="Si","AM+E","AM"),Importes!$A$2:$I$14,IF($I$7<DATE(2026,1,1),6,9),FALSE)*(IF($BG28>100,0,$BG28)/100),AM28*VLOOKUP(C28&IF(AC28="Si","AM+E","AM"),Importes!$A$2:$I$14,IF($I$7<DATE(2026,1,1),5,8),FALSE)*(IF($BG28>100,0,$BG28)/100)),2),0)) ->  | CV28: 0 | CW28: 0 | CX28: 0 | CY28: 0 | CZ28: 0 | DA28: 0 | DB28: 5 | DC28: 5 | DD28: 2025-11-01 | DE28: 2025-11-30 | DF28: 0 | DG28: 0 | DH28: 2025-01-01 | DI28: 2025-11-30 | DJ28: 00:00:00 | DK28: 2025-01-01 | DL28: 0 | DM28: 0 | DN28: 0 | DO28: 0 | DP28: 0 | DQ28: 2025-01-01 | DR28: 0 | DS28: 0 | DT28: 0 | DU28: 0 | DV28: 0 | DW28: 3 | DX28: 0 | DY28: 0 | DZ28: 0 | EA28: AA | EB28: A | EC28: A | ED28: NO | EG28: 148 | EH28: 30 | EI28: 30 | EJ28: 30 | EK28: 30 | EL28: 28 | EM28: 210 | EN28: 30 | EO28: 30 | EP28: 30 | EQ28: 30 | ER28: 30 | ES28: 30 | ET28: 30 | EU28: 1 | EV28: 1 | EW28: 1 | EX28: 1 | EY28: 1 | EZ28: 1 | FA28: 1 | FB28: 1 | FC28: 1 | FD28: 1 | FE28: 1 | FF28: 1 | FG28: 31 | FH28: 30 | FI28: 31 | FJ28: 31 | FK28: 28 | FL28: 31 | FM28: 30 | FN28: 31 | FO28: 30 | FP28: 31 | FQ28: 31 | FR28: 30
Q29: =IFERROR(VLOOKUP(P29,Importes!L:Q,2,FALSE),"") ->  | S29: =IF(G29="","",#REF!) ->  | T29: =IF(G29="","",#REF!) ->  | W29: =IF(G29="","",IF($AG$8="x","Mensualidade",IF(AND($AG$8="",#REF!="x",$AH$8=DATE(YEAR($CU$7),12,1)),"Extra Inverno",IF(AND($AG$8="",#REF!="x",$AH$8=DATE(YEAR($CV$8),6,1)),"Extra Verán","")))) ->  | X29: 0 | AB29: AM+E | AC29: Si | AD29: 21 | AF29: AM+E | AG29: 0 | AH29: =IFERROR(IF(OR(AD29="+CT",AF29=""),0,ROUND(IF(MOD(AG29,30)=0,QUOTIENT(AG29,30)*VLOOKUP(C29&AF29,Importes!$A$2:$I$14,IF($I$7<DATE(2026,1,1),6,9),FALSE)*(IF($AE29>100,0,$AE29)/100),AG29*VLOOKUP(C29&AF29,Importes!$A$2:$I$14,IF($I$7<DATE(2026,1,1),5,8),FALSE)*(IF($AE29>100,0,$AE29)/100)),2)),0) -> 0 | AK29: =IFERROR(IF(AJ29="","",IF(AJ29<180,AJ29*VLOOKUP(C29&"CP",Importes!$A$2:$I$14,IF($I$7<DATE(2026,1,1),5,8),FALSE)*(IF($AI29>100,0,$AI29)/100),IF(AJ29=180,VLOOKUP(C29&"CP",Importes!$A$2:$I$14,IF($I$7<DATE(2026,1,1),6,9),FALSE)*6*(IF($AI29>100,0,$AI29)/100),0))),0) ->  | AN29: =IF(AM29="","",IF(AM29>0,ROUND(IF(MOD(AM29,30)=0,QUOTIENT(AM29,30)*VLOOKUP(C29&IF(AC29="Si","AM+E","AM"),Importes!$A$2:$I$14,IF($I$7<DATE(2026,1,1),6,9),FALSE)*(IF($AL29>100,0,$AL29)/100),AM29*VLOOKUP(C29&IF(AC29="Si","AM+E","AM"),Importes!$A$2:$I$14,IF($I$7<DATE(2026,1,1),5,8),FALSE)*(IF($AL29>100,0,$AL29)/100)),2),0)) ->  | AT29: Non | BH29: 0 | BI29: =IFERROR(IF(OR(AD29="+CT",AF29=""),0,ROUND(IF(MOD(AG29,30)=0,QUOTIENT(AG29,30)*VLOOKUP(C29&AF29,Importes!$A$2:$I$14,IF($I$7<DATE(2026,1,1),6,9),FALSE)*(IF($AE29>100,0,$AE29)/100),AG29*VLOOKUP(C29&AF29,Importes!$A$2:$I$14,IF($I$7<DATE(2026,1,1),5,8),FALSE)*(IF($AE29>100,0,$AE29)/100)),2)),0) -> 0 | BL29: =IF(AJ29="","",IF(AJ29>0,ROUND(IF(MOD(AJ29,30)=0,QUOTIENT(AJ29,30)*VLOOKUP(C29&"CP",Importes!$A$2:$I$14,IF($I$7<DATE(2026,1,1),6,9),FALSE)*(IF($BG29>100,0,$BG29)/100),BK29*VLOOKUP(C29&"CP",Importes!$A$2:$I$14,IF($I$7<DATE(2026,1,1),5,8),FALSE)*(IF($BG29>100,0,$BG29)/100)),2),0)) ->  | BO29: =IF(AM29="","",IF(AM29>0,ROUND(IF(MOD(AM29,30)=0,QUOTIENT(AM29,30)*VLOOKUP(C29&IF(AC29="Si","AM+E","AM"),Importes!$A$2:$I$14,IF($I$7<DATE(2026,1,1),6,9),FALSE)*(IF($BG29>100,0,$BG29)/100),AM29*VLOOKUP(C29&IF(AC29="Si","AM+E","AM"),Importes!$A$2:$I$14,IF($I$7<DATE(2026,1,1),5,8),FALSE)*(IF($BG29>100,0,$BG29)/100)),2),0)) ->  | CV29: 0 | CW29: 0 | CX29: 0 | CY29: 0 | CZ29: 0 | DA29: 0 | DB29: 5 | DC29: 5 | DD29: 2025-11-01 | DE29: 2025-11-30 | DF29: 0 | DG29: 0 | DH29: 2025-01-01 | DI29: 2025-11-30 | DJ29: 00:00:00 | DK29: 2025-01-01 | DL29: 0 | DM29: 0 | DN29: 0 | DO29: 0 | DP29: 0 | DQ29: 2025-01-01 | DR29: 0 | DS29: 0 | DT29: 0 | DU29: 0 | DV29: 0 | DW29: 3 | DX29: 0 | DY29: 0 | DZ29: 0 | EA29: AA | EB29: A | EC29: A | ED29: NO | EG29: 148 | EH29: 30 | EI29: 30 | EJ29: 30 | EK29: 30 | EL29: 28 | EM29: 210 | EN29: 30 | EO29: 30 | EP29: 30 | EQ29: 30 | ER29: 30 | ES29: 30 | ET29: 30 | EU29: 1 | EV29: 1 | EW29: 1 | EX29: 1 | EY29: 1 | EZ29: 1 | FA29: 1 | FB29: 1 | FC29: 1 | FD29: 1 | FE29: 1 | FF29: 1 | FG29: 31 | FH29: 30 | FI29: 31 | FJ29: 31 | FK29: 28 | FL29: 31 | FM29: 30 | FN29: 31 | FO29: 30 | FP29: 31 | FQ29: 31 | FR29: 30
Q30: =IFERROR(VLOOKUP(P30,Importes!L:Q,2,FALSE),"") ->  | S30: =IF(G30="","",#REF!) ->  | T30: =IF(G30="","",#REF!) ->  | W30: =IF(G30="","",IF($AG$8="x","Mensualidade",IF(AND($AG$8="",#REF!="x",$AH$8=DATE(YEAR($CU$7),12,1)),"Extra Inverno",IF(AND($AG$8="",#REF!="x",$AH$8=DATE(YEAR($CV$8),6,1)),"Extra Verán","")))) ->  | X30: 0 | AB30: AM+E | AC30: Si | AD30: 28 | AF30: AM+E | AG30: 0 | AH30: =IFERROR(IF(OR(AD30="+CT",AF30=""),0,ROUND(IF(MOD(AG30,30)=0,QUOTIENT(AG30,30)*VLOOKUP(C30&AF30,Importes!$A$2:$I$14,IF($I$7<DATE(2026,1,1),6,9),FALSE)*(IF($AE30>100,0,$AE30)/100),AG30*VLOOKUP(C30&AF30,Importes!$A$2:$I$14,IF($I$7<DATE(2026,1,1),5,8),FALSE)*(IF($AE30>100,0,$AE30)/100)),2)),0) -> 0 | AK30: =IFERROR(IF(AJ30="","",IF(AJ30<180,AJ30*VLOOKUP(C30&"CP",Importes!$A$2:$I$14,IF($I$7<DATE(2026,1,1),5,8),FALSE)*(IF($AI30>100,0,$AI30)/100),IF(AJ30=180,VLOOKUP(C30&"CP",Importes!$A$2:$I$14,IF($I$7<DATE(2026,1,1),6,9),FALSE)*6*(IF($AI30>100,0,$AI30)/100),0))),0) ->  | AM30: =IFERROR(IF($M$8="Si",BN30,""),"") ->  | AN30: =IF(AM30="","",IF(AM30>0,ROUND(IF(MOD(AM30,30)=0,QUOTIENT(AM30,30)*VLOOKUP(C30&IF(AC30="Si","AM+E","AM"),Importes!$A$2:$I$14,IF($I$7<DATE(2026,1,1),6,9),FALSE)*(IF($AL30>100,0,$AL30)/100),AM30*VLOOKUP(C30&IF(AC30="Si","AM+E","AM"),Importes!$A$2:$I$14,IF($I$7<DATE(2026,1,1),5,8),FALSE)*(IF($AL30>100,0,$AL30)/100)),2),0)) ->  | AT30: Non | BH30: 0 | BI30: =IFERROR(IF(OR(AD30="+CT",AF30=""),0,ROUND(IF(MOD(AG30,30)=0,QUOTIENT(AG30,30)*VLOOKUP(C30&AF30,Importes!$A$2:$I$14,IF($I$7<DATE(2026,1,1),6,9),FALSE)*(IF($AE30>100,0,$AE30)/100),AG30*VLOOKUP(C30&AF30,Importes!$A$2:$I$14,IF($I$7<DATE(2026,1,1),5,8),FALSE)*(IF($AE30>100,0,$AE30)/100)),2)),0) -> 0 | BL30: =IF(AJ30="","",IF(AJ30>0,ROUND(IF(MOD(AJ30,30)=0,QUOTIENT(AJ30,30)*VLOOKUP(C30&"CP",Importes!$A$2:$I$14,IF($I$7<DATE(2026,1,1),6,9),FALSE)*(IF($BG30>100,0,$BG30)/100),BK30*VLOOKUP(C30&"CP",Importes!$A$2:$I$14,IF($I$7<DATE(2026,1,1),5,8),FALSE)*(IF($BG30>100,0,$BG30)/100)),2),0)) ->  | BO30: =IF(AM30="","",IF(AM30>0,ROUND(IF(MOD(AM30,30)=0,QUOTIENT(AM30,30)*VLOOKUP(C30&IF(AC30="Si","AM+E","AM"),Importes!$A$2:$I$14,IF($I$7<DATE(2026,1,1),6,9),FALSE)*(IF($BG30>100,0,$BG30)/100),AM30*VLOOKUP(C30&IF(AC30="Si","AM+E","AM"),Importes!$A$2:$I$14,IF($I$7<DATE(2026,1,1),5,8),FALSE)*(IF($BG30>100,0,$BG30)/100)),2),0)) ->  | CV30: 0 | CW30: 0 | CX30: 0 | CY30: 0 | CZ30: 0 | DA30: 0 | DB30: 5 | DC30: 5 | DD30: 2025-11-01 | DE30: 2025-11-30 | DF30: 0 | DG30: 0 | DH30: 2025-01-01 | DI30: 2025-11-30 | DJ30: 00:00:00 | DK30: 2025-01-01 | DL30: 0 | DM30: 0 | DN30: 0 | DO30: 0 | DP30: 0 | DQ30: 2025-01-01 | DR30: 0 | DS30: =IFERROR(#REF!+IF(EE30=$I$7,1,0),0) -> 0 | DT30: 0 | DU30: 0 | DV30: 0 | DW30: 3 | DX30: 0 | DY30: 0 | DZ30: 0 | EA30: AA | EB30: A | EC30: A | ED30: NO | EG30: 148 | EH30: 30 | EI30: 30 | EJ30: 30 | EK30: 30 | EL30: 28 | EM30: 210 | EN30: 30 | EO30: 30 | EP30: 30 | EQ30: 30 | ER30: 30 | ES30: 30 | ET30: 30 | EU30: =IFERROR(IF($N30<=EU$11,1,IF(YEAR($N30)=YEAR(EU$11),IF(MONTH($N30)=MONTH(EU$11),DAY($N30),0))),0) -> 1 | EV30: 1 | EW30: 1 | EX30: 1 | EY30: 1 | EZ30: 1 | FA30: 1 | FB30: 1 | FC30: 1 | FD30: 1 | FE30: 1 | FF30: 1 | FG30: =IFERROR(IF(OR($O30="",$O30=0),DAY(FG$11),IF($O30>=FG$11,DAY(FG$11),IF(MONTH($O30)=MONTH(FG$11),DAY($O30),0))),0) -> 31 | FH30: 30 | FI30: 31 | FJ30: 31 | FK30: 28 | FL30: 31 | FM30: 30 | FN30: 31 | FO30: 30 | FP30: 31 | FQ30: 31 | FR30: 30
Q31: =IFERROR(VLOOKUP(P31,Importes!L:Q,2,FALSE),"") ->  | S31: =IF(G31="","",#REF!) ->  | T31: =IF(G31="","",#REF!) ->  | W31: =IF(G31="","",IF($AG$8="x","Mensualidade",IF(AND($AG$8="",#REF!="x",$AH$8=DATE(YEAR($CU$7),12,1)),"Extra Inverno",IF(AND($AG$8="",#REF!="x",$AH$8=DATE(YEAR($CV$8),6,1)),"Extra Verán","")))) ->  | X31: 0 | AB31: AM+E | AC31: Si | AD31: 29 | AF31: AM+E | AG31: 0 | AH31: =IFERROR(IF(OR(AD31="+CT",AF31=""),0,ROUND(IF(MOD(AG31,30)=0,QUOTIENT(AG31,30)*VLOOKUP(C31&AF31,Importes!$A$2:$I$14,IF($I$7<DATE(2026,1,1),6,9),FALSE)*(IF($AE31>100,0,$AE31)/100),AG31*VLOOKUP(C31&AF31,Importes!$A$2:$I$14,IF($I$7<DATE(2026,1,1),5,8),FALSE)*(IF($AE31>100,0,$AE31)/100)),2)),0) -> 0 | AK31: =IFERROR(IF(AJ31="","",IF(AJ31<180,AJ31*VLOOKUP(C31&"CP",Importes!$A$2:$I$14,IF($I$7<DATE(2026,1,1),5,8),FALSE)*(IF($AI31>100,0,$AI31)/100),IF(AJ31=180,VLOOKUP(C31&"CP",Importes!$A$2:$I$14,IF($I$7<DATE(2026,1,1),6,9),FALSE)*6*(IF($AI31>100,0,$AI31)/100),0))),0) ->  | AN31: =IF(AM31="","",IF(AM31>0,ROUND(IF(MOD(AM31,30)=0,QUOTIENT(AM31,30)*VLOOKUP(C31&IF(AC31="Si","AM+E","AM"),Importes!$A$2:$I$14,IF($I$7<DATE(2026,1,1),6,9),FALSE)*(IF($AL31>100,0,$AL31)/100),AM31*VLOOKUP(C31&IF(AC31="Si","AM+E","AM"),Importes!$A$2:$I$14,IF($I$7<DATE(2026,1,1),5,8),FALSE)*(IF($AL31>100,0,$AL31)/100)),2),0)) ->  | AT31: Non | AW31: =IF($AH31>0,"X","") ->  | BH31: 0 | BI31: =IFERROR(IF(OR(AD31="+CT",AF31=""),0,ROUND(IF(MOD(AG31,30)=0,QUOTIENT(AG31,30)*VLOOKUP(C31&AF31,Importes!$A$2:$I$14,IF($I$7<DATE(2026,1,1),6,9),FALSE)*(IF($AE31>100,0,$AE31)/100),AG31*VLOOKUP(C31&AF31,Importes!$A$2:$I$14,IF($I$7<DATE(2026,1,1),5,8),FALSE)*(IF($AE31>100,0,$AE31)/100)),2)),0) -> 0 | BL31: =IF(AJ31="","",IF(AJ31>0,ROUND(IF(MOD(AJ31,30)=0,QUOTIENT(AJ31,30)*VLOOKUP(C31&"CP",Importes!$A$2:$I$14,IF($I$7<DATE(2026,1,1),6,9),FALSE)*(IF($BG31>100,0,$BG31)/100),BK31*VLOOKUP(C31&"CP",Importes!$A$2:$I$14,IF($I$7<DATE(2026,1,1),5,8),FALSE)*(IF($BG31>100,0,$BG31)/100)),2),0)) ->  | BO31: =IF(AM31="","",IF(AM31>0,ROUND(IF(MOD(AM31,30)=0,QUOTIENT(AM31,30)*VLOOKUP(C31&IF(AC31="Si","AM+E","AM"),Importes!$A$2:$I$14,IF($I$7<DATE(2026,1,1),6,9),FALSE)*(IF($BG31>100,0,$BG31)/100),AM31*VLOOKUP(C31&IF(AC31="Si","AM+E","AM"),Importes!$A$2:$I$14,IF($I$7<DATE(2026,1,1),5,8),FALSE)*(IF($BG31>100,0,$BG31)/100)),2),0)) ->  | CV31: 0 | CW31: 0 | CX31: 0 | CY31: 0 | CZ31: 0 | DA31: 0 | DB31: 5 | DC31: 5 | DD31: 2025-11-01 | DE31: 2025-11-30 | DF31: 0 | DG31: 0 | DH31: 2025-01-01 | DI31: 2025-11-30 | DJ31: 00:00:00 | DK31: 2025-01-01 | DL31: 0 | DM31: 0 | DN31: 0 | DO31: 0 | DP31: 0 | DQ31: 2025-01-01 | DR31: 0 | DS31: =IFERROR(#REF!+IF(EE31=$I$7,1,0),0) -> 0 | DT31: 0 | DU31: 0 | DV31: 0 | DW31: 3 | DX31: 0 | DY31: 0 | DZ31: 0 | EA31: AA | EB31: A | EC31: A | ED31: NO | EG31: 148 | EH31: 30 | EI31: 30 | EJ31: 30 | EK31: 30 | EL31: 28 | EM31: 210 | EN31: 30 | EO31: 30 | EP31: 30 | EQ31: 30 | ER31: 30 | ES31: 30 | ET31: 30 | EU31: 1 | EV31: 1 | EW31: 1 | EX31: 1 | EY31: 1 | EZ31: 1 | FA31: 1 | FB31: 1 | FC31: 1 | FD31: 1 | FE31: 1 | FF31: 1 | FG31: 31 | FH31: 30 | FI31: 31 | FJ31: 31 | FK31: 28 | FL31: 31 | FM31: 30 | FN31: 31 | FO31: 30 | FP31: 31 | FQ31: 31 | FR31: 30
Q32: =IFERROR(VLOOKUP(P32,Importes!L:Q,2,FALSE),"") ->  | S32: =IF(G32="","",#REF!) ->  | T32: =IF(G32="","",#REF!) ->  | W32: =IF(G32="","",IF($AG$8="x","Mensualidade",IF(AND($AG$8="",#REF!="x",$AH$8=DATE(YEAR($CU$7),12,1)),"Extra Inverno",IF(AND($AG$8="",#REF!="x",$AH$8=DATE(YEAR($CV$8),6,1)),"Extra Verán","")))) ->  | X32: 0 | AB32: AM+E | AC32: Si | AD32: 30 | AF32: AM+E | AG32: 0 | AH32: =IFERROR(IF(OR(AD32="+CT",AF32=""),0,ROUND(IF(MOD(AG32,30)=0,QUOTIENT(AG32,30)*VLOOKUP(C32&AF32,Importes!$A$2:$I$14,IF($I$7<DATE(2026,1,1),6,9),FALSE)*(IF($AE32>100,0,$AE32)/100),AG32*VLOOKUP(C32&AF32,Importes!$A$2:$I$14,IF($I$7<DATE(2026,1,1),5,8),FALSE)*(IF($AE32>100,0,$AE32)/100)),2)),0) -> 0 | AK32: =IFERROR(IF(AJ32="","",IF(AJ32<180,AJ32*VLOOKUP(C32&"CP",Importes!$A$2:$I$14,IF($I$7<DATE(2026,1,1),5,8),FALSE)*(IF($AI32>100,0,$AI32)/100),IF(AJ32=180,VLOOKUP(C32&"CP",Importes!$A$2:$I$14,IF($I$7<DATE(2026,1,1),6,9),FALSE)*6*(IF($AI32>100,0,$AI32)/100),0))),0) ->  | AN32: =IF(AM32="","",IF(AM32>0,ROUND(IF(MOD(AM32,30)=0,QUOTIENT(AM32,30)*VLOOKUP(C32&IF(AC32="Si","AM+E","AM"),Importes!$A$2:$I$14,IF($I$7<DATE(2026,1,1),6,9),FALSE)*(IF($AL32>100,0,$AL32)/100),AM32*VLOOKUP(C32&IF(AC32="Si","AM+E","AM"),Importes!$A$2:$I$14,IF($I$7<DATE(2026,1,1),5,8),FALSE)*(IF($AL32>100,0,$AL32)/100)),2),0)) ->  | AT32: Non | BH32: 0 | BI32: =IFERROR(IF(OR(AD32="+CT",AF32=""),0,ROUND(IF(MOD(AG32,30)=0,QUOTIENT(AG32,30)*VLOOKUP(C32&AF32,Importes!$A$2:$I$14,IF($I$7<DATE(2026,1,1),6,9),FALSE)*(IF($AE32>100,0,$AE32)/100),AG32*VLOOKUP(C32&AF32,Importes!$A$2:$I$14,IF($I$7<DATE(2026,1,1),5,8),FALSE)*(IF($AE32>100,0,$AE32)/100)),2)),0) -> 0 | BL32: =IF(AJ32="","",IF(AJ32>0,ROUND(IF(MOD(AJ32,30)=0,QUOTIENT(AJ32,30)*VLOOKUP(C32&"CP",Importes!$A$2:$I$14,IF($I$7<DATE(2026,1,1),6,9),FALSE)*(IF($BG32>100,0,$BG32)/100),BK32*VLOOKUP(C32&"CP",Importes!$A$2:$I$14,IF($I$7<DATE(2026,1,1),5,8),FALSE)*(IF($BG32>100,0,$BG32)/100)),2),0)) ->  | BO32: =IF(AM32="","",IF(AM32>0,ROUND(IF(MOD(AM32,30)=0,QUOTIENT(AM32,30)*VLOOKUP(C32&IF(AC32="Si","AM+E","AM"),Importes!$A$2:$I$14,IF($I$7<DATE(2026,1,1),6,9),FALSE)*(IF($BG32>100,0,$BG32)/100),AM32*VLOOKUP(C32&IF(AC32="Si","AM+E","AM"),Importes!$A$2:$I$14,IF($I$7<DATE(2026,1,1),5,8),FALSE)*(IF($BG32>100,0,$BG32)/100)),2),0)) ->  | CU32: =IF(VALUE($A32)=0,"",IF(CU$11="","",IF(AND($O32<>"",$O32<CU$6),"",IF($N32>CU$6,"",IF(AND(OR($O32="",$O32>=CU$6),$AR32="",$AF32<>""),"F",IF(AND($AR32<=CU$6,OR($AS32=$O32,$AS32>=CU$6,IF($AS32="",$AU$5))),"h",IF($DE32>=CU$6,"F",""))))))) ->  | CV32: 0 | CW32: 0 | CX32: 0 | CY32: 0 | CZ32: 0 | DA32: 0 | DB32: 5 | DC32: 5 | DD32: 2025-11-01 | DE32: 2025-11-30 | DF32: 0 | DG32: 0 | DH32: 2025-01-01 | DI32: 2025-11-30 | DJ32: 00:00:00 | DK32: 2025-01-01 | DL32: 0 | DM32: 0 | DN32: 0 | DO32: 0 | DP32: 0 | DQ32: 2025-01-01 | DR32: 0 | DS32: 0 | DT32: 0 | DU32: 0 | DV32: 0 | DW32: 3 | DX32: 0 | DY32: 0 | DZ32: 0 | EA32: AA | EB32: A | EC32: A | ED32: NO | EG32: 148 | EH32: 30 | EI32: 30 | EJ32: 30 | EK32: 30 | EL32: 28 | EM32: 210 | EN32: 30 | EO32: 30 | EP32: 30 | EQ32: 30 | ER32: 30 | ES32: 30 | ET32: 30 | EU32: 1 | EV32: 1 | EW32: 1 | EX32: 1 | EY32: 1 | EZ32: 1 | FA32: 1 | FB32: 1 | FC32: 1 | FD32: 1 | FE32: 1 | FF32: 1 | FG32: 31 | FH32: 30 | FI32: 31 | FJ32: 31 | FK32: 28 | FL32: 31 | FM32: 30 | FN32: 31 | FO32: 30 | FP32: 31 | FQ32: 31 | FR32: 30
Q33: =IFERROR(VLOOKUP(P33,Importes!L:Q,2,FALSE),"") ->  | S33: =IF(G33="","",#REF!) ->  | T33: =IF(G33="","",#REF!) ->  | W33: =IF(G33="","",IF($AG$8="x","Mensualidade",IF(AND($AG$8="",#REF!="x",$AH$8=DATE(YEAR($CU$7),12,1)),"Extra Inverno",IF(AND($AG$8="",#REF!="x",$AH$8=DATE(YEAR($CV$8),6,1)),"Extra Verán","")))) ->  | X33: 0 | AB33: AM+E | AC33: Si | AD33: 33 | AF33: AM+E | AG33: 0 | AH33: =IFERROR(IF(OR(AD33="+CT",AF33=""),0,ROUND(IF(MOD(AG33,30)=0,QUOTIENT(AG33,30)*VLOOKUP(C33&AF33,Importes!$A$2:$I$14,IF($I$7<DATE(2026,1,1),6,9),FALSE)*(IF($AE33>100,0,$AE33)/100),AG33*VLOOKUP(C33&AF33,Importes!$A$2:$I$14,IF($I$7<DATE(2026,1,1),5,8),FALSE)*(IF($AE33>100,0,$AE33)/100)),2)),0) -> 0 | AK33: =IFERROR(IF(AJ33="","",IF(AJ33<180,AJ33*VLOOKUP(C33&"CP",Importes!$A$2:$I$14,IF($I$7<DATE(2026,1,1),5,8),FALSE)*(IF($AI33>100,0,$AI33)/100),IF(AJ33=180,VLOOKUP(C33&"CP",Importes!$A$2:$I$14,IF($I$7<DATE(2026,1,1),6,9),FALSE)*6*(IF($AI33>100,0,$AI33)/100),0))),0) ->  | AN33: =IF(AM33="","",IF(AM33>0,ROUND(IF(MOD(AM33,30)=0,QUOTIENT(AM33,30)*VLOOKUP(C33&IF(AC33="Si","AM+E","AM"),Importes!$A$2:$I$14,IF($I$7<DATE(2026,1,1),6,9),FALSE)*(IF($AL33>100,0,$AL33)/100),AM33*VLOOKUP(C33&IF(AC33="Si","AM+E","AM"),Importes!$A$2:$I$14,IF($I$7<DATE(2026,1,1),5,8),FALSE)*(IF($AL33>100,0,$AL33)/100)),2),0)) ->  | AT33: Non | BH33: 0 | BI33: =IFERROR(IF(OR(AD33="+CT",AF33=""),0,ROUND(IF(MOD(AG33,30)=0,QUOTIENT(AG33,30)*VLOOKUP(C33&AF33,Importes!$A$2:$I$14,IF($I$7<DATE(2026,1,1),6,9),FALSE)*(IF($AE33>100,0,$AE33)/100),AG33*VLOOKUP(C33&AF33,Importes!$A$2:$I$14,IF($I$7<DATE(2026,1,1),5,8),FALSE)*(IF($AE33>100,0,$AE33)/100)),2)),0) -> 0 | BL33: =IF(AJ33="","",IF(AJ33>0,ROUND(IF(MOD(AJ33,30)=0,QUOTIENT(AJ33,30)*VLOOKUP(C33&"CP",Importes!$A$2:$I$14,IF($I$7<DATE(2026,1,1),6,9),FALSE)*(IF($BG33>100,0,$BG33)/100),BK33*VLOOKUP(C33&"CP",Importes!$A$2:$I$14,IF($I$7<DATE(2026,1,1),5,8),FALSE)*(IF($BG33>100,0,$BG33)/100)),2),0)) ->  | BO33: =IF(AM33="","",IF(AM33>0,ROUND(IF(MOD(AM33,30)=0,QUOTIENT(AM33,30)*VLOOKUP(C33&IF(AC33="Si","AM+E","AM"),Importes!$A$2:$I$14,IF($I$7<DATE(2026,1,1),6,9),FALSE)*(IF($BG33>100,0,$BG33)/100),AM33*VLOOKUP(C33&IF(AC33="Si","AM+E","AM"),Importes!$A$2:$I$14,IF($I$7<DATE(2026,1,1),5,8),FALSE)*(IF($BG33>100,0,$BG33)/100)),2),0)) ->  | CS33: =IF(VALUE($A33)=0,"",IF(CS$11="","",IF(AND($O33<>"",$O33<CS$6),"",IF($N33>CS$6,"",IF(AND(OR($O33="",$O33>=CS$6),$AR33="",$AF33<>""),"F",IF(AND($AR33<=CS$6,OR($AS33=$O33,$AS33>=CS$6,IF($AS33="",$AU$5))),"h",IF($DE33>=CS$6,"F",""))))))) ->  | CV33: 0 | CW33: 0 | CX33: 0 | CY33: 0 | CZ33: 0 | DA33: 0 | DB33: 5 | DC33: 5 | DD33: 2025-11-01 | DE33: 2025-11-30 | DF33: 0 | DG33: 0 | DH33: 2025-01-01 | DI33: 2025-11-30 | DJ33: 00:00:00 | DK33: 2025-01-01 | DL33: 0 | DM33: 0 | DN33: 0 | DO33: 0 | DP33: 0 | DQ33: 2025-01-01 | DR33: 0 | DS33: =IFERROR(#REF!+IF(EE33=$I$7,1,0),0) -> 0 | DT33: 0 | DU33: 0 | DV33: 0 | DW33: 3 | DX33: 0 | DY33: 0 | DZ33: 0 | EA33: AA | EB33: A | EC33: A | ED33: NO | EG33: 148 | EH33: 30 | EI33: 30 | EJ33: 30 | EK33: 30 | EL33: 28 | EM33: 210 | EN33: 30 | EO33: 30 | EP33: 30 | EQ33: 30 | ER33: 30 | ES33: 30 | ET33: 30 | EU33: 1 | EV33: 1 | EW33: 1 | EX33: 1 | EY33: 1 | EZ33: 1 | FA33: 1 | FB33: 1 | FC33: 1 | FD33: 1 | FE33: 1 | FF33: 1 | FG33: 31 | FH33: 30 | FI33: 31 | FJ33: 31 | FK33: 28 | FL33: 31 | FM33: 30 | FN33: 31 | FO33: 30 | FP33: 31 | FQ33: 31 | FR33: 30
Q34: =IFERROR(VLOOKUP(P34,Importes!L:Q,2,FALSE),"") ->  | S34: =IF(G34="","",#REF!) ->  | T34: =IF(G34="","",#REF!) ->  | W34: =IF(G34="","",IF($AG$8="x","Mensualidade",IF(AND($AG$8="",#REF!="x",$AH$8=DATE(YEAR($CU$7),12,1)),"Extra Inverno",IF(AND($AG$8="",#REF!="x",$AH$8=DATE(YEAR($CV$8),6,1)),"Extra Verán","")))) ->  | X34: 0 | AB34: AM+E | AC34: Si | AD34: 35 | AF34: AM+E | AG34: 0 | AH34: =IFERROR(IF(OR(AD34="+CT",AF34=""),0,ROUND(IF(MOD(AG34,30)=0,QUOTIENT(AG34,30)*VLOOKUP(C34&AF34,Importes!$A$2:$I$14,IF($I$7<DATE(2026,1,1),6,9),FALSE)*(IF($AE34>100,0,$AE34)/100),AG34*VLOOKUP(C34&AF34,Importes!$A$2:$I$14,IF($I$7<DATE(2026,1,1),5,8),FALSE)*(IF($AE34>100,0,$AE34)/100)),2)),0) -> 0 | AK34: =IFERROR(IF(AJ34="","",IF(AJ34<180,AJ34*VLOOKUP(C34&"CP",Importes!$A$2:$I$14,IF($I$7<DATE(2026,1,1),5,8),FALSE)*(IF($AI34>100,0,$AI34)/100),IF(AJ34=180,VLOOKUP(C34&"CP",Importes!$A$2:$I$14,IF($I$7<DATE(2026,1,1),6,9),FALSE)*6*(IF($AI34>100,0,$AI34)/100),0))),0) ->  | AN34: =IF(AM34="","",IF(AM34>0,ROUND(IF(MOD(AM34,30)=0,QUOTIENT(AM34,30)*VLOOKUP(C34&IF(AC34="Si","AM+E","AM"),Importes!$A$2:$I$14,IF($I$7<DATE(2026,1,1),6,9),FALSE)*(IF($AL34>100,0,$AL34)/100),AM34*VLOOKUP(C34&IF(AC34="Si","AM+E","AM"),Importes!$A$2:$I$14,IF($I$7<DATE(2026,1,1),5,8),FALSE)*(IF($AL34>100,0,$AL34)/100)),2),0)) ->  | AT34: Non | BH34: 0 | BI34: =IFERROR(IF(OR(AD34="+CT",AF34=""),0,ROUND(IF(MOD(AG34,30)=0,QUOTIENT(AG34,30)*VLOOKUP(C34&AF34,Importes!$A$2:$I$14,IF($I$7<DATE(2026,1,1),6,9),FALSE)*(IF($AE34>100,0,$AE34)/100),AG34*VLOOKUP(C34&AF34,Importes!$A$2:$I$14,IF($I$7<DATE(2026,1,1),5,8),FALSE)*(IF($AE34>100,0,$AE34)/100)),2)),0) -> 0 | BL34: =IF(AJ34="","",IF(AJ34>0,ROUND(IF(MOD(AJ34,30)=0,QUOTIENT(AJ34,30)*VLOOKUP(C34&"CP",Importes!$A$2:$I$14,IF($I$7<DATE(2026,1,1),6,9),FALSE)*(IF($BG34>100,0,$BG34)/100),BK34*VLOOKUP(C34&"CP",Importes!$A$2:$I$14,IF($I$7<DATE(2026,1,1),5,8),FALSE)*(IF($BG34>100,0,$BG34)/100)),2),0)) ->  | BO34: =IF(AM34="","",IF(AM34>0,ROUND(IF(MOD(AM34,30)=0,QUOTIENT(AM34,30)*VLOOKUP(C34&IF(AC34="Si","AM+E","AM"),Importes!$A$2:$I$14,IF($I$7<DATE(2026,1,1),6,9),FALSE)*(IF($BG34>100,0,$BG34)/100),AM34*VLOOKUP(C34&IF(AC34="Si","AM+E","AM"),Importes!$A$2:$I$14,IF($I$7<DATE(2026,1,1),5,8),FALSE)*(IF($BG34>100,0,$BG34)/100)),2),0)) ->  | BQ34: =IF(VALUE($A34)=0,"",IF(BQ$11="","",IF(AND($O34<>"",$O34<BQ$6),"",IF($N34>BQ$6,"",IF(AND(OR($O34="",$O34>=BQ$6),$AR34="",$AF34<>""),"F",IF(AND($AR34<=BQ$6,OR($AS34=$O34,$AS34>=BQ$6,IF($AS34="",$AU$5))),"h",IF($DE34>=BQ$6,"F",""))))))) ->  | CG34: =IF(VALUE($A34)=0,"",IF(CG$11="","",IF(AND($O34<>"",$O34<CG$6),"",IF($N34>CG$6,"",IF(AND(OR($O34="",$O34>=CG$6),$AR34="",$AF34<>""),"F",IF(AND($AR34<=CG$6,OR($AS34=$O34,$AS34>=CG$6,IF($AS34="",$AU$5))),"h",IF($DE34>=CG$6,"F",""))))))) ->  | CV34: 0 | CW34: 0 | CX34: 0 | CY34: 0 | CZ34: 0 | DA34: 0 | DB34: 5 | DC34: 5 | DD34: 2025-11-01 | DE34: 2025-11-30 | DF34: 0 | DG34: 0 | DH34: 2025-01-01 | DI34: 2025-11-30 | DJ34: 00:00:00 | DK34: 2025-01-01 | DL34: 0 | DM34: 0 | DN34: 0 | DO34: 0 | DP34: 0 | DQ34: 2025-01-01 | DR34: 0 | DS34: =IFERROR(#REF!+IF(EE34=$I$7,1,0),0) -> 0 | DT34: 0 | DU34: 0 | DV34: 0 | DW34: 3 | DX34: 0 | DY34: 0 | DZ34: 0 | EA34: AA | EB34: A | EC34: A | ED34: NO | EG34: 148 | EH34: 30 | EI34: 30 | EJ34: 30 | EK34: 30 | EL34: 28 | EM34: 210 | EN34: 30 | EO34: 30 | EP34: 30 | EQ34: 30 | ER34: 30 | ES34: 30 | ET34: 30 | EU34: 1 | EV34: 1 | EW34: 1 | EX34: 1 | EY34: 1 | EZ34: 1 | FA34: 1 | FB34: 1 | FC34: 1 | FD34: 1 | FE34: 1 | FF34: 1 | FG34: 31 | FH34: 30 | FI34: 31 | FJ34: 31 | FK34: 28 | FL34: 31 | FM34: 30 | FN34: 31 | FO34: 30 | FP34: 31 | FQ34: 31 | FR34: 30
Q35: =IFERROR(VLOOKUP(P35,Importes!L:Q,2,FALSE),"") ->  | S35: =IF(G35="","",#REF!) ->  | T35: =IF(G35="","",#REF!) ->  | W35: =IF(G35="","",IF($AG$8="x","Mensualidade",IF(AND($AG$8="",#REF!="x",$AH$8=DATE(YEAR($CU$7),12,1)),"Extra Inverno",IF(AND($AG$8="",#REF!="x",$AH$8=DATE(YEAR($CV$8),6,1)),"Extra Verán","")))) ->  | X35: 0 | AB35: AM+E | AC35: Si | AD35: 36 | AF35: AM+E | AG35: 0 | AH35: =IFERROR(IF(OR(AD35="+CT",AF35=""),0,ROUND(IF(MOD(AG35,30)=0,QUOTIENT(AG35,30)*VLOOKUP(C35&AF35,Importes!$A$2:$I$14,IF($I$7<DATE(2026,1,1),6,9),FALSE)*(IF($AE35>100,0,$AE35)/100),AG35*VLOOKUP(C35&AF35,Importes!$A$2:$I$14,IF($I$7<DATE(2026,1,1),5,8),FALSE)*(IF($AE35>100,0,$AE35)/100)),2)),0) -> 0 | AK35: =IFERROR(IF(AJ35="","",IF(AJ35<180,AJ35*VLOOKUP(C35&"CP",Importes!$A$2:$I$14,IF($I$7<DATE(2026,1,1),5,8),FALSE)*(IF($AI35>100,0,$AI35)/100),IF(AJ35=180,VLOOKUP(C35&"CP",Importes!$A$2:$I$14,IF($I$7<DATE(2026,1,1),6,9),FALSE)*6*(IF($AI35>100,0,$AI35)/100),0))),0) ->  | AN35: =IF(AM35="","",IF(AM35>0,ROUND(IF(MOD(AM35,30)=0,QUOTIENT(AM35,30)*VLOOKUP(C35&IF(AC35="Si","AM+E","AM"),Importes!$A$2:$I$14,IF($I$7<DATE(2026,1,1),6,9),FALSE)*(IF($AL35>100,0,$AL35)/100),AM35*VLOOKUP(C35&IF(AC35="Si","AM+E","AM"),Importes!$A$2:$I$14,IF($I$7<DATE(2026,1,1),5,8),FALSE)*(IF($AL35>100,0,$AL35)/100)),2),0)) ->  | AT35: Non | BH35: 0 | BI35: =IFERROR(IF(OR(AD35="+CT",AF35=""),0,ROUND(IF(MOD(AG35,30)=0,QUOTIENT(AG35,30)*VLOOKUP(C35&AF35,Importes!$A$2:$I$14,IF($I$7<DATE(2026,1,1),6,9),FALSE)*(IF($AE35>100,0,$AE35)/100),AG35*VLOOKUP(C35&AF35,Importes!$A$2:$I$14,IF($I$7<DATE(2026,1,1),5,8),FALSE)*(IF($AE35>100,0,$AE35)/100)),2)),0) -> 0 | BL35: =IF(AJ35="","",IF(AJ35>0,ROUND(IF(MOD(AJ35,30)=0,QUOTIENT(AJ35,30)*VLOOKUP(C35&"CP",Importes!$A$2:$I$14,IF($I$7<DATE(2026,1,1),6,9),FALSE)*(IF($BG35>100,0,$BG35)/100),BK35*VLOOKUP(C35&"CP",Importes!$A$2:$I$14,IF($I$7<DATE(2026,1,1),5,8),FALSE)*(IF($BG35>100,0,$BG35)/100)),2),0)) ->  | BO35: =IF(AM35="","",IF(AM35>0,ROUND(IF(MOD(AM35,30)=0,QUOTIENT(AM35,30)*VLOOKUP(C35&IF(AC35="Si","AM+E","AM"),Importes!$A$2:$I$14,IF($I$7<DATE(2026,1,1),6,9),FALSE)*(IF($BG35>100,0,$BG35)/100),AM35*VLOOKUP(C35&IF(AC35="Si","AM+E","AM"),Importes!$A$2:$I$14,IF($I$7<DATE(2026,1,1),5,8),FALSE)*(IF($BG35>100,0,$BG35)/100)),2),0)) ->  | CV35: 0 | CW35: 0 | CX35: 0 | CY35: 0 | CZ35: 0 | DA35: 0 | DB35: 5 | DC35: 5 | DD35: 2025-11-01 | DE35: 2025-11-30 | DF35: 0 | DG35: 0 | DH35: 2025-01-01 | DI35: 2025-11-30 | DJ35: 00:00:00 | DK35: 2025-01-01 | DL35: 0 | DM35: 0 | DN35: 0 | DO35: 0 | DP35: 0 | DQ35: 2025-01-01 | DR35: 0 | DS35: 0 | DT35: 0 | DU35: 0 | DV35: 0 | DW35: 3 | DX35: 0 | DY35: 0 | DZ35: 0 | EA35: AA | EB35: A | EC35: A | ED35: NO | EG35: 148 | EH35: 30 | EI35: 30 | EJ35: 30 | EK35: 30 | EL35: 28 | EM35: 210 | EN35: 30 | EO35: 30 | EP35: 30 | EQ35: 30 | ER35: 30 | ES35: 30 | ET35: 30 | EU35: 1 | EV35: 1 | EW35: 1 | EX35: 1 | EY35: 1 | EZ35: 1 | FA35: 1 | FB35: 1 | FC35: 1 | FD35: 1 | FE35: 1 | FF35: 1 | FG35: 31 | FH35: 30 | FI35: 31 | FJ35: 31 | FK35: 28 | FL35: 31 | FM35: 30 | FN35: 31 | FO35: 30 | FP35: 31 | FQ35: 31 | FR35: 30
Q36: =IFERROR(VLOOKUP(P36,Importes!L:Q,2,FALSE),"") ->  | S36: =IF(G36="","",#REF!) ->  | T36: =IF(G36="","",#REF!) ->  | W36: =IF(G36="","",IF($AG$8="x","Mensualidade",IF(AND($AG$8="",#REF!="x",$AH$8=DATE(YEAR($CU$7),12,1)),"Extra Inverno",IF(AND($AG$8="",#REF!="x",$AH$8=DATE(YEAR($CV$8),6,1)),"Extra Verán","")))) ->  | X36: 0 | AB36: AM+E | AC36: Si | AD36: 37 | AF36: AM+E | AG36: 0 | AH36: =IFERROR(IF(OR(AD36="+CT",AF36=""),0,ROUND(IF(MOD(AG36,30)=0,QUOTIENT(AG36,30)*VLOOKUP(C36&AF36,Importes!$A$2:$I$14,IF($I$7<DATE(2026,1,1),6,9),FALSE)*(IF($AE36>100,0,$AE36)/100),AG36*VLOOKUP(C36&AF36,Importes!$A$2:$I$14,IF($I$7<DATE(2026,1,1),5,8),FALSE)*(IF($AE36>100,0,$AE36)/100)),2)),0) -> 0 | AK36: =IFERROR(IF(AJ36="","",IF(AJ36<180,AJ36*VLOOKUP(C36&"CP",Importes!$A$2:$I$14,IF($I$7<DATE(2026,1,1),5,8),FALSE)*(IF($AI36>100,0,$AI36)/100),IF(AJ36=180,VLOOKUP(C36&"CP",Importes!$A$2:$I$14,IF($I$7<DATE(2026,1,1),6,9),FALSE)*6*(IF($AI36>100,0,$AI36)/100),0))),0) ->  | AN36: =IF(AM36="","",IF(AM36>0,ROUND(IF(MOD(AM36,30)=0,QUOTIENT(AM36,30)*VLOOKUP(C36&IF(AC36="Si","AM+E","AM"),Importes!$A$2:$I$14,IF($I$7<DATE(2026,1,1),6,9),FALSE)*(IF($AL36>100,0,$AL36)/100),AM36*VLOOKUP(C36&IF(AC36="Si","AM+E","AM"),Importes!$A$2:$I$14,IF($I$7<DATE(2026,1,1),5,8),FALSE)*(IF($AL36>100,0,$AL36)/100)),2),0)) ->  | AT36: Non | BH36: 0 | BI36: =IFERROR(IF(OR(AD36="+CT",AF36=""),0,ROUND(IF(MOD(AG36,30)=0,QUOTIENT(AG36,30)*VLOOKUP(C36&AF36,Importes!$A$2:$I$14,IF($I$7<DATE(2026,1,1),6,9),FALSE)*(IF($AE36>100,0,$AE36)/100),AG36*VLOOKUP(C36&AF36,Importes!$A$2:$I$14,IF($I$7<DATE(2026,1,1),5,8),FALSE)*(IF($AE36>100,0,$AE36)/100)),2)),0) -> 0 | BL36: =IF(AJ36="","",IF(AJ36>0,ROUND(IF(MOD(AJ36,30)=0,QUOTIENT(AJ36,30)*VLOOKUP(C36&"CP",Importes!$A$2:$I$14,IF($I$7<DATE(2026,1,1),6,9),FALSE)*(IF($BG36>100,0,$BG36)/100),BK36*VLOOKUP(C36&"CP",Importes!$A$2:$I$14,IF($I$7<DATE(2026,1,1),5,8),FALSE)*(IF($BG36>100,0,$BG36)/100)),2),0)) ->  | BO36: =IF(AM36="","",IF(AM36>0,ROUND(IF(MOD(AM36,30)=0,QUOTIENT(AM36,30)*VLOOKUP(C36&IF(AC36="Si","AM+E","AM"),Importes!$A$2:$I$14,IF($I$7<DATE(2026,1,1),6,9),FALSE)*(IF($BG36>100,0,$BG36)/100),AM36*VLOOKUP(C36&IF(AC36="Si","AM+E","AM"),Importes!$A$2:$I$14,IF($I$7<DATE(2026,1,1),5,8),FALSE)*(IF($BG36>100,0,$BG36)/100)),2),0)) ->  | CV36: 0 | CW36: 0 | CX36: 0 | CY36: 0 | CZ36: 0 | DA36: 0 | DB36: 5 | DC36: 5 | DD36: 2025-11-01 | DE36: 2025-11-30 | DF36: 0 | DG36: 0 | DH36: 2025-01-01 | DI36: 2025-11-30 | DJ36: 00:00:00 | DK36: 2025-01-01 | DL36: 0 | DM36: 0 | DN36: 0 | DO36: 0 | DP36: 0 | DQ36: 2025-01-01 | DR36: 0 | DS36: 0 | DT36: 0 | DU36: 0 | DV36: 0 | DW36: 3 | DX36: 0 | DY36: 0 | DZ36: 0 | EA36: AA | EB36: A | EC36: A | ED36: NO | EG36: 148 | EH36: 30 | EI36: 30 | EJ36: 30 | EK36: 30 | EL36: 28 | EM36: 210 | EN36: 30 | EO36: 30 | EP36: 30 | EQ36: 30 | ER36: 30 | ES36: 30 | ET36: 30 | EU36: 1 | EV36: 1 | EW36: 1 | EX36: 1 | EY36: 1 | EZ36: 1 | FA36: 1 | FB36: 1 | FC36: 1 | FD36: 1 | FE36: 1 | FF36: 1 | FG36: 31 | FH36: 30 | FI36: 31 | FJ36: 31 | FK36: 28 | FL36: 31 | FM36: 30 | FN36: 31 | FO36: 30 | FP36: 31 | FQ36: 31 | FR36: 30
Q37: =IFERROR(VLOOKUP(P37,Importes!L:Q,2,FALSE),"") ->  | S37: =IF(G37="","",#REF!) ->  | T37: =IF(G37="","",#REF!) ->  | W37: =IF(G37="","",IF($AG$8="x","Mensualidade",IF(AND($AG$8="",#REF!="x",$AH$8=DATE(YEAR($CU$7),12,1)),"Extra Inverno",IF(AND($AG$8="",#REF!="x",$AH$8=DATE(YEAR($CV$8),6,1)),"Extra Verán","")))) ->  | X37: 0 | AB37: AM+E | AC37: Si | AD37: 38 | AF37: AM+E | AG37: 0 | AH37: =IFERROR(IF(OR(AD37="+CT",AF37=""),0,ROUND(IF(MOD(AG37,30)=0,QUOTIENT(AG37,30)*VLOOKUP(C37&AF37,Importes!$A$2:$I$14,IF($I$7<DATE(2026,1,1),6,9),FALSE)*(IF($AE37>100,0,$AE37)/100),AG37*VLOOKUP(C37&AF37,Importes!$A$2:$I$14,IF($I$7<DATE(2026,1,1),5,8),FALSE)*(IF($AE37>100,0,$AE37)/100)),2)),0) -> 0 | AK37: =IFERROR(IF(AJ37="","",IF(AJ37<180,AJ37*VLOOKUP(C37&"CP",Importes!$A$2:$I$14,IF($I$7<DATE(2026,1,1),5,8),FALSE)*(IF($AI37>100,0,$AI37)/100),IF(AJ37=180,VLOOKUP(C37&"CP",Importes!$A$2:$I$14,IF($I$7<DATE(2026,1,1),6,9),FALSE)*6*(IF($AI37>100,0,$AI37)/100),0))),0) ->  | AN37: =IF(AM37="","",IF(AM37>0,ROUND(IF(MOD(AM37,30)=0,QUOTIENT(AM37,30)*VLOOKUP(C37&IF(AC37="Si","AM+E","AM"),Importes!$A$2:$I$14,IF($I$7<DATE(2026,1,1),6,9),FALSE)*(IF($AL37>100,0,$AL37)/100),AM37*VLOOKUP(C37&IF(AC37="Si","AM+E","AM"),Importes!$A$2:$I$14,IF($I$7<DATE(2026,1,1),5,8),FALSE)*(IF($AL37>100,0,$AL37)/100)),2),0)) ->  | AT37: Non | BH37: 0 | BI37: =IFERROR(IF(OR(AD37="+CT",AF37=""),0,ROUND(IF(MOD(AG37,30)=0,QUOTIENT(AG37,30)*VLOOKUP(C37&AF37,Importes!$A$2:$I$14,IF($I$7<DATE(2026,1,1),6,9),FALSE)*(IF($AE37>100,0,$AE37)/100),AG37*VLOOKUP(C37&AF37,Importes!$A$2:$I$14,IF($I$7<DATE(2026,1,1),5,8),FALSE)*(IF($AE37>100,0,$AE37)/100)),2)),0) -> 0 | BL37: =IF(AJ37="","",IF(AJ37>0,ROUND(IF(MOD(AJ37,30)=0,QUOTIENT(AJ37,30)*VLOOKUP(C37&"CP",Importes!$A$2:$I$14,IF($I$7<DATE(2026,1,1),6,9),FALSE)*(IF($BG37>100,0,$BG37)/100),BK37*VLOOKUP(C37&"CP",Importes!$A$2:$I$14,IF($I$7<DATE(2026,1,1),5,8),FALSE)*(IF($BG37>100,0,$BG37)/100)),2),0)) ->  | BO37: =IF(AM37="","",IF(AM37>0,ROUND(IF(MOD(AM37,30)=0,QUOTIENT(AM37,30)*VLOOKUP(C37&IF(AC37="Si","AM+E","AM"),Importes!$A$2:$I$14,IF($I$7<DATE(2026,1,1),6,9),FALSE)*(IF($BG37>100,0,$BG37)/100),AM37*VLOOKUP(C37&IF(AC37="Si","AM+E","AM"),Importes!$A$2:$I$14,IF($I$7<DATE(2026,1,1),5,8),FALSE)*(IF($BG37>100,0,$BG37)/100)),2),0)) ->  | CV37: 0 | CW37: 0 | CX37: 0 | CY37: 0 | CZ37: 0 | DA37: 0 | DB37: 5 | DC37: 5 | DD37: 2025-11-01 | DE37: 2025-11-30 | DF37: 0 | DG37: 0 | DH37: 2025-01-01 | DI37: 2025-11-30 | DJ37: 00:00:00 | DK37: 2025-01-01 | DL37: 0 | DM37: 0 | DN37: 0 | DO37: 0 | DP37: 0 | DQ37: 2025-01-01 | DR37: 0 | DS37: 0 | DT37: 0 | DU37: 0 | DV37: 0 | DW37: 3 | DX37: 0 | DY37: 0 | DZ37: 0 | EA37: AA | EB37: A | EC37: A | ED37: NO | EG37: 148 | EH37: 30 | EI37: 30 | EJ37: 30 | EK37: 30 | EL37: 28 | EM37: 210 | EN37: 30 | EO37: 30 | EP37: 30 | EQ37: 30 | ER37: 30 | ES37: 30 | ET37: 30 | EU37: 1 | EV37: 1 | EW37: 1 | EX37: 1 | EY37: 1 | EZ37: 1 | FA37: 1 | FB37: 1 | FC37: 1 | FD37: 1 | FE37: 1 | FF37: 1 | FG37: 31 | FH37: 30 | FI37: 31 | FJ37: 31 | FK37: 28 | FL37: 31 | FM37: 30 | FN37: 31 | FO37: 30 | FP37: 31 | FQ37: 31 | FR37: 30
Q38: =IFERROR(VLOOKUP(P38,Importes!L:Q,2,FALSE),"") ->  | S38: =IF(G38="","",#REF!) ->  | T38: =IF(G38="","",#REF!) ->  | W38: =IF(G38="","",IF($AG$8="x","Mensualidade",IF(AND($AG$8="",#REF!="x",$AH$8=DATE(YEAR($CU$7),12,1)),"Extra Inverno",IF(AND($AG$8="",#REF!="x",$AH$8=DATE(YEAR($CV$8),6,1)),"Extra Verán","")))) ->  | X38: 0 | AB38: AM+E | AC38: Si | AD38: 39 | AF38: AM+E | AG38: 0 | AH38: =IFERROR(IF(OR(AD38="+CT",AF38=""),0,ROUND(IF(MOD(AG38,30)=0,QUOTIENT(AG38,30)*VLOOKUP(C38&AF38,Importes!$A$2:$I$14,IF($I$7<DATE(2026,1,1),6,9),FALSE)*(IF($AE38>100,0,$AE38)/100),AG38*VLOOKUP(C38&AF38,Importes!$A$2:$I$14,IF($I$7<DATE(2026,1,1),5,8),FALSE)*(IF($AE38>100,0,$AE38)/100)),2)),0) -> 0 | AK38: =IFERROR(IF(AJ38="","",IF(AJ38<180,AJ38*VLOOKUP(C38&"CP",Importes!$A$2:$I$14,IF($I$7<DATE(2026,1,1),5,8),FALSE)*(IF($AI38>100,0,$AI38)/100),IF(AJ38=180,VLOOKUP(C38&"CP",Importes!$A$2:$I$14,IF($I$7<DATE(2026,1,1),6,9),FALSE)*6*(IF($AI38>100,0,$AI38)/100),0))),0) ->  | AN38: =IF(AM38="","",IF(AM38>0,ROUND(IF(MOD(AM38,30)=0,QUOTIENT(AM38,30)*VLOOKUP(C38&IF(AC38="Si","AM+E","AM"),Importes!$A$2:$I$14,IF($I$7<DATE(2026,1,1),6,9),FALSE)*(IF($AL38>100,0,$AL38)/100),AM38*VLOOKUP(C38&IF(AC38="Si","AM+E","AM"),Importes!$A$2:$I$14,IF($I$7<DATE(2026,1,1),5,8),FALSE)*(IF($AL38>100,0,$AL38)/100)),2),0)) ->  | AT38: Non | BH38: 0 | BI38: =IFERROR(IF(OR(AD38="+CT",AF38=""),0,ROUND(IF(MOD(AG38,30)=0,QUOTIENT(AG38,30)*VLOOKUP(C38&AF38,Importes!$A$2:$I$14,IF($I$7<DATE(2026,1,1),6,9),FALSE)*(IF($AE38>100,0,$AE38)/100),AG38*VLOOKUP(C38&AF38,Importes!$A$2:$I$14,IF($I$7<DATE(2026,1,1),5,8),FALSE)*(IF($AE38>100,0,$AE38)/100)),2)),0) -> 0 | BL38: =IF(AJ38="","",IF(AJ38>0,ROUND(IF(MOD(AJ38,30)=0,QUOTIENT(AJ38,30)*VLOOKUP(C38&"CP",Importes!$A$2:$I$14,IF($I$7<DATE(2026,1,1),6,9),FALSE)*(IF($BG38>100,0,$BG38)/100),BK38*VLOOKUP(C38&"CP",Importes!$A$2:$I$14,IF($I$7<DATE(2026,1,1),5,8),FALSE)*(IF($BG38>100,0,$BG38)/100)),2),0)) ->  | BO38: =IF(AM38="","",IF(AM38>0,ROUND(IF(MOD(AM38,30)=0,QUOTIENT(AM38,30)*VLOOKUP(C38&IF(AC38="Si","AM+E","AM"),Importes!$A$2:$I$14,IF($I$7<DATE(2026,1,1),6,9),FALSE)*(IF($BG38>100,0,$BG38)/100),AM38*VLOOKUP(C38&IF(AC38="Si","AM+E","AM"),Importes!$A$2:$I$14,IF($I$7<DATE(2026,1,1),5,8),FALSE)*(IF($BG38>100,0,$BG38)/100)),2),0)) ->  | CV38: 0 | CW38: 0 | CX38: 0 | CY38: 0 | CZ38: 0 | DA38: 0 | DB38: 5 | DC38: 5 | DD38: 2025-11-01 | DE38: 2025-11-30 | DF38: 0 | DG38: 0 | DH38: 2025-01-01 | DI38: 2025-11-30 | DJ38: 00:00:00 | DK38: 2025-01-01 | DL38: 0 | DM38: 0 | DN38: 0 | DO38: 0 | DP38: 0 | DQ38: 2025-01-01 | DR38: 0 | DS38: 0 | DT38: 0 | DU38: 0 | DV38: 0 | DW38: 3 | DX38: 0 | DY38: 0 | DZ38: 0 | EA38: AA | EB38: A | EC38: A | ED38: NO | EG38: 148 | EH38: 30 | EI38: 30 | EJ38: 30 | EK38: 30 | EL38: 28 | EM38: 210 | EN38: 30 | EO38: 30 | EP38: 30 | EQ38: 30 | ER38: 30 | ES38: 30 | ET38: 30 | EU38: 1 | EV38: 1 | EW38: 1 | EX38: 1 | EY38: 1 | EZ38: 1 | FA38: 1 | FB38: 1 | FC38: 1 | FD38: 1 | FE38: 1 | FF38: 1 | FG38: 31 | FH38: 30 | FI38: 31 | FJ38: 31 | FK38: 28 | FL38: 31 | FM38: 30 | FN38: 31 | FO38: 30 | FP38: 31 | FQ38: 31 | FR38: 30
C39: =IF(AND(K39="",L39=""),"",IF(L39>=65,1,IF(AND(L39>=33,OR(K39="P. Cerebral",K39="Enf. Mental",K39="D. Intelectual",K39="Psíquica")),1,0))) ->  | D39: =IFERROR(MID(G39,1,2)&(MID(G39,FIND(" ",G39,1)+1,2))&IFERROR((MID(G39,FIND(",",G39,1)+2,1)),MID(G39,FIND(" ",G39,FIND(" ",G39,1)+1)+1,1)),"") ->  | Q39: =IFERROR(VLOOKUP(P39,Importes!L:Q,2,FALSE),"") ->  | R39: =IF(G39="","",$M$4) ->  | S39: =IF(G39="","",$M$2) ->  | T39: =IF(G39="","",$Q$2) ->  | U39: =IF(G39="","",IF($AH$8="Extra Inverno","1/12/2016",IF($AH$8="Extra Verán","1/6/2017",$AH$8))) ->  | V39: =IF(G39="","",$AN$9) ->  | W39: =IF(G39="","",IF($AG$8="x","Mensualidade",IF(AND($AG$8="",$AG$9="x",$I$7=DATE(YEAR($I$7),12,1)),"Extra Inverno",IF(AND($AG$8="",$AG$9="x",$I$7=DATE(YEAR($I$7),6,1)),"Extra Verán","")))) ->  | X39: =$AH$9 -> 0 | Y39: =IF(I39="","",DAY(I39)&"/"&MONTH(I39)&"/"&YEAR(I39)) ->  | Z39: =IF(N39="","",DAY(N39)&"/"&MONTH(N39)&"/"&YEAR(N39)) ->  | AA39: =IF(O39="","",DAY(O39)&"/"&MONTH(O39)&"/"&YEAR(O39)) ->  | AB39: =MID(AF39,1,4) -> AM+E | AC39: Si | AE39: =IFERROR(BG39,0) ->  | AF39: =IF(AC39="Non","AM+e","AM+E") -> AM+E | AG39: 0 | AH39: =IFERROR(IF(OR(AD39="+CT",AF39=""),0,ROUND(IF(MOD(AG39,30)=0,QUOTIENT(AG39,30)*VLOOKUP(C39&AF39,Importes!$A$2:$I$14,IF($I$7<DATE(2026,1,1),6,9),FALSE)*(IF($AE39>100,0,$AE39)/100),AG39*VLOOKUP(C39&AF39,Importes!$A$2:$I$14,IF($I$7<DATE(2026,1,1),5,8),FALSE)*(IF($AE39>100,0,$AE39)/100)),2)),0) -> 0 | AI39: =IFERROR(IF(AJ39="","",AE39),"") ->  | AJ39: =IFERROR(IF($M$8="Si",BK39,""),"") ->  | AK39: =IFERROR(IF(AJ39="","",IF(AJ39<180,AJ39*VLOOKUP(C39&"CP",Importes!$A$2:$I$14,IF($I$7<DATE(2026,1,1),5,8),FALSE)*(IF($AI39>100,0,$AI39)/100),IF(AJ39=180,VLOOKUP(C39&"CP",Importes!$A$2:$I$14,IF($I$7<DATE(2026,1,1),6,9),FALSE)*6*(IF($AI39>100,0,$AI39)/100),0))),0) ->  | AN39: =IF(AM39="","",IF(AM39>0,ROUND(IF(MOD(AM39,30)=0,QUOTIENT(AM39,30)*VLOOKUP(C39&IF(AC39="Si","AM+E","AM"),Importes!$A$2:$I$14,IF($I$7<DATE(2026,1,1),6,9),FALSE)*(IF($AL39>100,0,$AL39)/100),AM39*VLOOKUP(C39&IF(AC39="Si","AM+E","AM"),Importes!$A$2:$I$14,IF($I$7<DATE(2026,1,1),5,8),FALSE)*(IF($AL39>100,0,$AL39)/100)),2),0)) ->  | AO39: =IFERROR(IF(ED39="NO","",ED39),"") ->  | AR39: =IF(AQ39="IT",N39,IF(AQ39="AT",N39,"")) ->  | AS39: =IF(AND(AR39<>"",O39>0),O39,"") ->  | AW39: =IF($AH39>0,"X","") ->  | AX39: =IF($AH39>0,"X","") ->  | AY39: =IF($AH39>0,"X","") ->  | AZ39: =IF($AH39>0,"X","") ->  | BA39: =IF($AH39>0,"X","") ->  | BB39: =IF($AH39>0,"X","") ->  | BC39: =IF($AH39>0,"X","") ->  | BD39: =IF($AH39>0,"X","") ->  | BE39: =IF($AH39>0,"X","") ->  | BF39: =IF($AH39>0,"X","") ->  | BH39: 0 | BI39: =IFERROR(IF(OR(AD39="+CT",AF39=""),0,ROUND(IF(MOD(AG39,30)=0,QUOTIENT(AG39,30)*VLOOKUP(C39&AF39,Importes!$A$2:$I$14,IF($I$7<DATE(2026,1,1),6,9),FALSE)*(IF($AE39>100,0,$AE39)/100),AG39*VLOOKUP(C39&AF39,Importes!$A$2:$I$14,IF($I$7<DATE(2026,1,1),5,8),FALSE)*(IF($AE39>100,0,$AE39)/100)),2)),0) -> 0 | BJ39: =IFERROR(IF(BK39="","",BG39),"") ->  | BL39: =IF(AJ39="","",IF(AJ39>0,ROUND(IF(MOD(AJ39,30)=0,QUOTIENT(AJ39,30)*VLOOKUP(C39&"CP",Importes!$A$2:$I$14,IF($I$7<DATE(2026,1,1),6,9),FALSE)*(IF($BG39>100,0,$BG39)/100),BK39*VLOOKUP(C39&"CP",Importes!$A$2:$I$14,IF($I$7<DATE(2026,1,1),5,8),FALSE)*(IF($BG39>100,0,$BG39)/100)),2),0)) ->  | BM39: =IFERROR(IF(BN39="","",BG39),"") ->  | BN39: =IFERROR(IF(OR(EA39="ALINT",EA39="AL"),DR39,""),"") ->  | BO39: =IF(AM39="","",IF(AM39>0,ROUND(IF(MOD(AM39,30)=0,QUOTIENT(AM39,30)*VLOOKUP(C39&IF(AC39="Si","AM+E","AM"),Importes!$A$2:$I$14,IF($I$7<DATE(2026,1,1),6,9),FALSE)*(IF($BG39>100,0,$BG39)/100),AM39*VLOOKUP(C39&IF(AC39="Si","AM+E","AM"),Importes!$A$2:$I$14,IF($I$7<DATE(2026,1,1),5,8),FALSE)*(IF($BG39>100,0,$BG39)/100)),2),0)) ->  | CU39: =IF(VALUE($A39)=0,"",IF(CU$11="","",IF(AND($O39<>"",$O39<CU$6),"",IF($N39>CU$6,"",IF(AND(OR($O39="",$O39>=CU$6),$AR39="",$AF39<>""),"F",IF(AND($AR39<=CU$6,OR($AS39=$O39,$AS39>=CU$6,IF($AS39="",$AU$5))),"h",IF($DE39>=CU$6,"F",""))))))) ->  | CV39: =IF(COUNTIF(BP39:CU39,"F")=0,0,COUNTIF(BP39:CU39,"F")) -> 0 | CW39: =IF(COUNTIF(BP39:CU39,"h")=0,0,COUNTIF(BP39:CU39,"h")) -> 0 | CX39: =IF(OR(AQ39="IT",AQ39="AT"),DI39+1-(DH39),0) -> 0 | CY39: =IF(AQ39="AT",1,IF(IF(AQ39="IT",DI39+1-(DH39),0)>15,15,IF(AQ39="IT",DI39+1-(DH39),0))) -> 0 | CZ39: =IF(AQ39="IT",IF(CX39-CW39>15,15,CX39-CW39),IF(AQ39="AT",IF(CX39-CW39>1,1,CX39-CW39),0)) -> 0 | DA39: =IF(OR(AT39="SI",$DA$8="SI"),CY39-CZ39,IF(AND(AT39<>"SI",OR($DA$8="NON",$DA$8="<<>>")),IF(CZ39<=3,IF(CY39-CZ39-3<=0,IF(AQ39="AT",IF(CZ39=1,0,1),0),CY39-CZ39-(3-CZ39)),CY39-CZ39),0)) -> 0
H40: Lugar e data: | AC40: Si
H41: SINATURA DA PERSOA REPRESENTANTE | AC41: Si
AC42: Si
AC43: Si
AC44: Si

Sheet Contador (hidden)
A2: expediente | B2: 7 | F2: Verdadero

Sheet Importes (hidden)
A1: Códigos | C1: SMI | D1: =$K$1/30 -> 39.46666667 | E1: =D1/12*2 -> 6.577777778 | F1: Achega SMI1 | G1: =$K$4/30 -> 40.7 | H1: =G1/12*2 -> 6.783333333 | I1: Achega SMI2 | J1: SMI 1 | K1: =I17 -> 1184 | L1: cod | N1: tipo | O1: tempo | P1: nome | Q1: obxecto
A2: =B2&C2 -> 0AM+E | B2: 0 | C2: AM+E | D2: =D3+D4 -> 0.5 | E2: =ROUND(D2*$D$1+$E$1*D2,2) -> 23.02 | F2: =ROUND(D2*$I$17+$K$2*D2,2) -> 690.67 | G2: =G3+H4 -> 0.5 | H2: =ROUND(G2*$G$1+$H$1*G2,2) -> 23.74 | I2: =ROUND(D2*$I$18+$K$5*D2,2) -> 712.25 | J2: Prorrata 2PE | K2: =K1/12*2 -> 197.3333333 | L2: 100 | M2: =IF(N2="Indefinido","Ind","Temp") -> Ind | N2: Indefinido | O2: TIEMPO COMPLETO | P2: ORDINARIO
A3: 0AM | B3: 0 | C3: AM | D3: 0.5 | E3: =ROUND(D3*$D$1,2) -> 19.73 | F3: =ROUND(D3*$I$17,2) -> 592 | G3: 0.5 | H3: =ROUND(G3*$G$1,2) -> 20.35 | I3: =ROUND(D3*$I$18,2) -> 610.5 | L3: 109 | M3: =IF(N3="Indefinido","Ind","Temp") -> Ind | N3: Indefinido | O3: TIEMPO COMPLETO | P3: FOMENTO CONTRATACIÓN INDEFINIDA / EMPLEO ESTABLE | Q3: TRANSFORMACIÓN CONTRATO Temporal
J4: SMI 2 | K4: =I18 -> 1221 | L4: 130 | M4: Ind | N4: Indefinido | O4: TIEMPO COMPLETO | P4: MINUSVÁLIDOS
A5: =B5&C5 -> 0CP | B5: 0 | C5: CP | D5: =0.5/6 -> 0.08333333333 | E5: =ROUND(D5*$D$1,2) -> 3.29 | F5: =ROUND(D5*$I$17,2) -> 98.67 | G5: =0.5/6 -> 0.08333333333 | H5: =ROUND(G5*$G$1,2) -> 3.39 | I5: =ROUND(D5*$I$18,2) -> 101.75 | J5: Prorrata 2PE | K5: =K4/12*2 -> 203.5 | L5: 139 | M5: Ind | N5: Indefinido | O5: TIEMPO COMPLETO | P5: MINUSVÁLIDOS | Q5: TRANSFORMACIÓN CONTRATO Temporal
A6: =B6&C6 -> 0CV | B6: 0 | C6: CV | D6: 0.5 | E6: =ROUND(D6*$D$1,2) -> 19.73 | F6: =ROUND(D6*$I$17,2) -> 592 | G6: 0.5 | H6: =ROUND(G6*$G$1,2) -> 20.35 | I6: =ROUND(D6*$I$18,2) -> 610.5 | L6: 150 | M6: Ind | N6: Indefinido | O6: TIEMPO COMPLETO | P6: FOMENTO CONTRATACIÓN INDEFINIDA / EMPLEO ESTABLE | Q6: INICIAL
A7: 0CV+E | B7: 0 | C7: CV+E | D7: =D3+D4 -> 0.5 | E7: =ROUND(D7*$D$1,2) -> 19.73 | F7: =ROUND(D7*$I$17,2) -> 592 | G7: =G3+G4 -> 0.5 | H7: =ROUND(G7*$G$1,2) -> 20.35 | I7: =ROUND(D7*$I$18,2) -> 610.5 | L7: 189 | M7: Ind | N7: Indefinido | O7: TIEMPO COMPLETO | Q7: TRANSFORMACIÓN CONTRATO Temporal
L8: 200 | M8: Ind | N8: Indefinido | O8: TIEMPO PARCIAL | P8: ORDINARIO
A9: 1AM+E | B9: 1 | C9: AM+E | D9: 0.65 | E9: =ROUND(D9*$D$1+$E$1*D9,2) -> 29.93 | F9: =ROUND(D9*$I$17+$K$2*D9,2) -> 897.87 | G9: 0.65 | H9: =ROUND(G9*$G$1+$H$1*G9,2) -> 30.86 | I9: =ROUND(D9*$I$18+$K$5*D9,2) -> 925.93 | L9: 209 | M9: Ind | N9: Indefinido | O9: TIEMPO PARCIAL | P9: FOMENTO CONTRATACIÓN INDEFINIDA / EMPLEO ESTABLE | Q9: TRANSFORMACIÓN CONTRATO Temporal
A10: 1AM | B10: 1 | C10: AM | D10: 0.65 | E10: =ROUND(D10*$D$1,2) -> 25.65 | F10: =ROUND(D10*$I$17,2) -> 769.6 | G10: 0.65 | H10: =ROUND(G10*$G$1,2) -> 26.46 | I10: =ROUND(D10*$I$18,2) -> 793.65 | L10: 230 | M10: Ind | N10: Indefinido | O10: TIEMPO PARCIAL | P10: MINUSVÁLIDOS
L11: 239 | M11: Ind | N11: Indefinido | O11: TIEMPO PARCIAL | P11: MINUSVÁLIDOS | Q11: TRANSFORMACIÓN CONTRATO Temporal
A12: 1CP | B12: 1 | C12: CP | D12: =0.65/6 -> 0.1083333333 | E12: =ROUND(D12*$D$1,2) -> 4.28 | F12: =ROUND(D12*$I$17,2) -> 128.27 | G12: =0.65/6 -> 0.1083333333 | H12: =ROUND(G12*$G$1,2) -> 4.41 | I12: =ROUND(D12*$I$18,2) -> 132.28 | L12: 250 | M12: Ind | N12: Indefinido | O12: TIEMPO PARCIAL | P12: FOMENTO CONTRATACIÓN INDEFINIDA / EMPLEO ESTABLE | Q12: INICIAL
A13: 1CV | B13: 1 | C13: CV | D13: 0.65 | E13: =ROUND(D13*$D$1,2) -> 25.65 | F13: =ROUND(D13*$I$17,2) -> 769.6 | G13: 0.65 | H13: =ROUND(G13*$G$1,2) -> 26.46 | I13: =ROUND(D13*$I$18,2) -> 793.65 | L13: 289 | M13: Ind | N13: Indefinido | O13: TIEMPO PARCIAL | Q13: TRANSFORMACIÓN CONTRATO Temporal
A14: 1CV+E | B14: 1 | C14: CV+E | D14: 0.65 | E14: =ROUND(D14*$D$1+$E$1*D14,2) -> 29.93 | F14: =ROUND(D14*$I$17+$K$2*D14,2) -> 897.87 | G14: 0.65 | H14: =ROUND(G14*$G$1+$H$1*G14,2) -> 30.86 | I14: =ROUND(D14*$I$18+$K$5*D14,2) -> 925.93 | L14: 300 | M14: Ind | N14: Indefinido | O14: FIJO/DISCONTINUO
L15: 309 | M15: Ind | N15: Indefinido | O15: FIJO/DISCONTINUO | P15: FOMENTO CONTRATACIÓN INDEFINIDA / EMPLEO ESTABLE | Q15: TRANSFORMACIÓN CONTRATO Temporal
A16: Minusvalía | C16: Tipo | L16: 330 | M16: Ind | N16: Indefinido | O16: FIJO/DISCONTINUO | P16: MINUSVÁLIDOS
A17: Pensionista | C17: minus | F17: 2024-02-06 | G17: SMI | H17: 2025 | I17: 1184 | L17: 350 | M17: Ind | N17: Indefinido | O17: FIJO/DISCONTINUO | P17: FOMENTO CONTRATACIÓN INDEFINIDA / EMPLEO ESTABLE | Q17: INICIAL
A18: Definitiva | C18: Física | F18: 2025-02-12 | G18: SMI | H18: 2026 | I18: 1221 | L18: 389 | M18: Ind | N18: Indefinido | O18: FIJO/DISCONTINUO | Q18: TRANSFORMACIÓN CONTRATO Temporal
A19: Provisional | C19: Sensorial | L19: 401 | M19: Temp | N19: Duración Determinada | O19: TIEMPO COMPLETO | P19: OBRA O SERVICIO DETERMINADO
C20: P. Cerebral | G20: mes | H20: SMI | I20: mes | L20: 402 | M20: Temp | N20: Duración Determinada | O20: TIEMPO COMPLETO | P20: EVENTUAL POR CIRCUNSTANCIAS DE LA PRODUCCIÓN
A21: sexo | C21: Enf. Mental | G21: 10 | H21: 1184 | I21: 10 | J21: Out | L21: 403 | M21: Temp | N21: Duración Determinada | O21: TIEMPO COMPLETO | P21: INSERCIÓN
A22: H | C22: D. Intelectual | D22: meses 1º SMI | E22: =COUNTIF($H$21:$H$32,MIN($H$21:$H$32)) -> 3 | G22: 11 | H22: 1184 | I22: 11 | J22: Nov | L22: 408 | M22: Temp | N22: Temporal | O22: TIEMPO COMPLETO | Q22: CARÁCTER ADMINISTRATIVO
A23: M | C23: Psíquica | D23: meses 2º SMI | E23: =COUNTIF($H$24:$H$32,MAX($H$24:$H$32)) -> 9 | G23: 12 | H23: 1184 | I23: 12 | J23: Dec | L23: 410 | M23: Temp | N23: Duración Determinada | O23: TIEMPO COMPLETO | P23: INTERINIDAD
G24: 1 | H24: 1221 | I24: 1 | J24: Xan | L24: 418 | M24: Temp | N24: Duración Determinada | O24: TIEMPO COMPLETO | P24: INTERINIDAD | Q24: CARÁCTER ADMINISTRATIVO
G25: 2 | H25: 1221 | I25: 2 | J25: Feb | L25: 420 | M25: Temp | N25: Temporal | O25: TIEMPO COMPLETO | P25: PRÁCTICAS
A26: Conv | G26: 3 | H26: 1221 | I26: 3 | J26: Mar | L26: 421 | M26: Temp | N26: Temporal | O26: TIEMPO COMPLETO | P26: FORMACIÓN
A27: Baixa | G27: 4 | H27: 1221 | I27: 4 | J27: Abr | L27: 430 | M27: Temp | N27: Temporal | O27: TIEMPO COMPLETO | P27: MINUSVÁLIDOS
A28: Non | G28: 5 | H28: 1221 | I28: 5 | J28: Mai | L28: 441 | M28: Temp | N28: Temporal | O28: TIEMPO COMPLETO | P28: RELEVO
A29: Non | G29: 6 | H29: 1221 | I29: 6 | J29: Xuñ | L29: 450 | M29: Temp | N29: Temporal | O29: TIEMPO COMPLETO | P29: FOMENTO CONTRATACIÓN INDEFINIDA / EMPLEO ESTABLE
G30: 7 | H30: 1221 | I30: 7 | J30: Xull | L30: 501 | M30: Temp | N30: Duración Determinada | O30: TIEMPO PARCIAL | P30: OBRA O SERVICIO DETERMINADO
B31: Mes | G31: 8 | H31: 1221 | I31: 8 | J31: Ago | L31: 502 | M31: Temp | N31: Duración Determinada | O31: TIEMPO PARCIAL | P31: EVENTUAL POR CIRCUNSTANCIAS DE LA PRODUCCIÓN
B32: 7 | C32: Xullo | G32: 9 | H32: 1221 | I32: 9 | J32: Sep | L32: 503 | M32: Temp | N32: Duración Determinada | O32: TIEMPO PARCIAL | P32: INSERCIÓN
B33: 8 | C33: Agosto | L33: 508 | M33: Temp | N33: Temporal | O33: TIEMPO PARCIAL | Q33: CARÁCTER ADMINISTRATIVO
B34: 9 | C34: Setembro | L34: 510 | M34: Temp | N34: Duración Determinada | O34: TIEMPO PARCIAL | P34: INTERINIDAD
B35: 10 | C35: Outubro | L35: 518 | M35: Temp | N35: Duración Determinada | O35: TIEMPO PARCIAL | P35: INTERINIDAD | Q35: CARÁCTER ADMINISTRATIVO
B36: 11 | C36: Novembro | L36: 520 | M36: Temp | N36: Temporal | O36: TIEMPO PARCIAL | P36: PRÁCTICAS
B37: 12 | C37: Decembro | L37: 530 | M37: Temp | N37: Temporal | O37: TIEMPO PARCIAL | P37: MINUSVÁLIDOS
B38: 1 | C38: Xaneiro | L38: 540 | M38: Temp | N38: Temporal | O38: TIEMPO PARCIAL | P38: JUBILADO PARCIAL
B39: 2 | C39: Febreiro | L39: 541 | M39: Temp | N39: Temporal | O39: TIEMPO PARCIAL | P39: RELEVO
B40: 3 | C40: Marzo | L40: 550 | M40: Temp | N40: Temporal | O40: TIEMPO PARCIAL | P40: FOMENTO CONTRATACIÓN INDEFINIDA / EMPLEO ESTABLE
B41: 4 | C41: Abril
B42: 5 | C42: Maio
B43: 6 | C43: Xuño

Sheet Campos a Cubrir (hidden)
A1: Este modelo está en formato Excel e, polo tanto, aínda que pode ser cuberta utilizando LibreOffice, debe gardar os cambios no mesmo formato. | I1: I M P O R T A N T E
A3: A continuación describense os campos do formulario con indicación do tipo de campo, a súa descrición, si é un campo autocalculado e si se cubre ou non | I3: Este modelo de folla de cálculo tén celdas ocultas, e celdas con fórmulas (algunhas delas ocultas)
I4: para inserir novas filas ou para borrar información deben terse en conta as seguintes
A5: Campo | C5: Tamaño | D5: Tipo | E5: Descrición | I5: recomendacións:
A6: Nº Exp | C6: 19 | D6: Texto | E6: Nº de Expediente administrativo asignado na convocatoria de axudas
A7: C.E.E. | C7: 50 | D7: Texto | E7: Nome do Centro Especial de Emprego | I7: Borrar información
A8: C.I.F. | C8: 9 | D8: Texto | E8: C.I.F. do Centro Especial de Emprego
A9: Nome da persoa representante | D9: Texto | E9: Nome da persoa representate do Centro Especial de Emprego | I9: No caso de querer borrar a información dunha fila completamente debemos facelo
I10: copiando na fila que queremos borrar a inforación dunha fila que esté totalmente en
A11: Novo Idx | D11: Numérico | E11: Suxire o nº de índice polo que se vincularía a alta dunha nova persoa traballadora | F11: Non se cubre | G11: Autocalculado | I11: blanco, xa que así conservamos a formulas de cálculo ocultas cos seus valores correctos.
A12: Tot. Trab. CEE/RNT | D12: Numérico | E12: Nº de persoas traballadoras que aparecen no RNT do mes que se certifica
A13: Certificación do cadro de persoal do mes de | D13: Texto | E13: lista despregable donde se escolle o mes que se vai a certificar | I13: Para facer esto temos que marcar a fila en blanco a copiar (totalmente) facendo a selección
A14: Certificación comprobada | D14: Texto | E14: lista despregable donde se indica que a certificación esta totalmente correcta | F14: (Por omisión ten o valor "SI") | I14: desde o número indicativo da fila (non desde unha celda), seleccionar a opción de copiar e
A15: Calculo correcto | D15: Texto | E15: lista despregable donde se indica que os calculos feitos son correctos | F15: (Por omisión ten o valor "SI") | I15: posicionarnos a celda que corresponda co Idx/Idn da fila a borrar, e logo pegar a información
I16: seleccionada. Desta maneira aseguramonos de que todas as formulas, ocultas ou non, se
A17: Total Achega Mes | D17: Numérico | E17: Importe total das achegas mensuais solicitadas na certificación | F17: Non se cubre | G17: Autocalculado | I17: copian correctamente na fila que acabamos de borrar
A18: T.c.Vacacións | D18: Numérico | E18: Importe total dos complemento por vacións solicitados na certificación | F18: Non se cubre | G18: Autocalculado
A19: Tot. Trab. Mes | D19: Numérico | E19: Total de traballadores con discapacidade que se relacionan no mes | F19: Non se cubre | G19: Autocalculado | I19: Inserir novas filas para engadir datos de novas persoas traballadoras
A20: Total Certificación mes de | D20: Numérico | E20: total conxunto de todas a achegas e complemento que se relacionan na certificación mensual | F20: Non se cubre | G20: Autocalculado | I20: Para facer insercións correctamente debemos:
A22: Conv. IT | D22: Texto | E22: lista despregable para indicar si os calculos das baixas por enfermidade correspondense co que dispoña a normativa da Seguridade Social ou si hai un convenio colectivo de aplicación específica | F22: (Por omisión ten o valor "NON") | I22: 1º | J22: Seleccionar o rango de filas a inserir e executar o comando
I23: 2º | J23: Seleccionar completamente unha fila con datos cubertos totalmente
A24: Idx / Idn | C24: 3 | D24: Numérico | E24: Indicaría o nº de índice polo que se vincularía á persoa traballadora (é único para cada traballador e contrato de traballo) | J24: (seleccionando desde o número indicativo da fila)
A25: G D | C25: 1 | D25: Numérico | E25: Permite determinar si polo traballador se precibe una subvención do 50 % do SMI ou si se prima cun 10 % adicional determinado na orde de convocatoria de axudas | F25: Non se cubre | G25: Autocalculado | I25: 3º | J25: Escoller o comando copiar
A26: Salario/mes Convenio Colectivo | D26: Numérico | E26: Importe mensual do salario bruto a percibir por cada persoa traballadora | I26: 4º | J26: Pegar nas novas filas en branco a selección anterior para que se restablezan nas
A27: Nº Rexistro ou data publicación C.C. | C27: 3 | D27: Texto | E27: Nº de Rexistro ou data de publicación do convenio colectivo de aplicación ó traballador | J27: novas filas as fórmulas ocultas ou non para poder facer posibles os cálulos)
A28: Traballador | C28: 50 | D28: Texto | E28: Apelidos e nome da persoa traballadora | J28: posicionandonos na celda que corresponda con campo Idx/Idn da nova fila a inserir
A29: D.N.I. | C29: 9 | D29: Texto | E29: Documento Nacional de Identidade da persoa traballadora
A30: Data Nacemento | C30: 6 | D30: Data dd/mm/aa | E30: Data de nacemento | I30: *****
A31: Sexo | C31: 1 | D31: Texto | E31: Sexo | I31: No caso de que nalgunha celda se borrase unha fórmula necesaria para o correcto cálculo da
A32: Discapacidade | C32: 14 | D32: Texto | E32: Tipo de discapacidade. Lista despregable cos seguintes valores (Física, Sensorial, P. Cerebral, Enf. Mental, D. Intelectual, Psíquica) | I32: subvención, sempre se pode repoñer copiando a fórmula correspondente dunha celda que faga
A33: Grao | C33: 4 | D33: Numérico | E33: % de discapacidade do traballador | I33: ese mesmo cálculo para outra persoa traballadora
A34: Tipo | C34: 11 | D34: Texto | E34: lista despregable donde se indica si a discapacidade do traballador é Provisional, Definitiva ou si é Pensionista con consideración de persoa con discapacidade (o contrato debe ser anterior a 29/11/2018)
A35: Data Alta | C35: 6 | D35: Data dd/mm/aa | E35: Data de inicio da relación laboral (data de alta do contrato de traballo)
A36: Data Baixa | C36: 6 | D36: Data dd/mm/aa | E36: Data de finalización da relación laboral (data de baixa do contrato de traballo)
A37: Contrato Código | C37: 3 | D37: Numérico | E37: Lista desplegable. Código do contrato de traballo según a codificación do INSS (*) | H37: (*)No caso de contratos 402 ou 502 débese indicar a data de finalización do mesmo
A38: Contrato Tipo | C38: 4 | D38: Texto | E38: Sinala si o contrato de traballo é de carácter indefinido (Ind) ou temporal (Temp) | F38: Non se cubre | G38: Autocalculado
A39: Rateo | C39: 3 | D39: Texto | E39: Lista despregable de dous valores (Si - Non) Indica si nas retribucións percibidas mensualmente pola persoa traballadora se inclúe ou non a Parte proporcional das Pagas Extraordinarias (só a efectos de clasificación, os cálculos das achegas mensuais xa incluen a p.p. da paga extraordinaria)
A40: % Xornada | C40: 4 | D40: Numérico | E40: % de Xornada da persoa traballadora no mes de inicio do período subvencionable
A41: Tipo de achega | D41: Texto | E41: Indica o tipo de achega que se pericibe por cada traballador, equivalente a porcentaxe do SMI que corresponda segundo o beneficiario mais a parte proporcional da paga extraordinaria que lle corresponda por mes | F41: Non se cubre | G41: Autocalculado
A42: Días | D42: Numérico | E42: Número de días que se solicitan por cada persoa traballadora | F42: Non se cubre | G42: Autocalculado
A43: Achega Mensual | D43: Numérico | E43: Importe da subvención mensual correspondente a cada persoa traballadora | F43: Non se cubre | G43: Autocalculado
A44: % Xornada | D44: Numérico | E44: % de xornada da persoa traballadora correspondente á liquidación do complemento de vacacións | F44: Non se cubre | G44: Autocalculado
A45: Días | D45: Numérico | E45: Número de días que se solicitan por cada persoa traballadora polo complemento de vacacións nos casos de finalización de contratos de traballo e que estas foran cotizadas en non disfrutadas pola persoa traballadora | F45: Non se cubre | G45: Autocalculado
A46: Comp. Vacacións | D46: Numérico | E46: Importe da subvención correspondente ao complemento de vacacións cotizadas en non disfrutadas | F46: Non se cubre | G46: Autocalculado
A47: Certific | D47: Texto | E47: Campo indicativo de que a persoa traballador se inclúe na certificación do mes | F47: Non se cubre | G47: Autocalculado
A48: Días Absentismo | D48: Numérico | E48: Número de días que se descontarán en casos de absentismo
A49: IT AT | D49: Texto | E49: Lista desplebabel de dous valores (IT-AT) donde si indicará si a baixa laboral é por Incapacidade Temporal ou por Accidente de Traballo
A50: Baixa | D50: Data dd/mm/aa | E50: Data de inicio da baixa por enfermidade ou accidente de traballo
A51: Alta | D51: Data dd/mm/aa | E51: Data de finalización da baixa por enfermidade ou accidente de traballo
A52: Conv Baixa | D52: Texto | E52: lista despregable para indicar si, nalgún caso específico e para esa persoa traballadora, os calculos das baixas por enfermidade correspondense co que dispoña a normativa da Seguridade Social ou si hai un convenio colectivo de aplicación específica
A53: Interinidade | D53: Texto | E53: Nº do DNI ou NIF da persoa traballadora sustituida. So se cubre para os contratos 410 e 510
A54: Observacións | D54: Texto
